Workbook

Sheet Disclaimer
B2: Disclaimer for European Parliament Pilot Project – European Green Digital Coalition (EGDC) Case Studies
B4: The following disclaimer is intended to provide clarity and context for the case studies prepared as part of the Phase 2 - EGDC Moves to Action, which have showcased the net carbon impact of specific digital solutions using the EGDC ICT Methodology developed during the project:
B6: 1. Purpose of the Case Studies:
B7: The case studies served multiple purposes, including:
B8: 1. Development of the Methodology: They contributed to the development of the EGDC ICT Methodology. These case studies were conducted concurrently with the methodology's creation and served as a valuable testing ground for its initial formulation.
B9: 2. Application Examples: They provided practical examples of how the methodology can be applied to real-life use cases. These case studies were essential in demonstrating the practicality and effectiveness of the methodology when applied to concrete situations.
B10: 3. Identification of Improvement Areas: By conducting these case studies, we aimed to highlight parts of the calculation in need of improvement. They shed light on the challenges and limitations inherent in using available data and indicated the necessary steps to move towards best practices in assessing net carbon impacts.
B11: 2. Data Quality as a Key Determinant:
B12: It is imperative to emphasize that data quality is a fundamental determinant of the quality and reliability of the case studies. The accuracy and completeness of the data used significantly influence the outcomes and findings of these case studies.
B13: It is essential to acknowledge that the data available for each case study may differ in terms of accuracy, granularity, and coverage. As a result, the case studies may not necessarily represent the best practice application of the EGDC ICT Methodology. Instead, they reflect the application of the methodology at various stages of data availability.
B14: 3. Liability for Errors/Omissions:
B15: While reasonable steps have been taken to ensure that the information contained within the case studies is correct, the EGDC gives no warranty and makes no representation as to its accuracy. We accept no liability for any errors or omissions that may be present in the case studies, methodology, or related information. Users and readers are advised to exercise their judgment and seek further clarification if needed, as the information provided may evolve over time and depend on external factors beyond our control.
B16: 4. Appropriate Use of the Case Study Calculators:
B17: The case study calculators are intended for educational and informational purposes. They rely on certain assumptions and input data to generate results.
B18: The results of the calculators are specific to the implementation of the ICT solution and may not be representative for other implementation contexts.
B19: As such, it is imperative for users to refrain from directly extrapolating these results to ICT solutions or implementation contexts that may seem conceptually similar.
B20: Instead, users are advised to use the calculators as a means to understand the practical application of the EGDC ICT Methodology, thereby equipping themselves with the knowledge required to develop customized calculators specifically tailored to their unique ICT solutions and implementation circumstances.
B22: In conclusion, these case studies provide valuable insights into the calculation of the net carbon impact of digital solutions through the practical application of the EGDC ICT Methodology. However, it is vital to exercise caution when interpreting the results, considering the variances in data quality and the evolving nature of the methodology. The findings are indicative of the methodology's potential and its room for refinement as we work towards more accurate and comprehensive assessments of net carbon impacts.

Sheet Overview & Key
C2: Key
D6: Sheet Key: | E6: Introductory sheets
E7: Results sheets
E8: Backend Calculations
E9: Raw Data
D11: Cell Legend: | E11: Data Input Cell
E12: Calculation Cell
E13: Calculator input
E14: Guidance Text

Sheet Assessment
B4: Assesment Overview
B7: Goal of the assessment
B11: Assesment Scope
B13: Description of ICT Solution and main second order effects
B17: Functional Unit
B21: Assessment perspective
B25: Description of the reference scenario(s)
B29: Effects to be quantified

Sheet Calculation approach
B4: Calculation approach

Sheet Assumptions
B4: Assumptions
B6: Quantifying Effects | C6: Embodied emissions include raw material production and distribution, product manufacturing, transport & distribution and end-of-life.
C7: Installation of Edge Hub's and sensors are simple and do not require any special tools or expertise. It is assumed that emissions from installations are negligible and are excluded.
C8: Temperature and humidity sensors are battery operated so it is assumed there are no additional use-phase emissions.
C9: Assume the lifetime of batteries is 10 years and does not need to be replaced during sensor lifetime.
C10: Assume that no material component of the Edge Hubs and sensors are recycled and that 100% of materials go to landfill.
B11: Data | C11: Assume the IoT accelerator energy consumption and lifecycle emissions can be allocated based on buildings' number of Edge Hubs.
C12: Assume the Radio Network energy consumption and lifecycle emissions can be allocated based on buildings' number of Edge Hubs.
C13: Buildings with no sensors are excluded from the data set as the lack of a feedback loop from the indoor climate are assumed to heavily affect the steering function and consequent savings.
C14: For the Google cloud emissions no activity data is available, so it is assumed their energy emissions account for WTT and T&D.
B15: Emission Factors | C15: For supplier specific district heating emissions factors, if the utility provider does not explicitly state that the factors are WTT, it is assumed WTT is included in the figure to be conservative with regards to the savings.
C16: Residual mix electricity factors from the AIB are uplifted using 2018 values to convert from emissions in kgCO2 to kgCO2equivalent. Electricity emission factors are used to quantify the impact of the first order effects.
C17: When calculating the emissions from electricity consumption using the market based-approach, country-specific electricity residual mix factors from AIB were used. Electricity emission factors are used to quantify the impact of the first order effects.
C18: If no supplier specific emission factor was available for district heating, the location-based emission factor was used.
B19: Results | C19: The observed savings presented in the results are indicative of the conditions of the sample buildings and cannot be used to make conclusions regarding other buildings or other building management systems or other heating systems without further analysis.

Sheet Results
C2: Results & Analysis
B4: Overview
B12: Emissions Reduction (kgCO2e) | AD12: Uncertainty | AQ12: Sensitivity Analysis
C14: Total net carbon impact for the data set | G14: Net carbon impact for set building parameters | K14: Net carbon impact per building profile | T14: Net carbon impact per building for different building variables | AR14: Approach | AS14: market-based | AV14: BAU emissions per m2 (kg CO2e) | AW14: =IF(AND($AS$14="location-based",$AS$15="average"),'Sens. & Uncert. Analysis'!$I$22,IF(AND(Results!$AS$14="location-based",Results!$AS$15="lower bound"),'Sens. & Uncert. Analysis'!$J$22,IF(AND(Results!$AS$14="location-based",Results!$AS$15="upper bound"),'Sens. & Uncert. Analysis'!$K$22,IF(AND($AS$14="market-based",$AS$15="average"),'Sens. & Uncert. Analysis'!$N$22,IF(AND(Results!$AS$14="market-based",Results!$AS$15="lower bound"),'Sens. & Uncert. Analysis'!O22,IF(AND(Results!$AS$14="market-based",Results!$AS$15="upper bound"),'Sens. & Uncert. Analysis'!P22,0)))))) -> 14.02664322
C15: Total annual net carbon impact for all buildings in data set (tCO2e) location-based approach | D15: =(Table7[[#Totals],[Net annual emissions location-based (kgCO2e/building/year)]])/1000 -> 1113.17688 | G15: Please select from the building parameters below *Please note, some combinations of building characteristics do not exist. | K15: Approach | L15: location-based | AR15: Scenario | AS15: upper bound | AV15: Average building aggregated first-order effects (kgCO2e) | AW15: =IF(AND($AS$14="location-based",$AS$15="average"),'Sens. & Uncert. Analysis'!I23,IF(AND(Results!$AS$14="location-based",Results!$AS$15="lower bound"),'Sens. & Uncert. Analysis'!J23,IF(AND(Results!$AS$14="location-based",Results!$AS$15="upper bound"),'Sens. & Uncert. Analysis'!K23,IF(AND($AS$14="market-based",$AS$15="average"),'Sens. & Uncert. Analysis'!N23,IF(AND(Results!$AS$14="market-based",Results!$AS$15="lower bound"),'Sens. & Uncert. Analysis'!O23,IF(AND(Results!$AS$14="market-based",Results!$AS$15="upper bound"),'Sens. & Uncert. Analysis'!P23,0)))))) -> 0.008550651826
C16: Total annual net carbon impact for all buildings in data set (tCO2e) market-based approach | D16: =(Table7[[#Totals],[Net annual emissions market-based* (kgCO2e/building/year)]])/1000 -> 841.9117521 | G16: Savings | H16: Avoided Emissions (kgCO2e/m2/year) | AV16: Average building rebound effects per m2 (kgCO2e) | AW16: =IF(AND($AS$14="location-based",$AS$15="average"),'Sens. & Uncert. Analysis'!I24,IF(AND(Results!$AS$14="location-based",Results!$AS$15="lower bound"),-'Sens. & Uncert. Analysis'!J24,IF(AND(Results!$AS$14="location-based",Results!$AS$15="upper bound"),-'Sens. & Uncert. Analysis'!K24,IF(AND($AS$14="market-based",$AS$15="average"),'Sens. & Uncert. Analysis'!N24,IF(AND(Results!$AS$14="market-based",Results!$AS$15="lower bound"),'Sens. & Uncert. Analysis'!O24,IF(AND(Results!$AS$14="market-based",Results!$AS$15="upper bound"),'Sens. & Uncert. Analysis'!P24,0)))))) -> -0.4691685289
G17: Build Year | H17: Average building | AV17: Average building avoided emissions per m2 (kgCO2e) | AW17: =IF(AND($AS$14="location-based",$AS$15="average"),'Sens. & Uncert. Analysis'!I25,IF(AND(Results!$AS$14="location-based",Results!$AS$15="lower bound"),'Sens. & Uncert. Analysis'!J25,IF(AND(Results!$AS$14="location-based",Results!$AS$15="upper bound"),'Sens. & Uncert. Analysis'!K25,IF(AND($AS$14="market-based",$AS$15="average"),'Sens. & Uncert. Analysis'!N25,IF(AND(Results!$AS$14="market-based",Results!$AS$15="lower bound"),'Sens. & Uncert. Analysis'!O25,IF(AND(Results!$AS$14="market-based",Results!$AS$15="upper bound"),'Sens. & Uncert. Analysis'!P25,0)))))) -> 0.515569812
C18: Total net carbon impact by country | G18: Window glazing | H18: Average building | AV18: Net carbon impact per m2 (kgCO2e) | AW18: =IF(AW16<0,AW17,(AW17-SUM(AW15:AW16))) -> 0.515569812
C19: Select country: | D19: Sweden | G19: Ventilation | H19: Average building | AV19: Average building avoided emissions per m2 (kgCO2e) | AW19: =-AW17 -> -0.515569812
C20: Total annual net carbon impact for all buildings provided (tCO2e) location-based approach | D20: =SUMIF(Table7[Country],Results!D19,Table7[[#Data],[#Totals],[Net annual emissions location-based (kgCO2e/building/year)]])/1000 -> 813.4365252 | G20: Approach | H20: location-based | AV20: Net avoided emissions per m2 (kgCO2e) | AW20: =AW18 -> 0.515569812
C21: Total annual net carbon impact for all buildings provided (tCO2e) market-based approach | D21: =SUMIF(Table7[Country],D19,Table7[Net annual emissions market-based* (kgCO2e/building/year)])/1000 -> 700.3471617
G22: Building Profile | H22: =$H$17&" - "&$H$18&" - "&$H$19 -> Average building - Average building - Average building
C23: Total net carbon impact by building year segment | G23: Average BAU emissions (kgCO2e) | H23: =IF($H$16="Avoided Emissions (kgCO2e/m2/year)",(INDEX('Building Profiles'!$M$10:$M$43,MATCH($H$22,'Building Profiles'!$E$10:$E$43,0))),(INDEX('Building Profiles'!$I$10:$I$43,MATCH($H$22,'Building Profiles'!$E$10:$E$43,0)))) -> 14.02664322
C24: Select year: | D24: 1995-2020 | G24: Average first order effects (kgCO2e) | H24: =IFERROR(_xlfn.IFS(($H$20="location-based"),(IF($H$16="Avoided Emissions (kgCO2e/m2/year)",(INDEX('Building Profiles'!$AA$10:$AA$43,MATCH($H$22,'Building Profiles'!$E$10:$E$43,0))),(INDEX('Building Profiles'!$AC$10:$AC$43,MATCH($H$22,'Building Profiles'!$E$10:$E$43,0))))),($H$20="market-based"),IF($H$16="Avoided Emissions (kgCO2e/m2/year)",(INDEX('Building Profiles'!$AB$10:$AB$43,MATCH($H$22,'Building Profiles'!$E$10:$E$43,0))),(INDEX('Building Profiles'!$AD$10:$AD$43,MATCH($H$22,'Building Profiles'!$E$10:$E$43,0))))),"") -> 0.004541169291
C25: Total annual net carbon impact for all buildings provided (tCO2e) location-based approach | D25: =(SUMIFS(Table7[Net annual emissions location-based (kgCO2e/building/year)],Table7[Building Year Group],Results!D24))/1000 -> 84.64779279 | G25: Average second order effects (kgCO2e) | H25: =IFERROR(_xlfn.IFS(($H$20="location-based"),(IF($H$16="Avoided Emissions (kgCO2e/m2/year)",(INDEX('Building Profiles'!$S$10:$S$43,MATCH($H$22,'Building Profiles'!$E$10:$E$43,0))),(INDEX('Building Profiles'!$U$10:$U$43,MATCH($H$22,'Building Profiles'!$E$10:$E$43,0))))),($H$20="market-based"),(IF($H$16="Avoided Emissions (kgCO2e/m2/year)",(INDEX('Building Profiles'!$T$10:$T$43,MATCH($H$22,'Building Profiles'!$E$10:$E$43,0))),(INDEX('Building Profiles'!$V$10:$V$43,MATCH($H$22,'Building Profiles'!$E$10:$E$43,0)))))),"") -> 0.8696254947
C26: Total annual net carbon impact for all buildings provided (tCO2e) market-based approach | D26: =(SUMIFS(Table7[Net annual emissions market-based* (kgCO2e/building/year)],Table7[Building Year Group],Results!D24))/1000 -> 23.6613373 | G26: Average net carbon impact (kgCO2e) | H26: =IFERROR(_xlfn.IFS((H$20="location-based"),(IF($H$16="Avoided Emissions (kgCO2e/m2/year)",(INDEX('Building Profiles'!$AG$10:$AG$43,MATCH($H$22,'Building Profiles'!$E$10:$E$43,0))),(INDEX('Building Profiles'!$AK$10:$AK$43,MATCH($H$22,'Building Profiles'!$E$10:$E$43,0))))),($H$20="market-based"),(IF($H$16="Avoided Emissions (kgCO2e/m2/year)",(INDEX('Building Profiles'!$AH$10:$AH$43,MATCH($H$22,'Building Profiles'!$E$10:$E$43,0))),(INDEX('Building Profiles'!$AL$10:$AL$43,MATCH(H$22,'Building Profiles'!$E$10:$E$43,0)))))),"") -> 0.8650843254
G27: Average avoided emissions (kgCO2e) | H27: =-H25 -> -0.8696254947
C28: Average net carbon impact per m2 (kgCO2e/m2/year) | G28: Average net avoided emissions (kgCO2e) | H28: =H26 -> 0.8650843254
G29: Average net carbon impact per selected building profile
B54: Energy Reductions (kWh) | AD54: Uncertainty | AQ54: Sensitivity Analysis
G56: Net avoided energy consumption for set building parameters
C57: Total net avoided energy consumption for the data set | G57: Please select from the building parameters below *Please note, some combinations of building characteristics do not exist. | K57: Net energy savings per building profile | T57: Net energy savings per m2 for different building variables
C58: Total energy savings (MWh) | D58: =(Table7[[#Totals],[Net annual energy savings (kWh/building/year) ]])/1000 -> 17325.47906 | G58: Savings | H58: Energy savings (kWh/m2/year) | AR58: Scenario | AS58: average | AV58: BAU energy per m2 (kWh) | AW58: =IF($AS$58="average",'Sens. & Uncert. Analysis'!D22,IF(Results!$AS$58="lower bound",'Sens. & Uncert. Analysis'!E22,IF(Results!$AS$58="upper bound",'Sens. & Uncert. Analysis'!F22,0))) -> 149.0446527
G59: Build Year | H59: Average building | AV59: Average building aggregated first-order effects (kWh) | AW59: =IF($AS$58="average",'Sens. & Uncert. Analysis'!D23,IF(Results!$AS$58="lower bound",'Sens. & Uncert. Analysis'!E23,IF(Results!$AS$58="upper bound",'Sens. & Uncert. Analysis'!F23,0))) -> 0.005051716503
C60: Total net avoided energy consumption by country | G60: Window glazing | H60: Average building | AV60: Average building rebound effects per m2 (kWh) | AW60: =IF($AS$58="average",'Sens. & Uncert. Analysis'!D24,IF(Results!$AS$58="lower bound",'Sens. & Uncert. Analysis'!E24,IF(Results!$AS$58="upper bound",'Sens. & Uncert. Analysis'!F24,0))) -> 3.841053371
C61: Select country: | D61: Sweden | G61: Ventilation | H61: Average building | AV61: Average building avoided energy per m2 (kWh) | AW61: =IF($AS$58="average",'Sens. & Uncert. Analysis'!D25,IF(Results!$AS$58="lower bound",'Sens. & Uncert. Analysis'!E25,IF(Results!$AS$58="upper bound",'Sens. & Uncert. Analysis'!F25,0))) -> 10.9744382
C62: Total annual net energy savings for all buildings provided (MWh) | D62: =SUMIF(Table7[Country],Results!D61,Table7[Net annual energy savings (kWh/building/year) ])/1000 -> 15783.87225 | AV62: Net avoided energy per m2 (kWh) | AW62: =AW61-SUM(AW59:AW60) -> 7.128333115
G63: Building Profile | H63: =$H$59&" - "&$H$60&" - "&$H$61 -> Average building - Average building - Average building | AV63: Average building avoided emissions per m2 (kWh) | AW63: =-AW61 -> -10.9744382
C64: Total net avoided energy consumption by building year segment | G64: Average BAU energy consumption (kWh) | H64: =IFERROR(IF($H$58="Energy savings (kWh/m2/year)",(INDEX('Building Profiles'!$H$51:$H$78,MATCH($H$63,'Building Profiles'!$E$51:$E$78,0))),(INDEX('Building Profiles'!$J$51:$J$78,MATCH($H$63,'Building Profiles'!$E$51:$E$78,0)))),"") -> 149.0446527 | AV64: Net avoided emissions per m2 (kWh) | AW64: =AW62 -> 7.128333115
C65: Select year: | D65: 1995-2020 | G65: Average first order effects (kWh) | H65: =IFERROR(IF($H$58="Energy savings (kWh/m2/year)",(INDEX('Building Profiles'!$Q$51:$Q$78,MATCH($H$63,'Building Profiles'!$E$51:$E$78,0))),(INDEX('Building Profiles'!$R$51:$R$78,MATCH($H$63,'Building Profiles'!$E$51:$E$78,0)))),"") -> 0.005051716503
C66: Total annual net energy savings for all buildings provided (MWh) | D66: =(SUMIFS(Table7[Net annual energy savings (kWh/building/year) ],Table7[Building Year Group],Results!D65))/1000 -> 524.9114997 | G66: Average energy savings (kWh) | H66: =IFERROR(IF($H$58="Energy savings (kWh/m2/year)",(INDEX('Building Profiles'!$M$51:$M$78,MATCH($H$63,'Building Profiles'!$E$51:$E$78,0))),(INDEX('Building Profiles'!$N$51:$N$78,MATCH($H$63,'Building Profiles'!$E$51:$E$78,0)))),"") -> 10.9744382
G67: Average net energy savings (kWh) | H67: =IFERROR(IF($H$58="Energy savings (kWh/m2/year)",INDEX('Building Profiles'!$T$51:$T$78,MATCH($H$63,'Building Profiles'!$E$51:$E$78,0)),(INDEX('Building Profiles'!$V$51:$V$78,MATCH($H$63,'Building Profiles'!$E$51:$E$78,0)))),"") -> 10.96938649
G68: Average energy savings (kWh) | H68: =-H66 -> -10.9744382
G69: Average net savings (kWh) | H69: =H67 -> 10.96938649
C72: Average net energy savings per m2 | G72: Average net energy savings per selected building profile

Sheet Calculator
D2: Calculator | AY2: *net energy savings are the same for market and location based
AY5: *annual savings
C6: Inputs
C7: Build Year | D7: 1995-2020
C8: Window glazing | D8: Triple glazed
C9: Ventilation | D9: Exhaust
C10: Approach | D10: location-based
C12: Data type | D12: Number of buildings
C14: Volume data | D14: 356
C17: Results - Indicative Only
C19: Building Profile | D19: =D7&" - "&D8&" - "&D9 -> 1995-2020 - Triple glazed - Exhaust
C21: Average Net Carbon Impact
C22: Average BAU emissions (kgCO2e/m2/year) | D22: =IFERROR(_xlfn.IFS((D10="location-based"), (IF(D12="Area (m2)",(INDEX('Building Profiles'!$M$10:$M$43,MATCH(D19,'Building Profiles'!$E$10:$E$43,0))),(INDEX('Building Profiles'!$I$10:$I$43,MATCH(D19,'Building Profiles'!$E$10:$E$43,0))))), (D10="market-based"), (IF(D12="Area (m2)",(INDEX('Building Profiles'!$N$10:$N$43,MATCH(D19,'Building Profiles'!$E$10:$E$43,0))),(INDEX('Building Profiles'!$J$10:$J$43,MATCH(D19,'Building Profiles'!$E$10:$E$43,0)))))),"") -> 57921.61075
C23: Average aggregated first order effects (kgCO2e/m2/year) | D23: =IFERROR(_xlfn.IFS((D10="location-based"),(IF(D12="Area (m2)",(INDEX('Building Profiles'!$AA$10:$AA$43,MATCH(D19,'Building Profiles'!$E$10:$E$43,0))),(INDEX('Building Profiles'!$AC$10:$AC$43,MATCH(D19,'Building Profiles'!$E$10:$E$43,0))))),(D10="market-based"),IF(D12="Area (m2)",(INDEX('Building Profiles'!$AB$10:$AB$43,MATCH(D19,'Building Profiles'!$E$10:$E$43,0))),(INDEX('Building Profiles'!$AD$10:$AD$43,MATCH(D19,'Building Profiles'!$E$10:$E$43,0))))),"") -> 10.70394882
C24: Average avoided emissions (kgCO2e/m2/year) | D24: =IFERROR(_xlfn.IFS((D10="location-based"),(IF(D12="Area (m2)",(INDEX('Building Profiles'!$S$10:$S$43,MATCH(D19,'Building Profiles'!$E$10:$E$43,0))),(INDEX('Building Profiles'!$U$10:$U$43,MATCH(D19,'Building Profiles'!$E$10:$E$43,0))))),(D10="market-based"),(IF(D12="Area (m2)",(INDEX('Building Profiles'!$T$10:$T$43,MATCH(D19,'Building Profiles'!$E$10:$E$43,0))),(INDEX('Building Profiles'!$V$10:$V$43,MATCH(D19,'Building Profiles'!$E$10:$E$43,0)))))),"") -> 2301.6442
C25: Average net carbon impact (kgCO2e/m2/year) | D25: =IFERROR(_xlfn.IFS((D10="location-based"),(IF(D12="Area (m2)",(INDEX('Building Profiles'!$AG$10:$AG$43,MATCH(D19,'Building Profiles'!$E$10:$E$43,0))),(INDEX('Building Profiles'!$AK$10:$AK$43,MATCH(D19,'Building Profiles'!$E$10:$E$43,0))))),(D10="market-based"),(IF(D12="Area (m2)",(INDEX('Building Profiles'!$AH$10:$AH$43,MATCH(D19,'Building Profiles'!$E$10:$E$43,0))),(INDEX('Building Profiles'!$AL$10:$AL$43,MATCH(D19,'Building Profiles'!$E$10:$E$43,0)))))),"") -> 2290.940251
C26: Average avoided emissions (kgCO2e/m2/year) | D26: =-D24 -> -2301.6442
C27: Average net avoided emissions (kgCO2e/m2/year) | D27: =D25 -> 2290.940251
C28: Average Net Energy Savings
C29: Average BAU energy consumption (kWh/m2/year) | D29: =IFERROR(IF(D12="Area (m2)",(INDEX('Building Profiles'!$H$51:$H$78,MATCH(D19,'Building Profiles'!$E$51:$E$78,0))),(INDEX('Building Profiles'!$J$51:$J$78,MATCH(D19,'Building Profiles'!$E$51:$E$78,0)))),"") -> 299574.3844
C30: Average aggregated first order effects (kWh/m2/year) | D30: =IFERROR(IF(D12="Area (m2)",(INDEX('Building Profiles'!$Q$51:$Q$78,MATCH(D19,'Building Profiles'!$E$51:$E$78,0))),(INDEX('Building Profiles'!$R$51:$R$78,MATCH(D19,'Building Profiles'!$E$51:$E$78,0)))),"") -> 10.56977528
C31: Average energy savings (kWh/m2/year) | D31: =IFERROR(IF(D12="Area (m2)",(INDEX('Building Profiles'!$M$51:$M$78,MATCH(D19,'Building Profiles'!$E$51:$E$78,0))),(INDEX('Building Profiles'!$N$51:$N$78,MATCH(D19,'Building Profiles'!$E$51:$E$78,0)))),"") -> 11936.25938
C32: Average net savings (kWh/m2/year) | D32: =IFERROR(IF(D12="Area (m2)",(INDEX('Building Profiles'!$U$51:$U$78,MATCH(D19,'Building Profiles'!$E$51:$E$78,0))),(INDEX('Building Profiles'!$V$51:$V$78,MATCH(D19,'Building Profiles'!$E$51:$E$78,0)))),"") -> 11925.6896
C33: Average energy savings (kWh/m2/year) | D33: =-D31 -> -11936.25938
C34: Average net savings (kWh/m2/year) | D34: =D32 -> 11925.6896
C36: Net Carbon Impact
C37: Total carbon savings enabled | D37: =(D14*D25)/1000 -> 815.5747294 | E37: tCO2e / year
C39: Net Energy Savings
C40: Total energy savings enabled (m2) | D40: =D14*D32 -> 4245545.498 | E40: kWh / year

Sheet Sens. & Uncert. Analysis
C1: Sensitivity Analysis
M18: Market-based method, emissions sensitivity analysis
C19: kWh energy savings sensitivity analysis | H19: Location-based method, emissions sensitivity analysis
C21: Energy | D21: Average building | E21: Lower bound | F21: Upper bound | H21: Emissions | I21: Average building | J21: Lower bound | K21: Upper bound | M21: Emissions | N21: Average building | O21: Lower bound | P21: Upper bound
C22: Average building BAU energy consumption per m2 (kWh) | D22: =Backend!Z367 -> 149.0446527 | E22: =D22 -> 149.0446527 | F22: =D22 -> 149.0446527 | H22: BAU emissions per m2 location-based (kg CO2e) | I22: =Backend!AC367 -> 14.02664322 | J22: =I22 -> 14.02664322 | K22: =I22 -> 14.02664322 | M22: BAU emissions per m2 market-based (kg CO2e) | N22: =Backend!AD367 -> 14.02664322 | O22: =N22 -> 14.02664322 | P22: =N22 -> 14.02664322
C23: Average building aggregated first-order effects energy consumption per m2 (kWh) | D23: =Backend!AW367 -> 0.005051716503 | E23: =D23 -> 0.005051716503 | F23: =2*D23 -> 0.01010343301 | H23: Average building aggregated first-order effects location-based (kgCO2e) | I23: =Backend!AY367 -> 0.004541169291 | J23: =I23 -> 0.004541169291 | K23: =I23*2 -> 0.009082338582 | M23: Average building aggregated first-order effects market-based (kgCO2e) | N23: =Backend!AZ367 -> 0.004275325913 | O23: =N23 -> 0.004275325913 | P23: =N23*2 -> 0.008550651826
C24: Average building rebound effects per m2 (kWh) | D24: =0.35*D25 -> 3.841053371 | E24: =0.09*D25 -> 0.9876994382 | F24: =-0.91*D25 -> -9.986738764 | H24: Average building rebound effects per m2 location based (kgCO2e) | I24: =0.35*I25 -> 0.3043689232 | J24: =0.09*I25 -> 0.07826629453 | K24: =-0.91*I25 -> -0.7913592002 | M24: Average building rebound effects per m2 market-based(kgCO2e) | N24: =0.35*N25 -> 0.1804494342 | O24: =0.09*N25 -> 0.04640128308 | P24: =-0.91*N25 -> -0.4691685289
C25: Average building avoided emissions per m2 (kWh) | D25: =Backend!AE367 -> 10.9744382 | E25: =D25 -> 10.9744382 | F25: =D25 -> 10.9744382 | H25: Average building avoided emissions per m2 location-based (kgCO2e) | I25: =Backend!AG367 -> 0.8696254947 | J25: =I25 -> 0.8696254947 | K25: =I25 -> 0.8696254947 | M25: Average building avoided emissions per m2 market-based (kgCO2e) | N25: =Backend!AH367 -> 0.515569812 | O25: =N25 -> 0.515569812 | P25: =N25 -> 0.515569812
D46: Sweden District heating emission factor gCO2e/kWh | E46: Net annual emissions location-based (kgCO2e/m2/year) | G46: Finland District heating emission factor gCO2e/kWh | H46: Net annual emissions location-based (kgCO2e/m2/year) | J46: Sensor lifetime (years) | K46: Aggregated first order effects location-based (kgCO2e/m2/year) | L46: Net annual emissions location-based (kgCO2e/m2/year) | N46: Edge Hub lifetime (years) | O46: Aggregated first order effects location-based (kgCO2e/m2/year) | P46: Net annual emissions location-based (kgCO2e/m2/year) | R46: Edge Hub maximum daily energy consumption (W/day) | S46: Net annual emissions location-based (kgCO2e/m2/year) | U46: Electricity consumption Stockholm site (MWh/year) | V46: Net annual emissions location-based (kgCO2e/m2/year) | Y46: Electricity consumption Amsterdam site (MWh/year) | Z46: Net annual emissions location-based (kgCO2e/m2/year) | AB46: Electricity intensity /subscription (kWh/subscriber) | AC46: Net annual emissions location-based (kgCO2e/m2/year)
D47: 0 | E47: 162.835427 | G47: 0 | H47: 160.9295009 | J47: 1 | K47: 8.552253726 | L47: 301.0344224 | N47: 1 | O47: 5.117076265 | P47: 304.4695999 | R47: 3 | S47: 307.3720162 | U47: 0.5 | V47: 307.4151241 | Y47: 0.48 | Z47: 307.366487 | AB47: 10 | AC47: 307.4990239
D48: 10 | E48: 194.392427 | G48: 50 | H48: 199.4655498 | J48: 5 | K48: 2.923751867 | L48: 306.6629243 | N48: 5 | O48: 2.634030153 | P48: 306.952646 | R48: 6 | S48: 307.366487 | U48: 1.26 | V48: 307.366487 | Y48: 1 | Z48: 306.4183201 | AB48: 37 | AC48: 307.366487
D49: 25 | E49: 241.727927 | G49: 100 | H49: 238.0015988 | J49: 10 | K49: 2.220189134 | L49: 307.366487 | N49: 10 | O49: 2.323649389 | P49: 307.2630267 | R49: 10 | S49: 307.3591147 | U49: 2 | V49: 307.3191298 | Y49: 2 | Z49: 304.5949224 | AB49: 50 | AC49: 307.3026729
D50: 45.8 | E50: 307.366487 | G50: 190 | H50: 307.366487 | J50: 15 | K50: 1.985668223 | L50: 307.6010079 | N50: 15 | O50: 2.220189134 | P50: 307.366487 | R50: 20 | S50: 307.3406841 | U50: 5 | V50: 307.1271414 | Y50: 5 | Z50: 299.1247291 | AB50: 100 | AC50: 307.0572341
D51: 100 | E51: 478.405427 | G51: 300 | H51: 392.1457947 | J51: 20 | K51: 1.868407768 | L51: 307.7182684 | N51: 20 | O51: 2.168459007 | P51: 307.4182171 | R51: 100 | S51: 307.1932393 | U51: 10 | V51: 306.8071607 | Y51: 10 | Z51: 290.0077402 | AB51: 200 | AC51: 306.5663565
D52: 200 | E52: 793.975427 | G52: 500 | H52: 546.2899907
D53: 500 | E53: 1740.685427 | G53: 750 | H53: 738.9702356
D54: 1000 | E54: 3318.535427 | G54: 1000 | H54: 931.6504805
D55: 2000 | E55: 6474.235427 | G55: 2000 | H55: 1702.37146
C79: Uncertainty Analysis
C82: Average uncertainty location-based (kgCO2e/m2/year) | D82: Average uncertainty market-based (kgCO2e/m2/year) | E82: Average uncertainty location-based (kgCO2e/year) | F82: Average uncertainty market-based (kgCO2e/year) | G82: Average uncertainty location-based (tCO2e/year) | H82: Average uncertainty market-based (tCO2e/year) | I82: Uncertainty lower bound location-based (tCO2e/year) | J82: Uncertainty upper bound location-based (tCO2e/year) | K82: Uncertainty lower bound market-based (tCO2e/year) | L82: Uncertainty upper bound market-based (tCO2e/year)
C83: ='Building Profiles'!AP43 -> 0.05767366109 | D83: ='Building Profiles'!AQ43 -> 0.0341926482 | E83: =C83*Table7[[#Totals],[Area (m2)]] -> 86161.50832 | F83: =D83*Table7[[#Totals],[Area (m2)]] -> 51082.07258 | G83: =E83/1000 -> 86.16150832 | H83: =F83/1000 -> 51.08207258 | I83: =Results!D15+G83 -> 1199.338389 | J83: =Results!D15-G83 -> 1027.015372 | K83: =Results!D16+H83 -> 892.9938247 | L83: =Results!D16-H83 -> 790.8296795

Sheet Building Profiles
C1: Building Profiles
B7: Annual emissions calculations for specific building profiles (kgCO2e)
G8: BAU Emissions | O8: Second order effect | W8: Aggregated First Order Effects | AE8: Net Carbon Impact | AN8: Uncertainty | AR8: Percentage Reductions
B9: Year | C9: Window glazing | D9: Ventilation | E9: Combined name | F9: Buildings | G9: Emissions w/o AI location-based (kgCO2e/year) | H9: Emissions w/o AI market-based (kgCO2e/year) | I9: Average emissions w/o AI location-based (kgCO2e/building/year) | J9: Average emissions w/o AI market-based (kgCO2e/building/year) | K9: Emissions w/o AI location-based (kgCO2e/m2/year) | L9: Emissions w/o AI market-based (kgCO2e/m2/year) | M9: Average emissions w/o AI location-based (kgCO2e/m2/year) | N9: Average missions w/o AI market-based (kgCO2e/m2) | O9: Avoided emissions location-based (kgCO2e/m2/year) | P9: Avoided emissions market-based (kgCO2e/m2/year) | Q9: Avoided emissions location-based (kgCO2e/building/year) | R9: Avoided emissions market-based (kgCO2e/building/year) | S9: Average avoided emissions location-based (kgCO2e/m2/year) | T9: Average avoided emissions market-based (kgCO2e/m2/year) | U9: Average avoided emissions location-based (kgCO2e/building/year) | V9: Average avoided emissions market-based (kgCO2e/building/year) | W9: Aggregated first order effects location-based (kgCO2e/m2/year) | X9: Aggregated first order effects market-based (kgCO2e/m2/year) | Y9: Aggregated first order effects location-based (kgCO2e/year) | Z9: Aggregated first order effects market-based (kgCO2e/building/year) | AA9: Average aggregated first order effects location-based (kgCO2e/m2/year) | AB9: Average aggregated first order effects market-based (kgCO2e/m2/year) | AC9: Average aggregated first order effects location-based (kgCO2e/building/year) | AD9: Average aggregated first order effects market-based (kgCO2e/building/year) | AE9: Net avoided emissions location-based (kgCO2e/m2/year) | AF9: Net avoided emissions market-based (kgCO2e/m2/year) | AG9: Average net avoided emissions location-based (kgCO2e/m2/year) | AH9: Average net avoided emissions market-based (kgCO2e/m2/year) | AI9: Net avoided emissions location-based (kgCO2e/year) | AJ9: Net avoided emissions market-based (kgCO2e/year) | AK9: Average net avoided emissions location-based (kgCO2e/building/year) | AL9: Average net avoided emissions market-based (kgCO2e/building/year) | AM9: Net avoided emissions either market or location based (selection) (kgCO2e/m2/year) | AN9: Uncertainty location-based (kgCO2e/m2/year) | AO9: Uncertainty market-based (kgCO2e/m2/year) | AP9: Average uncertainty location-based (kgCO2e/m2/year) | AQ9: Average uncertainty market-based (kgCO2e/m2/year) | AR9: Emissions percentage reduction (kgCO2e/m2/year) | AS9: Emissions percentage reduction (kgCO2e/building/year)
B10: 1920-1944 | C10: Double glazed | D10: Natural ventilation | E10: =B10&" - "&C10&" - "&D10 -> 1920-1944 - Double glazed - Natural ventilation | F10: =IF(AND(Carbon_Savings_By_Profile[[#This Row],[Window glazing]]="Average building",Carbon_Savings_By_Profile[[#This Row],[Ventilation]]="Average building"), COUNTIFS(Backend!$H$10:$H$365,Carbon_Savings_By_Profile[[#This Row],[Year]]),IF(AND(Carbon_Savings_By_Profile[[#This Row],[Year]]="Average building",Carbon_Savings_By_Profile[[#This Row],[Ventilation]]="Average building"),COUNTIFS(Backend!$K$10:$K$365,Carbon_Savings_By_Profile[[#This Row],[Window glazing]]), IF(AND(Carbon_Savings_By_Profile[[#This Row],[Year]]="Average building",Carbon_Savings_By_Profile[[#This Row],[Window glazing]]="Average building"), COUNTIFS(Backend!$J$10:$J$365,Carbon_Savings_By_Profile[[#This Row],[Ventilation]]), IF(AND(Carbon_Savings_By_Profile[[#This Row],[Year]]="Average building",Carbon_Savings_By_Profile[[#This Row],[Window glazing]]<>"Average building",Carbon_Savings_By_Profile[[#This Row],[Ventilation]]<>"Average building"), COUNTIFS(Backend!$K$10:$K$365,Carbon_Savings_By_Profile[[#This Row],[Window glazing]],Backend!$J$10:$J$365,Carbon_Savings_By_Profile[[#This Row],[Ventilation]]),COUNTIFS(Backend!$H$10:$H$365,Carbon_Savings_By_Profile[[#This Row],[Year]],Backend!$K$10:$K$365,Carbon_Savings_By_Profile[[#This Row],[Window glazing]],Backend!$J$10:$J$365,Carbon_Savings_By_Profile[[#This Row],[Ventilation]]))))) -> 2 | G10: =IF(AND(Carbon_Savings_By_Profile[[#This Row],[Window glazing]]="Average building",Carbon_Savings_By_Profile[[#This Row],[Ventilation]]="Average building"), SUMIFS(Table7[Emissions w/o AI location-based (kgCO2e/building)],Backend!$H$10:$H$365,Carbon_Savings_By_Profile[[#This Row],[Year]]),IF(AND(Carbon_Savings_By_Profile[[#This Row],[Year]]="Average building",Carbon_Savings_By_Profile[[#This Row],[Ventilation]]="Average building"),SUMIFS(Table7[Emissions w/o AI location-based (kgCO2e/building)],Backend!$K$10:$K$365,Carbon_Savings_By_Profile[[#This Row],[Window glazing]]), IF(AND(Carbon_Savings_By_Profile[[#This Row],[Year]]="Average building",Carbon_Savings_By_Profile[[#This Row],[Window glazing]]="Average building"), SUMIFS(Table7[Emissions w/o AI location-based (kgCO2e/building)],Backend!$J$10:$J$365,Carbon_Savings_By_Profile[[#This Row],[Ventilation]]), IF(AND(Carbon_Savings_By_Profile[[#This Row],[Year]]="Average building",Carbon_Savings_By_Profile[[#This Row],[Window glazing]]<>"Average building",Carbon_Savings_By_Profile[[#This Row],[Ventilation]]<>"Average building"), SUMIFS(Table7[Emissions w/o AI location-based (kgCO2e/building)],Backend!$K$10:$K$365,Carbon_Savings_By_Profile[[#This Row],[Window glazing]],Backend!$J$10:$J$365,Carbon_Savings_By_Profile[[#This Row],[Ventilation]]),SUMIFS(Table7[Emissions w/o AI location-based (kgCO2e/building)],Backend!$H$10:$H$365,Carbon_Savings_By_Profile[[#This Row],[Year]],Backend!$K$10:$K$365,Carbon_Savings_By_Profile[[#This Row],[Window glazing]],Backend!$J$10:$J$365,Carbon_Savings_By_Profile[[#This Row],[Ventilation]]))))) -> 21647.43108 | H10: =IF(AND(Carbon_Savings_By_Profile[[#This Row],[Window glazing]]="Average building",Carbon_Savings_By_Profile[[#This Row],[Ventilation]]="Average building"), SUMIFS(Table7[Emissions w/o AI market-based* (kgCO2e/building)],Backend!$H$10:$H$365,Carbon_Savings_By_Profile[[#This Row],[Year]]),IF(AND(Carbon_Savings_By_Profile[[#This Row],[Year]]="Average building",Carbon_Savings_By_Profile[[#This Row],[Ventilation]]="Average building"),SUMIFS(Table7[Emissions w/o AI market-based* (kgCO2e/building)],Backend!$K$10:$K$365,Carbon_Savings_By_Profile[[#This Row],[Window glazing]]), IF(AND(Carbon_Savings_By_Profile[[#This Row],[Year]]="Average building",Carbon_Savings_By_Profile[[#This Row],[Window glazing]]="Average building"), SUMIFS(Table7[Emissions w/o AI market-based* (kgCO2e/building)],Backend!$J$10:$J$365,Carbon_Savings_By_Profile[[#This Row],[Ventilation]]), IF(AND(Carbon_Savings_By_Profile[[#This Row],[Year]]="Average building",Carbon_Savings_By_Profile[[#This Row],[Window glazing]]<>"Average building",Carbon_Savings_By_Profile[[#This Row],[Ventilation]]<>"Average building"), SUMIFS(Table7[Emissions w/o AI market-based* (kgCO2e/building)],Backend!$K$10:$K$365,Carbon_Savings_By_Profile[[#This Row],[Window glazing]],Backend!$J$10:$J$365,Carbon_Savings_By_Profile[[#This Row],[Ventilation]]),SUMIFS(Table7[Emissions w/o AI market-based* (kgCO2e/building)],Backend!$H$10:$H$365,Carbon_Savings_By_Profile[[#This Row],[Year]],Backend!$K$10:$K$365,Carbon_Savings_By_Profile[[#This Row],[Window glazing]],Backend!$J$10:$J$365,Carbon_Savings_By_Profile[[#This Row],[Ventilation]]))))) -> 21647.43108 | I10: =Carbon_Savings_By_Profile[[#This Row],[Emissions w/o AI location-based (kgCO2e/year)]]/Carbon_Savings_By_Profile[[#This Row],[Buildings]] -> 10823.71554 | J10: =Carbon_Savings_By_Profile[[#This Row],[Emissions w/o AI market-based (kgCO2e/year)]]/Carbon_Savings_By_Profile[[#This Row],[Buildings]] -> 10823.71554 | K10: =IF(AND(Carbon_Savings_By_Profile[[#This Row],[Window glazing]]="Average building",Carbon_Savings_By_Profile[[#This Row],[Ventilation]]="Average building"), SUMIFS(Table7[Emissions w/o AI location-based (kgCO2e/m2)],Backend!$H$10:$H$365,Carbon_Savings_By_Profile[[#This Row],[Year]]),IF(AND(Carbon_Savings_By_Profile[[#This Row],[Year]]="Average building",Carbon_Savings_By_Profile[[#This Row],[Ventilation]]="Average building"),SUMIFS(Table7[Emissions w/o AI location-based (kgCO2e/m2)],Backend!$K$10:$K$365,Carbon_Savings_By_Profile[[#This Row],[Window glazing]]), IF(AND(Carbon_Savings_By_Profile[[#This Row],[Year]]="Average building",Carbon_Savings_By_Profile[[#This Row],[Window glazing]]="Average building"), SUMIFS(Table7[Emissions w/o AI location-based (kgCO2e/m2)],Backend!$J$10:$J$365,Carbon_Savings_By_Profile[[#This Row],[Ventilation]]), IF(AND(Carbon_Savings_By_Profile[[#This Row],[Year]]="Average building",Carbon_Savings_By_Profile[[#This Row],[Window glazing]]<>"Average building",Carbon_Savings_By_Profile[[#This Row],[Ventilation]]<>"Average building"), SUMIFS(Table7[Emissions w/o AI location-based (kgCO2e/m2)],Backend!$K$10:$K$365,Carbon_Savings_By_Profile[[#This Row],[Window glazing]],Backend!$J$10:$J$365,Carbon_Savings_By_Profile[[#This Row],[Ventilation]]),SUMIFS(Table7[Emissions w/o AI location-based (kgCO2e/m2)],Backend!$H$10:$H$365,Carbon_Savings_By_Profile[[#This Row],[Year]],Backend!$K$10:$K$365,Carbon_Savings_By_Profile[[#This Row],[Window glazing]],Backend!$J$10:$J$365,Carbon_Savings_By_Profile[[#This Row],[Ventilation]]))))) -> 15.97401858 | L10: =IF(AND(Carbon_Savings_By_Profile[[#This Row],[Window glazing]]="Average building",Carbon_Savings_By_Profile[[#This Row],[Ventilation]]="Average building"), SUMIFS(Table7[Emissions w/o AI market-based* (kgCO2e/m2)],Backend!$H$10:$H$365,Carbon_Savings_By_Profile[[#This Row],[Year]]),IF(AND(Carbon_Savings_By_Profile[[#This Row],[Year]]="Average building",Carbon_Savings_By_Profile[[#This Row],[Ventilation]]="Average building"),SUMIFS(Table7[Emissions w/o AI market-based* (kgCO2e/m2)],Backend!$K$10:$K$365,Carbon_Savings_By_Profile[[#This Row],[Window glazing]]), IF(AND(Carbon_Savings_By_Profile[[#This Row],[Year]]="Average building",Carbon_Savings_By_Profile[[#This Row],[Window glazing]]="Average building"), SUMIFS(Table7[Emissions w/o AI market-based* (kgCO2e/m2)],Backend!$J$10:$J$365,Carbon_Savings_By_Profile[[#This Row],[Ventilation]]), IF(AND(Carbon_Savings_By_Profile[[#This Row],[Year]]="Average building",Carbon_Savings_By_Profile[[#This Row],[Window glazing]]<>"Average building",Carbon_Savings_By_Profile[[#This Row],[Ventilation]]<>"Average building"), SUMIFS(Table7[Emissions w/o AI market-based* (kgCO2e/m2)],Backend!$K$10:$K$365,Carbon_Savings_By_Profile[[#This Row],[Window glazing]],Backend!$J$10:$J$365,Carbon_Savings_By_Profile[[#This Row],[Ventilation]]),SUMIFS(Table7[Emissions w/o AI market-based* (kgCO2e/m2)],Backend!$H$10:$H$365,Carbon_Savings_By_Profile[[#This Row],[Year]],Backend!$K$10:$K$365,Carbon_Savings_By_Profile[[#This Row],[Window glazing]],Backend!$J$10:$J$365,Carbon_Savings_By_Profile[[#This Row],[Ventilation]]))))) -> 15.97401858 | M10: =Carbon_Savings_By_Profile[[#This Row],[Emissions w/o AI location-based (kgCO2e/m2/year)]]/Carbon_Savings_By_Profile[[#This Row],[Buildings]] -> 7.987009292 | N10: =Carbon_Savings_By_Profile[[#This Row],[Emissions w/o AI market-based (kgCO2e/m2/year)]]/Carbon_Savings_By_Profile[[#This Row],[Buildings]] -> 7.987009292 | O10: =IF(AND(Carbon_Savings_By_Profile[[#This Row],[Window glazing]]="Average building",Carbon_Savings_By_Profile[[#This Row],[Ventilation]]="Average building"), SUMIFS(Backend!$AG$10:$AG$365,Backend!$H$10:$H$365,Carbon_Savings_By_Profile[[#This Row],[Year]]),IF(AND(Carbon_Savings_By_Profile[[#This Row],[Year]]="Average building",Carbon_Savings_By_Profile[[#This Row],[Ventilation]]="Average building"),SUMIFS(Backend!$AG$10:$AG$365,Backend!$K$10:$K$365,Carbon_Savings_By_Profile[[#This Row],[Window glazing]]), IF(AND(Carbon_Savings_By_Profile[[#This Row],[Year]]="Average building",Carbon_Savings_By_Profile[[#This Row],[Window glazing]]="Average building"), SUMIFS(Backend!$AG$10:$AG$365,Backend!$J$10:$J$365,Carbon_Savings_By_Profile[[#This Row],[Ventilation]]), IF(AND(Carbon_Savings_By_Profile[[#This Row],[Year]]="Average building",Carbon_Savings_By_Profile[[#This Row],[Window glazing]]<>"Average building",Carbon_Savings_By_Profile[[#This Row],[Ventilation]]<>"Average building"), SUMIFS(Backend!$AG$10:$AG$365,Backend!$K$10:$K$365,Carbon_Savings_By_Profile[[#This Row],[Window glazing]],Backend!$J$10:$J$365,Carbon_Savings_By_Profile[[#This Row],[Ventilation]]),SUMIFS(Backend!$AG$10:$AG$365,Backend!$H$10:$H$365,Carbon_Savings_By_Profile[[#This Row],[Year]],Backend!$K$10:$K$365,Carbon_Savings_By_Profile[[#This Row],[Window glazing]],Backend!$J$10:$J$365,Carbon_Savings_By_Profile[[#This Row],[Ventilation]]))))) -> 1.84052 | P10: =IF(AND(Carbon_Savings_By_Profile[[#This Row],[Window glazing]]="Average building",Carbon_Savings_By_Profile[[#This Row],[Ventilation]]="Average building"), SUMIFS(Backend!$AH$10:$AH$365,Backend!$H$10:$H$365,Carbon_Savings_By_Profile[[#This Row],[Year]]),IF(AND(Carbon_Savings_By_Profile[[#This Row],[Year]]="Average building",Carbon_Savings_By_Profile[[#This Row],[Ventilation]]="Average building"),SUMIFS(Backend!$AH$10:$AH$365,Backend!$K$10:$K$365,Carbon_Savings_By_Profile[[#This Row],[Window glazing]]), IF(AND(Carbon_Savings_By_Profile[[#This Row],[Year]]="Average building",Carbon_Savings_By_Profile[[#This Row],[Window glazing]]="Average building"), SUMIFS(Backend!$AH$10:$AH$365,Backend!$J$10:$J$365,Carbon_Savings_By_Profile[[#This Row],[Ventilation]]), IF(AND(Carbon_Savings_By_Profile[[#This Row],[Year]]="Average building",Carbon_Savings_By_Profile[[#This Row],[Window glazing]]<>"Average building",Carbon_Savings_By_Profile[[#This Row],[Ventilation]]<>"Average building"), SUMIFS(Backend!$AH$10:$AH$365,Backend!$K$10:$K$365,Carbon_Savings_By_Profile[[#This Row],[Window glazing]],Backend!$J$10:$J$365,Carbon_Savings_By_Profile[[#This Row],[Ventilation]]),SUMIFS(Backend!$AH$10:$AH$365,Backend!$H$10:$H$365,Carbon_Savings_By_Profile[[#This Row],[Year]],Backend!$K$10:$K$365,Carbon_Savings_By_Profile[[#This Row],[Window glazing]],Backend!$J$10:$J$365,Carbon_Savings_By_Profile[[#This Row],[Ventilation]]))))) -> 1.264906 | Q10: =IF(AND(Carbon_Savings_By_Profile[[#This Row],[Window glazing]]="Average building",Carbon_Savings_By_Profile[[#This Row],[Ventilation]]="Average building"), SUMIFS(Backend!$AI$10:$AI$365,Backend!$H$10:$H$365,Carbon_Savings_By_Profile[[#This Row],[Year]]),IF(AND(Carbon_Savings_By_Profile[[#This Row],[Year]]="Average building",Carbon_Savings_By_Profile[[#This Row],[Ventilation]]="Average building"),SUMIFS(Backend!$AI$10:$AI$365,Backend!$K$10:$K$365,Carbon_Savings_By_Profile[[#This Row],[Window glazing]]), IF(AND(Carbon_Savings_By_Profile[[#This Row],[Year]]="Average building",Carbon_Savings_By_Profile[[#This Row],[Window glazing]]="Average building"), SUMIFS(Backend!$AI$10:$AI$365,Backend!$J$10:$J$365,Carbon_Savings_By_Profile[[#This Row],[Ventilation]]), IF(AND(Carbon_Savings_By_Profile[[#This Row],[Year]]="Average building",Carbon_Savings_By_Profile[[#This Row],[Window glazing]]<>"Average building",Carbon_Savings_By_Profile[[#This Row],[Ventilation]]<>"Average building"), SUMIFS(Backend!$AI$10:$AI$365,Backend!$K$10:$K$365,Carbon_Savings_By_Profile[[#This Row],[Window glazing]],Backend!$J$10:$J$365,Carbon_Savings_By_Profile[[#This Row],[Ventilation]]),SUMIFS(Backend!$AI$10:$AI$365,Backend!$H$10:$H$365,Carbon_Savings_By_Profile[[#This Row],[Year]],Backend!$K$10:$K$365,Carbon_Savings_By_Profile[[#This Row],[Window glazing]],Backend!$J$10:$J$365,Carbon_Savings_By_Profile[[#This Row],[Ventilation]]))))) -> 2602.42807 | R10: =IF(AND(Carbon_Savings_By_Profile[[#This Row],[Window glazing]]="Average building",Carbon_Savings_By_Profile[[#This Row],[Ventilation]]="Average building"), SUMIFS(Backend!$AJ$10:$AJ$365,Backend!$H$10:$H$365,Carbon_Savings_By_Profile[[#This Row],[Year]]),IF(AND(Carbon_Savings_By_Profile[[#This Row],[Year]]="Average building",Carbon_Savings_By_Profile[[#This Row],[Ventilation]]="Average building"),SUMIFS(Backend!$AJ$10:$AJ$365,Backend!$K$10:$K$365,Carbon_Savings_By_Profile[[#This Row],[Window glazing]]), IF(AND(Carbon_Savings_By_Profile[[#This Row],[Year]]="Average building",Carbon_Savings_By_Profile[[#This Row],[Window glazing]]="Average building"), SUMIFS(Backend!$AJ$10:$AJ$365,Backend!$J$10:$J$365,Carbon_Savings_By_Profile[[#This Row],[Ventilation]]), IF(AND(Carbon_Savings_By_Profile[[#This Row],[Year]]="Average building",Carbon_Savings_By_Profile[[#This Row],[Window glazing]]<>"Average building",Carbon_Savings_By_Profile[[#This Row],[Ventilation]]<>"Average building"), SUMIFS(Backend!$AJ$10:$AJ$365,Backend!$K$10:$K$365,Carbon_Savings_By_Profile[[#This Row],[Window glazing]],Backend!$J$10:$J$365,Carbon_Savings_By_Profile[[#This Row],[Ventilation]]),SUMIFS(Backend!$AJ$10:$AJ$365,Backend!$H$10:$H$365,Carbon_Savings_By_Profile[[#This Row],[Year]],Backend!$K$10:$K$365,Carbon_Savings_By_Profile[[#This Row],[Window glazing]],Backend!$J$10:$J$365,Carbon_Savings_By_Profile[[#This Row],[Ventilation]]))))) -> 2152.873536 | S10: =Carbon_Savings_By_Profile[[#This Row],[Avoided emissions location-based (kgCO2e/m2/year) ]]/Carbon_Savings_By_Profile[[#This Row],[Buildings]] -> 0.92026 | T10: =Carbon_Savings_By_Profile[[#This Row],[Avoided emissions market-based (kgCO2e/m2/year)]]/Carbon_Savings_By_Profile[[#This Row],[Buildings]] -> 0.632453 | U10: =Carbon_Savings_By_Profile[[#This Row],[Avoided emissions location-based (kgCO2e/building/year)]]/Carbon_Savings_By_Profile[[#This Row],[Buildings]] -> 1301.214035 | V10: =Carbon_Savings_By_Profile[[#This Row],[Avoided emissions market-based (kgCO2e/building/year)]]/Carbon_Savings_By_Profile[[#This Row],[Buildings]] -> 1076.436768 | W10: =IF(AND(Carbon_Savings_By_Profile[[#This Row],[Window glazing]]="Average building",Carbon_Savings_By_Profile[[#This Row],[Ventilation]]="Average building"), SUMIFS(Backend!$AY$10:$AY$365,Backend!$H$10:$H$365,Carbon_Savings_By_Profile[[#This Row],[Year]]),IF(AND(Carbon_Savings_By_Profile[[#This Row],[Year]]="Average building",Carbon_Savings_By_Profile[[#This Row],[Ventilation]]="Average building"),SUMIFS(Backend!$AY$10:$AY$365,Backend!$K$10:$K$365,Carbon_Savings_By_Profile[[#This Row],[Window glazing]]), IF(AND(Carbon_Savings_By_Profile[[#This Row],[Year]]="Average building",Carbon_Savings_By_Profile[[#This Row],[Window glazing]]="Average building"), SUMIFS(Backend!$AY$10:$AY$365,Backend!$J$10:$J$365,Carbon_Savings_By_Profile[[#This Row],[Ventilation]]), IF(AND(Carbon_Savings_By_Profile[[#This Row],[Year]]="Average building",Carbon_Savings_By_Profile[[#This Row],[Window glazing]]<>"Average building",Carbon_Savings_By_Profile[[#This Row],[Ventilation]]<>"Average building"), SUMIFS(Backend!$AY$10:$AY$365,Backend!$K$10:$K$365,Carbon_Savings_By_Profile[[#This Row],[Window glazing]],Backend!$J$10:$J$365,Carbon_Savings_By_Profile[[#This Row],[Ventilation]]),SUMIFS(Backend!$AY$10:$AY$365,Backend!$H$10:$H$365,Carbon_Savings_By_Profile[[#This Row],[Year]],Backend!$K$10:$K$365,Carbon_Savings_By_Profile[[#This Row],[Window glazing]],Backend!$J$10:$J$365,Carbon_Savings_By_Profile[[#This Row],[Ventilation]]))))) -> 0.01375110921 | X10: =IF(AND(Carbon_Savings_By_Profile[[#This Row],[Window glazing]]="Average building",Carbon_Savings_By_Profile[[#This Row],[Ventilation]]="Average building"), SUMIFS(Backend!$AZ$10:$AZ$365,Backend!$H$10:$H$365,Carbon_Savings_By_Profile[[#This Row],[Year]]),IF(AND(Carbon_Savings_By_Profile[[#This Row],[Year]]="Average building",Carbon_Savings_By_Profile[[#This Row],[Ventilation]]="Average building"),SUMIFS(Backend!$AZ$10:$AZ$365,Backend!$K$10:$K$365,Carbon_Savings_By_Profile[[#This Row],[Window glazing]]), IF(AND(Carbon_Savings_By_Profile[[#This Row],[Year]]="Average building",Carbon_Savings_By_Profile[[#This Row],[Window glazing]]="Average building"), SUMIFS(Backend!$AZ$10:$AZ$365,Backend!$J$10:$J$365,Carbon_Savings_By_Profile[[#This Row],[Ventilation]]), IF(AND(Carbon_Savings_By_Profile[[#This Row],[Year]]="Average building",Carbon_Savings_By_Profile[[#This Row],[Window glazing]]<>"Average building",Carbon_Savings_By_Profile[[#This Row],[Ventilation]]<>"Average building"), SUMIFS(Backend!$AZ$10:$AZ$365,Backend!$K$10:$K$365,Carbon_Savings_By_Profile[[#This Row],[Window glazing]],Backend!$J$10:$J$365,Carbon_Savings_By_Profile[[#This Row],[Ventilation]]),SUMIFS(Backend!$AZ$10:$AZ$365,Backend!$H$10:$H$365,Carbon_Savings_By_Profile[[#This Row],[Year]],Backend!$K$10:$K$365,Carbon_Savings_By_Profile[[#This Row],[Window glazing]],Backend!$J$10:$J$365,Carbon_Savings_By_Profile[[#This Row],[Ventilation]]))))) -> 0.0121512398 | Y10: =IF(AND(Carbon_Savings_By_Profile[[#This Row],[Window glazing]]="Average building",Carbon_Savings_By_Profile[[#This Row],[Ventilation]]="Average building"), SUMIFS(Backend!$BA$10:$BA$365,Backend!$H$10:$H$365,Carbon_Savings_By_Profile[[#This Row],[Year]]),IF(AND(Carbon_Savings_By_Profile[[#This Row],[Year]]="Average building",Carbon_Savings_By_Profile[[#This Row],[Ventilation]]="Average building"),SUMIFS(Backend!$BA$10:$BA$365,Backend!$K$10:$K$365,Carbon_Savings_By_Profile[[#This Row],[Window glazing]]), IF(AND(Carbon_Savings_By_Profile[[#This Row],[Year]]="Average building",Carbon_Savings_By_Profile[[#This Row],[Window glazing]]="Average building"), SUMIFS(Backend!$BA$10:$BA$365,Backend!$J$10:$J$365,Carbon_Savings_By_Profile[[#This Row],[Ventilation]]), IF(AND(Carbon_Savings_By_Profile[[#This Row],[Year]]="Average building",Carbon_Savings_By_Profile[[#This Row],[Window glazing]]<>"Average building",Carbon_Savings_By_Profile[[#This Row],[Ventilation]]<>"Average building"), SUMIFS(Backend!$BA$10:$BA$365,Backend!$K$10:$K$365,Carbon_Savings_By_Profile[[#This Row],[Window glazing]],Backend!$J$10:$J$365,Carbon_Savings_By_Profile[[#This Row],[Ventilation]]),SUMIFS(Backend!$BA$10:$BA$365,Backend!$H$10:$H$365,Carbon_Savings_By_Profile[[#This Row],[Year]],Backend!$K$10:$K$365,Carbon_Savings_By_Profile[[#This Row],[Window glazing]],Backend!$J$10:$J$365,Carbon_Savings_By_Profile[[#This Row],[Ventilation]]))))) -> 15.41660857 | Z10: =IF(AND(Carbon_Savings_By_Profile[[#This Row],[Window glazing]]="Average building",Carbon_Savings_By_Profile[[#This Row],[Ventilation]]="Average building"), SUMIFS(Backend!$BB$10:$BB$365,Backend!$H$10:$H$365,Carbon_Savings_By_Profile[[#This Row],[Year]]),IF(AND(Carbon_Savings_By_Profile[[#This Row],[Year]]="Average building",Carbon_Savings_By_Profile[[#This Row],[Ventilation]]="Average building"),SUMIFS(Backend!$BB$10:$BB$365,Backend!$K$10:$K$365,Carbon_Savings_By_Profile[[#This Row],[Window glazing]]), IF(AND(Carbon_Savings_By_Profile[[#This Row],[Year]]="Average building",Carbon_Savings_By_Profile[[#This Row],[Window glazing]]="Average building"), SUMIFS(Backend!$BB$10:$BB$365,Backend!$J$10:$J$365,Carbon_Savings_By_Profile[[#This Row],[Ventilation]]), IF(AND(Carbon_Savings_By_Profile[[#This Row],[Year]]="Average building",Carbon_Savings_By_Profile[[#This Row],[Window glazing]]<>"Average building",Carbon_Savings_By_Profile[[#This Row],[Ventilation]]<>"Average building"), SUMIFS(Backend!$BB$10:$BB$365,Backend!$K$10:$K$365,Carbon_Savings_By_Profile[[#This Row],[Window glazing]],Backend!$J$10:$J$365,Carbon_Savings_By_Profile[[#This Row],[Ventilation]]),SUMIFS(Backend!$BB$10:$BB$365,Backend!$H$10:$H$365,Carbon_Savings_By_Profile[[#This Row],[Year]],Backend!$K$10:$K$365,Carbon_Savings_By_Profile[[#This Row],[Window glazing]],Backend!$J$10:$J$365,Carbon_Savings_By_Profile[[#This Row],[Ventilation]]))))) -> 13.62296705 | AA10: =Carbon_Savings_By_Profile[[#This Row],[Aggregated first order effects location-based (kgCO2e/m2/year)]]/Carbon_Savings_By_Profile[[#This Row],[Buildings]] -> 0.006875554606 | AB10: =Carbon_Savings_By_Profile[[#This Row],[Aggregated first order effects market-based (kgCO2e/m2/year)]]/Carbon_Savings_By_Profile[[#This Row],[Buildings]] -> 0.006075619899 | AC10: =Carbon_Savings_By_Profile[[#This Row],[Aggregated first order effects location-based (kgCO2e/year)]]/Carbon_Savings_By_Profile[[#This Row],[Buildings]] -> 7.708304286 | AD10: =Carbon_Savings_By_Profile[[#This Row],[Aggregated first order effects market-based (kgCO2e/building/year)]]/Carbon_Savings_By_Profile[[#This Row],[Buildings]] -> 6.811483523 | AE10: =IF(AND(Carbon_Savings_By_Profile[[#This Row],[Window glazing]]="Average building",Carbon_Savings_By_Profile[[#This Row],[Ventilation]]="Average building"), SUMIFS(Backend!$BE$10:$BE$365,Backend!$H$10:$H$365,Carbon_Savings_By_Profile[[#This Row],[Year]]),IF(AND(Carbon_Savings_By_Profile[[#This Row],[Year]]="Average building",Carbon_Savings_By_Profile[[#This Row],[Ventilation]]="Average building"),SUMIFS(Backend!$BE$10:$BE$365,Backend!$K$10:$K$365,Carbon_Savings_By_Profile[[#This Row],[Window glazing]]), IF(AND(Carbon_Savings_By_Profile[[#This Row],[Year]]="Average building",Carbon_Savings_By_Profile[[#This Row],[Window glazing]]="Average building"), SUMIFS(Backend!$BE$10:$BE$365,Backend!$J$10:$J$365,Carbon_Savings_By_Profile[[#This Row],[Ventilation]]), IF(AND(Carbon_Savings_By_Profile[[#This Row],[Year]]="Average building",Carbon_Savings_By_Profile[[#This Row],[Window glazing]]<>"Average building",Carbon_Savings_By_Profile[[#This Row],[Ventilation]]<>"Average building"), SUMIFS(Backend!$BE$10:$BE$365,Backend!$K$10:$K$365,Carbon_Savings_By_Profile[[#This Row],[Window glazing]],Backend!$J$10:$J$365,Carbon_Savings_By_Profile[[#This Row],[Ventilation]]),SUMIFS(Backend!$BE$10:$BE$365,Backend!$H$10:$H$365,Carbon_Savings_By_Profile[[#This Row],[Year]],Backend!$K$10:$K$365,Carbon_Savings_By_Profile[[#This Row],[Window glazing]],Backend!$J$10:$J$365,Carbon_Savings_By_Profile[[#This Row],[Ventilation]]))))) -> 1.826768891 | AF10: =IF(AND(Carbon_Savings_By_Profile[[#This Row],[Window glazing]]="Average building",Carbon_Savings_By_Profile[[#This Row],[Ventilation]]="Average building"), SUMIFS(Backend!$BF$10:$BF$365,Backend!$H$10:$H$365,Carbon_Savings_By_Profile[[#This Row],[Year]]),IF(AND(Carbon_Savings_By_Profile[[#This Row],[Year]]="Average building",Carbon_Savings_By_Profile[[#This Row],[Ventilation]]="Average building"),SUMIFS(Backend!$BF$10:$BF$365,Backend!$K$10:$K$365,Carbon_Savings_By_Profile[[#This Row],[Window glazing]]), IF(AND(Carbon_Savings_By_Profile[[#This Row],[Year]]="Average building",Carbon_Savings_By_Profile[[#This Row],[Window glazing]]="Average building"), SUMIFS(Backend!$BF$10:$BF$365,Backend!$J$10:$J$365,Carbon_Savings_By_Profile[[#This Row],[Ventilation]]), IF(AND(Carbon_Savings_By_Profile[[#This Row],[Year]]="Average building",Carbon_Savings_By_Profile[[#This Row],[Window glazing]]<>"Average building",Carbon_Savings_By_Profile[[#This Row],[Ventilation]]<>"Average building"), SUMIFS(Backend!$BF$10:$BF$365,Backend!$K$10:$K$365,Carbon_Savings_By_Profile[[#This Row],[Window glazing]],Backend!$J$10:$J$365,Carbon_Savings_By_Profile[[#This Row],[Ventilation]]),SUMIFS(Backend!$BF$10:$BF$365,Backend!$H$10:$H$365,Carbon_Savings_By_Profile[[#This Row],[Year]],Backend!$K$10:$K$365,Carbon_Savings_By_Profile[[#This Row],[Window glazing]],Backend!$J$10:$J$365,Carbon_Savings_By_Profile[[#This Row],[Ventilation]]))))) -> 1.25275476 | AG10: =AE10/F10 -> 0.9133844454 | AH10: =Carbon_Savings_By_Profile[[#This Row],[Net avoided emissions market-based (kgCO2e/m2/year)]]/Carbon_Savings_By_Profile[[#This Row],[Buildings]] -> 0.6263773801 | AI10: =IF(AND(Carbon_Savings_By_Profile[[#This Row],[Window glazing]]="Average building",Carbon_Savings_By_Profile[[#This Row],[Ventilation]]="Average building"), SUMIFS(Backend!$BG$10:$BG$365,Backend!$H$10:$H$365,Carbon_Savings_By_Profile[[#This Row],[Year]]),IF(AND(Carbon_Savings_By_Profile[[#This Row],[Year]]="Average building",Carbon_Savings_By_Profile[[#This Row],[Ventilation]]="Average building"),SUMIFS(Backend!$BG$10:$BG$365,Backend!$K$10:$K$365,Carbon_Savings_By_Profile[[#This Row],[Window glazing]]), IF(AND(Carbon_Savings_By_Profile[[#This Row],[Year]]="Average building",Carbon_Savings_By_Profile[[#This Row],[Window glazing]]="Average building"), SUMIFS(Backend!$BG$10:$BG$365,Backend!$J$10:$J$365,Carbon_Savings_By_Profile[[#This Row],[Ventilation]]), IF(AND(Carbon_Savings_By_Profile[[#This Row],[Year]]="Average building",Carbon_Savings_By_Profile[[#This Row],[Window glazing]]<>"Average building",Carbon_Savings_By_Profile[[#This Row],[Ventilation]]<>"Average building"), SUMIFS(Backend!$BG$10:$BG$365,Backend!$K$10:$K$365,Carbon_Savings_By_Profile[[#This Row],[Window glazing]],Backend!$J$10:$J$365,Carbon_Savings_By_Profile[[#This Row],[Ventilation]]),SUMIFS(Backend!$BG$10:$BG$365,Backend!$H$10:$H$365,Carbon_Savings_By_Profile[[#This Row],[Year]],Backend!$K$10:$K$365,Carbon_Savings_By_Profile[[#This Row],[Window glazing]],Backend!$J$10:$J$365,Carbon_Savings_By_Profile[[#This Row],[Ventilation]]))))) -> 2587.011461 | AJ10: =IF(AND(Carbon_Savings_By_Profile[[#This Row],[Window glazing]]="Average building",Carbon_Savings_By_Profile[[#This Row],[Ventilation]]="Average building"), SUMIFS(Backend!$BH$10:$BH$365,Backend!$H$10:$H$365,Carbon_Savings_By_Profile[[#This Row],[Year]]),IF(AND(Carbon_Savings_By_Profile[[#This Row],[Year]]="Average building",Carbon_Savings_By_Profile[[#This Row],[Ventilation]]="Average building"),SUMIFS(Backend!$BH$10:$BH$365,Backend!$K$10:$K$365,Carbon_Savings_By_Profile[[#This Row],[Window glazing]]), IF(AND(Carbon_Savings_By_Profile[[#This Row],[Year]]="Average building",Carbon_Savings_By_Profile[[#This Row],[Window glazing]]="Average building"), SUMIFS(Backend!$BH$10:$BH$365,Backend!$J$10:$J$365,Carbon_Savings_By_Profile[[#This Row],[Ventilation]]), IF(AND(Carbon_Savings_By_Profile[[#This Row],[Year]]="Average building",Carbon_Savings_By_Profile[[#This Row],[Window glazing]]<>"Average building",Carbon_Savings_By_Profile[[#This Row],[Ventilation]]<>"Average building"), SUMIFS(Backend!$BH$10:$BH$365,Backend!$K$10:$K$365,Carbon_Savings_By_Profile[[#This Row],[Window glazing]],Backend!$J$10:$J$365,Carbon_Savings_By_Profile[[#This Row],[Ventilation]]),SUMIFS(Backend!$BH$10:$BH$365,Backend!$H$10:$H$365,Carbon_Savings_By_Profile[[#This Row],[Year]],Backend!$K$10:$K$365,Carbon_Savings_By_Profile[[#This Row],[Window glazing]],Backend!$J$10:$J$365,Carbon_Savings_By_Profile[[#This Row],[Ventilation]]))))) -> 2139.250569 | AK10: =Carbon_Savings_By_Profile[[#This Row],[Net avoided emissions location-based (kgCO2e/year)]]/Carbon_Savings_By_Profile[[#This Row],[Buildings]] -> 1293.505731 | AL10: =Carbon_Savings_By_Profile[[#This Row],[Net avoided emissions market-based (kgCO2e/year)]]/Carbon_Savings_By_Profile[[#This Row],[Buildings]] -> 1069.625284 | AM10: =IF(Results!$L$15="market-based",Carbon_Savings_By_Profile[[#This Row],[Average net avoided emissions market-based (kgCO2e/m2/year)]],Carbon_Savings_By_Profile[[#This Row],[Average net avoided emissions location-based (kgCO2e/m2/year)]]) -> 0.9133844454 | AN10: =IF(AND(Carbon_Savings_By_Profile[[#This Row],[Window glazing]]="Average building",Carbon_Savings_By_Profile[[#This Row],[Ventilation]]="Average building"), SUMIFS(Table7[Emissions uncertainty per m2 location-based (kgCO2e)],Backend!$H$10:$H$365,Carbon_Savings_By_Profile[[#This Row],[Year]]),IF(AND(Carbon_Savings_By_Profile[[#This Row],[Year]]="Average building",Carbon_Savings_By_Profile[[#This Row],[Ventilation]]="Average building"),SUMIFS(Table7[Emissions uncertainty per m2 location-based (kgCO2e)],Backend!$K$10:$K$365,Carbon_Savings_By_Profile[[#This Row],[Window glazing]]), IF(AND(Carbon_Savings_By_Profile[[#This Row],[Year]]="Average building",Carbon_Savings_By_Profile[[#This Row],[Window glazing]]="Average building"), SUMIFS(Table7[Emissions uncertainty per m2 location-based (kgCO2e)],Backend!$J$10:$J$365,Carbon_Savings_By_Profile[[#This Row],[Ventilation]]), IF(AND(Carbon_Savings_By_Profile[[#This Row],[Year]]="Average building",Carbon_Savings_By_Profile[[#This Row],[Window glazing]]<>"Average building",Carbon_Savings_By_Profile[[#This Row],[Ventilation]]<>"Average building"), SUMIFS(Table7[Emissions uncertainty per m2 location-based (kgCO2e)],Backend!$K$10:$K$365,Carbon_Savings_By_Profile[[#This Row],[Window glazing]],Backend!$J$10:$J$365,Carbon_Savings_By_Profile[[#This Row],[Ventilation]]),SUMIFS(Table7[Emissions uncertainty per m2 location-based (kgCO2e)],Backend!$H$10:$H$365,Carbon_Savings_By_Profile[[#This Row],[Year]],Backend!$K$10:$K$365,Carbon_Savings_By_Profile[[#This Row],[Window glazing]],Backend!$J$10:$J$365,Carbon_Savings_By_Profile[[#This Row],[Ventilation]]))))) -> 0.1220634944 | AO10: =IF(AND(Carbon_Savings_By_Profile[[#This Row],[Window glazing]]="Average building",Carbon_Savings_By_Profile[[#This Row],[Ventilation]]="Average building"), SUMIFS(Table7[Emissions uncertainty per m2 market-based* (kgCO2e)],Backend!$H$10:$H$365,Carbon_Savings_By_Profile[[#This Row],[Year]]),IF(AND(Carbon_Savings_By_Profile[[#This Row],[Year]]="Average building",Carbon_Savings_By_Profile[[#This Row],[Ventilation]]="Average building"),SUMIFS(Table7[Emissions uncertainty per m2 market-based* (kgCO2e)],Backend!$K$10:$K$365,Carbon_Savings_By_Profile[[#This Row],[Window glazing]]), IF(AND(Carbon_Savings_By_Profile[[#This Row],[Year]]="Average building",Carbon_Savings_By_Profile[[#This Row],[Window glazing]]="Average building"), SUMIFS(Table7[Emissions uncertainty per m2 market-based* (kgCO2e)],Backend!$J$10:$J$365,Carbon_Savings_By_Profile[[#This Row],[Ventilation]]), IF(AND(Carbon_Savings_By_Profile[[#This Row],[Year]]="Average building",Carbon_Savings_By_Profile[[#This Row],[Window glazing]]<>"Average building",Carbon_Savings_By_Profile[[#This Row],[Ventilation]]<>"Average building"), SUMIFS(Table7[Emissions uncertainty per m2 market-based* (kgCO2e)],Backend!$K$10:$K$365,Carbon_Savings_By_Profile[[#This Row],[Window glazing]],Backend!$J$10:$J$365,Carbon_Savings_By_Profile[[#This Row],[Ventilation]]),SUMIFS(Table7[Emissions uncertainty per m2 market-based* (kgCO2e)],Backend!$H$10:$H$365,Carbon_Savings_By_Profile[[#This Row],[Year]],Backend!$K$10:$K$365,Carbon_Savings_By_Profile[[#This Row],[Window glazing]],Backend!$J$10:$J$365,Carbon_Savings_By_Profile[[#This Row],[Ventilation]]))))) -> 0.08388870888 | AP10: =Carbon_Savings_By_Profile[[#This Row],[Uncertainty location-based (kgCO2e/m2/year)]]/Carbon_Savings_By_Profile[[#This Row],[Buildings]] -> 0.06103174721 | AQ10: =Carbon_Savings_By_Profile[[#This Row],[Uncertainty market-based (kgCO2e/m2/year)]]/Carbon_Savings_By_Profile[[#This Row],[Buildings]] -> 0.04194435444 | AR10: =((M10-AG10)-M10)/M10 -> -0.1143587558 | AS10: =((I10-AK10)-I10)/I10 -> -0.1195066265
B11: 1920-1944 | C11: Double glazed | D11: ESX | E11: =B11&" - "&C11&" - "&D11 -> 1920-1944 - Double glazed - ESX | F11: =IF(AND(Carbon_Savings_By_Profile[[#This Row],[Window glazing]]="Average building",Carbon_Savings_By_Profile[[#This Row],[Ventilation]]="Average building"), COUNTIFS(Backend!$H$10:$H$365,Carbon_Savings_By_Profile[[#This Row],[Year]]),IF(AND(Carbon_Savings_By_Profile[[#This Row],[Year]]="Average building",Carbon_Savings_By_Profile[[#This Row],[Ventilation]]="Average building"),COUNTIFS(Backend!$K$10:$K$365,Carbon_Savings_By_Profile[[#This Row],[Window glazing]]), IF(AND(Carbon_Savings_By_Profile[[#This Row],[Year]]="Average building",Carbon_Savings_By_Profile[[#This Row],[Window glazing]]="Average building"), COUNTIFS(Backend!$J$10:$J$365,Carbon_Savings_By_Profile[[#This Row],[Ventilation]]), IF(AND(Carbon_Savings_By_Profile[[#This Row],[Year]]="Average building",Carbon_Savings_By_Profile[[#This Row],[Window glazing]]<>"Average building",Carbon_Savings_By_Profile[[#This Row],[Ventilation]]<>"Average building"), COUNTIFS(Backend!$K$10:$K$365,Carbon_Savings_By_Profile[[#This Row],[Window glazing]],Backend!$J$10:$J$365,Carbon_Savings_By_Profile[[#This Row],[Ventilation]]),COUNTIFS(Backend!$H$10:$H$365,Carbon_Savings_By_Profile[[#This Row],[Year]],Backend!$K$10:$K$365,Carbon_Savings_By_Profile[[#This Row],[Window glazing]],Backend!$J$10:$J$365,Carbon_Savings_By_Profile[[#This Row],[Ventilation]]))))) -> 3 | G11: =IF(AND(Carbon_Savings_By_Profile[[#This Row],[Window glazing]]="Average building",Carbon_Savings_By_Profile[[#This Row],[Ventilation]]="Average building"), SUMIFS(Table7[Emissions w/o AI location-based (kgCO2e/building)],Backend!$H$10:$H$365,Carbon_Savings_By_Profile[[#This Row],[Year]]),IF(AND(Carbon_Savings_By_Profile[[#This Row],[Year]]="Average building",Carbon_Savings_By_Profile[[#This Row],[Ventilation]]="Average building"),SUMIFS(Table7[Emissions w/o AI location-based (kgCO2e/building)],Backend!$K$10:$K$365,Carbon_Savings_By_Profile[[#This Row],[Window glazing]]), IF(AND(Carbon_Savings_By_Profile[[#This Row],[Year]]="Average building",Carbon_Savings_By_Profile[[#This Row],[Window glazing]]="Average building"), SUMIFS(Table7[Emissions w/o AI location-based (kgCO2e/building)],Backend!$J$10:$J$365,Carbon_Savings_By_Profile[[#This Row],[Ventilation]]), IF(AND(Carbon_Savings_By_Profile[[#This Row],[Year]]="Average building",Carbon_Savings_By_Profile[[#This Row],[Window glazing]]<>"Average building",Carbon_Savings_By_Profile[[#This Row],[Ventilation]]<>"Average building"), SUMIFS(Table7[Emissions w/o AI location-based (kgCO2e/building)],Backend!$K$10:$K$365,Carbon_Savings_By_Profile[[#This Row],[Window glazing]],Backend!$J$10:$J$365,Carbon_Savings_By_Profile[[#This Row],[Ventilation]]),SUMIFS(Table7[Emissions w/o AI location-based (kgCO2e/building)],Backend!$H$10:$H$365,Carbon_Savings_By_Profile[[#This Row],[Year]],Backend!$K$10:$K$365,Carbon_Savings_By_Profile[[#This Row],[Window glazing]],Backend!$J$10:$J$365,Carbon_Savings_By_Profile[[#This Row],[Ventilation]]))))) -> 38920.49414 | H11: =IF(AND(Carbon_Savings_By_Profile[[#This Row],[Window glazing]]="Average building",Carbon_Savings_By_Profile[[#This Row],[Ventilation]]="Average building"), SUMIFS(Table7[Emissions w/o AI market-based* (kgCO2e/building)],Backend!$H$10:$H$365,Carbon_Savings_By_Profile[[#This Row],[Year]]),IF(AND(Carbon_Savings_By_Profile[[#This Row],[Year]]="Average building",Carbon_Savings_By_Profile[[#This Row],[Ventilation]]="Average building"),SUMIFS(Table7[Emissions w/o AI market-based* (kgCO2e/building)],Backend!$K$10:$K$365,Carbon_Savings_By_Profile[[#This Row],[Window glazing]]), IF(AND(Carbon_Savings_By_Profile[[#This Row],[Year]]="Average building",Carbon_Savings_By_Profile[[#This Row],[Window glazing]]="Average building"), SUMIFS(Table7[Emissions w/o AI market-based* (kgCO2e/building)],Backend!$J$10:$J$365,Carbon_Savings_By_Profile[[#This Row],[Ventilation]]), IF(AND(Carbon_Savings_By_Profile[[#This Row],[Year]]="Average building",Carbon_Savings_By_Profile[[#This Row],[Window glazing]]<>"Average building",Carbon_Savings_By_Profile[[#This Row],[Ventilation]]<>"Average building"), SUMIFS(Table7[Emissions w/o AI market-based* (kgCO2e/building)],Backend!$K$10:$K$365,Carbon_Savings_By_Profile[[#This Row],[Window glazing]],Backend!$J$10:$J$365,Carbon_Savings_By_Profile[[#This Row],[Ventilation]]),SUMIFS(Table7[Emissions w/o AI market-based* (kgCO2e/building)],Backend!$H$10:$H$365,Carbon_Savings_By_Profile[[#This Row],[Year]],Backend!$K$10:$K$365,Carbon_Savings_By_Profile[[#This Row],[Window glazing]],Backend!$J$10:$J$365,Carbon_Savings_By_Profile[[#This Row],[Ventilation]]))))) -> 38920.49414 | I11: =Carbon_Savings_By_Profile[[#This Row],[Emissions w/o AI location-based (kgCO2e/year)]]/Carbon_Savings_By_Profile[[#This Row],[Buildings]] -> 12973.49805 | J11: =Carbon_Savings_By_Profile[[#This Row],[Emissions w/o AI market-based (kgCO2e/year)]]/Carbon_Savings_By_Profile[[#This Row],[Buildings]] -> 12973.49805 | K11: =IF(AND(Carbon_Savings_By_Profile[[#This Row],[Window glazing]]="Average building",Carbon_Savings_By_Profile[[#This Row],[Ventilation]]="Average building"), SUMIFS(Table7[Emissions w/o AI location-based (kgCO2e/m2)],Backend!$H$10:$H$365,Carbon_Savings_By_Profile[[#This Row],[Year]]),IF(AND(Carbon_Savings_By_Profile[[#This Row],[Year]]="Average building",Carbon_Savings_By_Profile[[#This Row],[Ventilation]]="Average building"),SUMIFS(Table7[Emissions w/o AI location-based (kgCO2e/m2)],Backend!$K$10:$K$365,Carbon_Savings_By_Profile[[#This Row],[Window glazing]]), IF(AND(Carbon_Savings_By_Profile[[#This Row],[Year]]="Average building",Carbon_Savings_By_Profile[[#This Row],[Window glazing]]="Average building"), SUMIFS(Table7[Emissions w/o AI location-based (kgCO2e/m2)],Backend!$J$10:$J$365,Carbon_Savings_By_Profile[[#This Row],[Ventilation]]), IF(AND(Carbon_Savings_By_Profile[[#This Row],[Year]]="Average building",Carbon_Savings_By_Profile[[#This Row],[Window glazing]]<>"Average building",Carbon_Savings_By_Profile[[#This Row],[Ventilation]]<>"Average building"), SUMIFS(Table7[Emissions w/o AI location-based (kgCO2e/m2)],Backend!$K$10:$K$365,Carbon_Savings_By_Profile[[#This Row],[Window glazing]],Backend!$J$10:$J$365,Carbon_Savings_By_Profile[[#This Row],[Ventilation]]),SUMIFS(Table7[Emissions w/o AI location-based (kgCO2e/m2)],Backend!$H$10:$H$365,Carbon_Savings_By_Profile[[#This Row],[Year]],Backend!$K$10:$K$365,Carbon_Savings_By_Profile[[#This Row],[Window glazing]],Backend!$J$10:$J$365,Carbon_Savings_By_Profile[[#This Row],[Ventilation]]))))) -> 28.73344976 | L11: =IF(AND(Carbon_Savings_By_Profile[[#This Row],[Window glazing]]="Average building",Carbon_Savings_By_Profile[[#This Row],[Ventilation]]="Average building"), SUMIFS(Table7[Emissions w/o AI market-based* (kgCO2e/m2)],Backend!$H$10:$H$365,Carbon_Savings_By_Profile[[#This Row],[Year]]),IF(AND(Carbon_Savings_By_Profile[[#This Row],[Year]]="Average building",Carbon_Savings_By_Profile[[#This Row],[Ventilation]]="Average building"),SUMIFS(Table7[Emissions w/o AI market-based* (kgCO2e/m2)],Backend!$K$10:$K$365,Carbon_Savings_By_Profile[[#This Row],[Window glazing]]), IF(AND(Carbon_Savings_By_Profile[[#This Row],[Year]]="Average building",Carbon_Savings_By_Profile[[#This Row],[Window glazing]]="Average building"), SUMIFS(Table7[Emissions w/o AI market-based* (kgCO2e/m2)],Backend!$J$10:$J$365,Carbon_Savings_By_Profile[[#This Row],[Ventilation]]), IF(AND(Carbon_Savings_By_Profile[[#This Row],[Year]]="Average building",Carbon_Savings_By_Profile[[#This Row],[Window glazing]]<>"Average building",Carbon_Savings_By_Profile[[#This Row],[Ventilation]]<>"Average building"), SUMIFS(Table7[Emissions w/o AI market-based* (kgCO2e/m2)],Backend!$K$10:$K$365,Carbon_Savings_By_Profile[[#This Row],[Window glazing]],Backend!$J$10:$J$365,Carbon_Savings_By_Profile[[#This Row],[Ventilation]]),SUMIFS(Table7[Emissions w/o AI market-based* (kgCO2e/m2)],Backend!$H$10:$H$365,Carbon_Savings_By_Profile[[#This Row],[Year]],Backend!$K$10:$K$365,Carbon_Savings_By_Profile[[#This Row],[Window glazing]],Backend!$J$10:$J$365,Carbon_Savings_By_Profile[[#This Row],[Ventilation]]))))) -> 28.73344976 | M11: =Carbon_Savings_By_Profile[[#This Row],[Emissions w/o AI location-based (kgCO2e/m2/year)]]/Carbon_Savings_By_Profile[[#This Row],[Buildings]] -> 9.577816587 | N11: =Carbon_Savings_By_Profile[[#This Row],[Emissions w/o AI market-based (kgCO2e/m2/year)]]/Carbon_Savings_By_Profile[[#This Row],[Buildings]] -> 9.577816587 | O11: =IF(AND(Carbon_Savings_By_Profile[[#This Row],[Window glazing]]="Average building",Carbon_Savings_By_Profile[[#This Row],[Ventilation]]="Average building"), SUMIFS(Backend!$AG$10:$AG$365,Backend!$H$10:$H$365,Carbon_Savings_By_Profile[[#This Row],[Year]]),IF(AND(Carbon_Savings_By_Profile[[#This Row],[Year]]="Average building",Carbon_Savings_By_Profile[[#This Row],[Ventilation]]="Average building"),SUMIFS(Backend!$AG$10:$AG$365,Backend!$K$10:$K$365,Carbon_Savings_By_Profile[[#This Row],[Window glazing]]), IF(AND(Carbon_Savings_By_Profile[[#This Row],[Year]]="Average building",Carbon_Savings_By_Profile[[#This Row],[Window glazing]]="Average building"), SUMIFS(Backend!$AG$10:$AG$365,Backend!$J$10:$J$365,Carbon_Savings_By_Profile[[#This Row],[Ventilation]]), IF(AND(Carbon_Savings_By_Profile[[#This Row],[Year]]="Average building",Carbon_Savings_By_Profile[[#This Row],[Window glazing]]<>"Average building",Carbon_Savings_By_Profile[[#This Row],[Ventilation]]<>"Average building"), SUMIFS(Backend!$AG$10:$AG$365,Backend!$K$10:$K$365,Carbon_Savings_By_Profile[[#This Row],[Window glazing]],Backend!$J$10:$J$365,Carbon_Savings_By_Profile[[#This Row],[Ventilation]]),SUMIFS(Backend!$AG$10:$AG$365,Backend!$H$10:$H$365,Carbon_Savings_By_Profile[[#This Row],[Year]],Backend!$K$10:$K$365,Carbon_Savings_By_Profile[[#This Row],[Window glazing]],Backend!$J$10:$J$365,Carbon_Savings_By_Profile[[#This Row],[Ventilation]]))))) -> 2.3782 | P11: =IF(AND(Carbon_Savings_By_Profile[[#This Row],[Window glazing]]="Average building",Carbon_Savings_By_Profile[[#This Row],[Ventilation]]="Average building"), SUMIFS(Backend!$AH$10:$AH$365,Backend!$H$10:$H$365,Carbon_Savings_By_Profile[[#This Row],[Year]]),IF(AND(Carbon_Savings_By_Profile[[#This Row],[Year]]="Average building",Carbon_Savings_By_Profile[[#This Row],[Ventilation]]="Average building"),SUMIFS(Backend!$AH$10:$AH$365,Backend!$K$10:$K$365,Carbon_Savings_By_Profile[[#This Row],[Window glazing]]), IF(AND(Carbon_Savings_By_Profile[[#This Row],[Year]]="Average building",Carbon_Savings_By_Profile[[#This Row],[Window glazing]]="Average building"), SUMIFS(Backend!$AH$10:$AH$365,Backend!$J$10:$J$365,Carbon_Savings_By_Profile[[#This Row],[Ventilation]]), IF(AND(Carbon_Savings_By_Profile[[#This Row],[Year]]="Average building",Carbon_Savings_By_Profile[[#This Row],[Window glazing]]<>"Average building",Carbon_Savings_By_Profile[[#This Row],[Ventilation]]<>"Average building"), SUMIFS(Backend!$AH$10:$AH$365,Backend!$K$10:$K$365,Carbon_Savings_By_Profile[[#This Row],[Window glazing]],Backend!$J$10:$J$365,Carbon_Savings_By_Profile[[#This Row],[Ventilation]]),SUMIFS(Backend!$AH$10:$AH$365,Backend!$H$10:$H$365,Carbon_Savings_By_Profile[[#This Row],[Year]],Backend!$K$10:$K$365,Carbon_Savings_By_Profile[[#This Row],[Window glazing]],Backend!$J$10:$J$365,Carbon_Savings_By_Profile[[#This Row],[Ventilation]]))))) -> 1.257626 | Q11: =IF(AND(Carbon_Savings_By_Profile[[#This Row],[Window glazing]]="Average building",Carbon_Savings_By_Profile[[#This Row],[Ventilation]]="Average building"), SUMIFS(Backend!$AI$10:$AI$365,Backend!$H$10:$H$365,Carbon_Savings_By_Profile[[#This Row],[Year]]),IF(AND(Carbon_Savings_By_Profile[[#This Row],[Year]]="Average building",Carbon_Savings_By_Profile[[#This Row],[Ventilation]]="Average building"),SUMIFS(Backend!$AI$10:$AI$365,Backend!$K$10:$K$365,Carbon_Savings_By_Profile[[#This Row],[Window glazing]]), IF(AND(Carbon_Savings_By_Profile[[#This Row],[Year]]="Average building",Carbon_Savings_By_Profile[[#This Row],[Window glazing]]="Average building"), SUMIFS(Backend!$AI$10:$AI$365,Backend!$J$10:$J$365,Carbon_Savings_By_Profile[[#This Row],[Ventilation]]), IF(AND(Carbon_Savings_By_Profile[[#This Row],[Year]]="Average building",Carbon_Savings_By_Profile[[#This Row],[Window glazing]]<>"Average building",Carbon_Savings_By_Profile[[#This Row],[Ventilation]]<>"Average building"), SUMIFS(Backend!$AI$10:$AI$365,Backend!$K$10:$K$365,Carbon_Savings_By_Profile[[#This Row],[Window glazing]],Backend!$J$10:$J$365,Carbon_Savings_By_Profile[[#This Row],[Ventilation]]),SUMIFS(Backend!$AI$10:$AI$365,Backend!$H$10:$H$365,Carbon_Savings_By_Profile[[#This Row],[Year]],Backend!$K$10:$K$365,Carbon_Savings_By_Profile[[#This Row],[Window glazing]],Backend!$J$10:$J$365,Carbon_Savings_By_Profile[[#This Row],[Ventilation]]))))) -> 3408.33801 | R11: =IF(AND(Carbon_Savings_By_Profile[[#This Row],[Window glazing]]="Average building",Carbon_Savings_By_Profile[[#This Row],[Ventilation]]="Average building"), SUMIFS(Backend!$AJ$10:$AJ$365,Backend!$H$10:$H$365,Carbon_Savings_By_Profile[[#This Row],[Year]]),IF(AND(Carbon_Savings_By_Profile[[#This Row],[Year]]="Average building",Carbon_Savings_By_Profile[[#This Row],[Ventilation]]="Average building"),SUMIFS(Backend!$AJ$10:$AJ$365,Backend!$K$10:$K$365,Carbon_Savings_By_Profile[[#This Row],[Window glazing]]), IF(AND(Carbon_Savings_By_Profile[[#This Row],[Year]]="Average building",Carbon_Savings_By_Profile[[#This Row],[Window glazing]]="Average building"), SUMIFS(Backend!$AJ$10:$AJ$365,Backend!$J$10:$J$365,Carbon_Savings_By_Profile[[#This Row],[Ventilation]]), IF(AND(Carbon_Savings_By_Profile[[#This Row],[Year]]="Average building",Carbon_Savings_By_Profile[[#This Row],[Window glazing]]<>"Average building",Carbon_Savings_By_Profile[[#This Row],[Ventilation]]<>"Average building"), SUMIFS(Backend!$AJ$10:$AJ$365,Backend!$K$10:$K$365,Carbon_Savings_By_Profile[[#This Row],[Window glazing]],Backend!$J$10:$J$365,Carbon_Savings_By_Profile[[#This Row],[Ventilation]]),SUMIFS(Backend!$AJ$10:$AJ$365,Backend!$H$10:$H$365,Carbon_Savings_By_Profile[[#This Row],[Year]],Backend!$K$10:$K$365,Carbon_Savings_By_Profile[[#This Row],[Window glazing]],Backend!$J$10:$J$365,Carbon_Savings_By_Profile[[#This Row],[Ventilation]]))))) -> 2943.204432 | S11: =Carbon_Savings_By_Profile[[#This Row],[Avoided emissions location-based (kgCO2e/m2/year) ]]/Carbon_Savings_By_Profile[[#This Row],[Buildings]] -> 0.7927333333 | T11: =Carbon_Savings_By_Profile[[#This Row],[Avoided emissions market-based (kgCO2e/m2/year)]]/Carbon_Savings_By_Profile[[#This Row],[Buildings]] -> 0.4192086667 | U11: =Carbon_Savings_By_Profile[[#This Row],[Avoided emissions location-based (kgCO2e/building/year)]]/Carbon_Savings_By_Profile[[#This Row],[Buildings]] -> 1136.11267 | V11: =Carbon_Savings_By_Profile[[#This Row],[Avoided emissions market-based (kgCO2e/building/year)]]/Carbon_Savings_By_Profile[[#This Row],[Buildings]] -> 981.068144 | W11: =IF(AND(Carbon_Savings_By_Profile[[#This Row],[Window glazing]]="Average building",Carbon_Savings_By_Profile[[#This Row],[Ventilation]]="Average building"), SUMIFS(Backend!$AY$10:$AY$365,Backend!$H$10:$H$365,Carbon_Savings_By_Profile[[#This Row],[Year]]),IF(AND(Carbon_Savings_By_Profile[[#This Row],[Year]]="Average building",Carbon_Savings_By_Profile[[#This Row],[Ventilation]]="Average building"),SUMIFS(Backend!$AY$10:$AY$365,Backend!$K$10:$K$365,Carbon_Savings_By_Profile[[#This Row],[Window glazing]]), IF(AND(Carbon_Savings_By_Profile[[#This Row],[Year]]="Average building",Carbon_Savings_By_Profile[[#This Row],[Window glazing]]="Average building"), SUMIFS(Backend!$AY$10:$AY$365,Backend!$J$10:$J$365,Carbon_Savings_By_Profile[[#This Row],[Ventilation]]), IF(AND(Carbon_Savings_By_Profile[[#This Row],[Year]]="Average building",Carbon_Savings_By_Profile[[#This Row],[Window glazing]]<>"Average building",Carbon_Savings_By_Profile[[#This Row],[Ventilation]]<>"Average building"), SUMIFS(Backend!$AY$10:$AY$365,Backend!$K$10:$K$365,Carbon_Savings_By_Profile[[#This Row],[Window glazing]],Backend!$J$10:$J$365,Carbon_Savings_By_Profile[[#This Row],[Ventilation]]),SUMIFS(Backend!$AY$10:$AY$365,Backend!$H$10:$H$365,Carbon_Savings_By_Profile[[#This Row],[Year]],Backend!$K$10:$K$365,Carbon_Savings_By_Profile[[#This Row],[Window glazing]],Backend!$J$10:$J$365,Carbon_Savings_By_Profile[[#This Row],[Ventilation]]))))) -> 0.03971962206 | X11: =IF(AND(Carbon_Savings_By_Profile[[#This Row],[Window glazing]]="Average building",Carbon_Savings_By_Profile[[#This Row],[Ventilation]]="Average building"), SUMIFS(Backend!$AZ$10:$AZ$365,Backend!$H$10:$H$365,Carbon_Savings_By_Profile[[#This Row],[Year]]),IF(AND(Carbon_Savings_By_Profile[[#This Row],[Year]]="Average building",Carbon_Savings_By_Profile[[#This Row],[Ventilation]]="Average building"),SUMIFS(Backend!$AZ$10:$AZ$365,Backend!$K$10:$K$365,Carbon_Savings_By_Profile[[#This Row],[Window glazing]]), IF(AND(Carbon_Savings_By_Profile[[#This Row],[Year]]="Average building",Carbon_Savings_By_Profile[[#This Row],[Window glazing]]="Average building"), SUMIFS(Backend!$AZ$10:$AZ$365,Backend!$J$10:$J$365,Carbon_Savings_By_Profile[[#This Row],[Ventilation]]), IF(AND(Carbon_Savings_By_Profile[[#This Row],[Year]]="Average building",Carbon_Savings_By_Profile[[#This Row],[Window glazing]]<>"Average building",Carbon_Savings_By_Profile[[#This Row],[Ventilation]]<>"Average building"), SUMIFS(Backend!$AZ$10:$AZ$365,Backend!$K$10:$K$365,Carbon_Savings_By_Profile[[#This Row],[Window glazing]],Backend!$J$10:$J$365,Carbon_Savings_By_Profile[[#This Row],[Ventilation]]),SUMIFS(Backend!$AZ$10:$AZ$365,Backend!$H$10:$H$365,Carbon_Savings_By_Profile[[#This Row],[Year]],Backend!$K$10:$K$365,Carbon_Savings_By_Profile[[#This Row],[Window glazing]],Backend!$J$10:$J$365,Carbon_Savings_By_Profile[[#This Row],[Ventilation]]))))) -> 0.03517242561 | Y11: =IF(AND(Carbon_Savings_By_Profile[[#This Row],[Window glazing]]="Average building",Carbon_Savings_By_Profile[[#This Row],[Ventilation]]="Average building"), SUMIFS(Backend!$BA$10:$BA$365,Backend!$H$10:$H$365,Carbon_Savings_By_Profile[[#This Row],[Year]]),IF(AND(Carbon_Savings_By_Profile[[#This Row],[Year]]="Average building",Carbon_Savings_By_Profile[[#This Row],[Ventilation]]="Average building"),SUMIFS(Backend!$BA$10:$BA$365,Backend!$K$10:$K$365,Carbon_Savings_By_Profile[[#This Row],[Window glazing]]), IF(AND(Carbon_Savings_By_Profile[[#This Row],[Year]]="Average building",Carbon_Savings_By_Profile[[#This Row],[Window glazing]]="Average building"), SUMIFS(Backend!$BA$10:$BA$365,Backend!$J$10:$J$365,Carbon_Savings_By_Profile[[#This Row],[Ventilation]]), IF(AND(Carbon_Savings_By_Profile[[#This Row],[Year]]="Average building",Carbon_Savings_By_Profile[[#This Row],[Window glazing]]<>"Average building",Carbon_Savings_By_Profile[[#This Row],[Ventilation]]<>"Average building"), SUMIFS(Backend!$BA$10:$BA$365,Backend!$K$10:$K$365,Carbon_Savings_By_Profile[[#This Row],[Window glazing]],Backend!$J$10:$J$365,Carbon_Savings_By_Profile[[#This Row],[Ventilation]]),SUMIFS(Backend!$BA$10:$BA$365,Backend!$H$10:$H$365,Carbon_Savings_By_Profile[[#This Row],[Year]],Backend!$K$10:$K$365,Carbon_Savings_By_Profile[[#This Row],[Window glazing]],Backend!$J$10:$J$365,Carbon_Savings_By_Profile[[#This Row],[Ventilation]]))))) -> 24.42790754 | Z11: =IF(AND(Carbon_Savings_By_Profile[[#This Row],[Window glazing]]="Average building",Carbon_Savings_By_Profile[[#This Row],[Ventilation]]="Average building"), SUMIFS(Backend!$BB$10:$BB$365,Backend!$H$10:$H$365,Carbon_Savings_By_Profile[[#This Row],[Year]]),IF(AND(Carbon_Savings_By_Profile[[#This Row],[Year]]="Average building",Carbon_Savings_By_Profile[[#This Row],[Ventilation]]="Average building"),SUMIFS(Backend!$BB$10:$BB$365,Backend!$K$10:$K$365,Carbon_Savings_By_Profile[[#This Row],[Window glazing]]), IF(AND(Carbon_Savings_By_Profile[[#This Row],[Year]]="Average building",Carbon_Savings_By_Profile[[#This Row],[Window glazing]]="Average building"), SUMIFS(Backend!$BB$10:$BB$365,Backend!$J$10:$J$365,Carbon_Savings_By_Profile[[#This Row],[Ventilation]]), IF(AND(Carbon_Savings_By_Profile[[#This Row],[Year]]="Average building",Carbon_Savings_By_Profile[[#This Row],[Window glazing]]<>"Average building",Carbon_Savings_By_Profile[[#This Row],[Ventilation]]<>"Average building"), SUMIFS(Backend!$BB$10:$BB$365,Backend!$K$10:$K$365,Carbon_Savings_By_Profile[[#This Row],[Window glazing]],Backend!$J$10:$J$365,Carbon_Savings_By_Profile[[#This Row],[Ventilation]]),SUMIFS(Backend!$BB$10:$BB$365,Backend!$H$10:$H$365,Carbon_Savings_By_Profile[[#This Row],[Year]],Backend!$K$10:$K$365,Carbon_Savings_By_Profile[[#This Row],[Window glazing]],Backend!$J$10:$J$365,Carbon_Savings_By_Profile[[#This Row],[Ventilation]]))))) -> 21.73744525 | AA11: =Carbon_Savings_By_Profile[[#This Row],[Aggregated first order effects location-based (kgCO2e/m2/year)]]/Carbon_Savings_By_Profile[[#This Row],[Buildings]] -> 0.01323987402 | AB11: =Carbon_Savings_By_Profile[[#This Row],[Aggregated first order effects market-based (kgCO2e/m2/year)]]/Carbon_Savings_By_Profile[[#This Row],[Buildings]] -> 0.01172414187 | AC11: =Carbon_Savings_By_Profile[[#This Row],[Aggregated first order effects location-based (kgCO2e/year)]]/Carbon_Savings_By_Profile[[#This Row],[Buildings]] -> 8.142635848 | AD11: =Carbon_Savings_By_Profile[[#This Row],[Aggregated first order effects market-based (kgCO2e/building/year)]]/Carbon_Savings_By_Profile[[#This Row],[Buildings]] -> 7.245815085 | AE11: =IF(AND(Carbon_Savings_By_Profile[[#This Row],[Window glazing]]="Average building",Carbon_Savings_By_Profile[[#This Row],[Ventilation]]="Average building"), SUMIFS(Backend!$BE$10:$BE$365,Backend!$H$10:$H$365,Carbon_Savings_By_Profile[[#This Row],[Year]]),IF(AND(Carbon_Savings_By_Profile[[#This Row],[Year]]="Average building",Carbon_Savings_By_Profile[[#This Row],[Ventilation]]="Average building"),SUMIFS(Backend!$BE$10:$BE$365,Backend!$K$10:$K$365,Carbon_Savings_By_Profile[[#This Row],[Window glazing]]), IF(AND(Carbon_Savings_By_Profile[[#This Row],[Year]]="Average building",Carbon_Savings_By_Profile[[#This Row],[Window glazing]]="Average building"), SUMIFS(Backend!$BE$10:$BE$365,Backend!$J$10:$J$365,Carbon_Savings_By_Profile[[#This Row],[Ventilation]]), IF(AND(Carbon_Savings_By_Profile[[#This Row],[Year]]="Average building",Carbon_Savings_By_Profile[[#This Row],[Window glazing]]<>"Average building",Carbon_Savings_By_Profile[[#This Row],[Ventilation]]<>"Average building"), SUMIFS(Backend!$BE$10:$BE$365,Backend!$K$10:$K$365,Carbon_Savings_By_Profile[[#This Row],[Window glazing]],Backend!$J$10:$J$365,Carbon_Savings_By_Profile[[#This Row],[Ventilation]]),SUMIFS(Backend!$BE$10:$BE$365,Backend!$H$10:$H$365,Carbon_Savings_By_Profile[[#This Row],[Year]],Backend!$K$10:$K$365,Carbon_Savings_By_Profile[[#This Row],[Window glazing]],Backend!$J$10:$J$365,Carbon_Savings_By_Profile[[#This Row],[Ventilation]]))))) -> 2.338480378 | AF11: =IF(AND(Carbon_Savings_By_Profile[[#This Row],[Window glazing]]="Average building",Carbon_Savings_By_Profile[[#This Row],[Ventilation]]="Average building"), SUMIFS(Backend!$BF$10:$BF$365,Backend!$H$10:$H$365,Carbon_Savings_By_Profile[[#This Row],[Year]]),IF(AND(Carbon_Savings_By_Profile[[#This Row],[Year]]="Average building",Carbon_Savings_By_Profile[[#This Row],[Ventilation]]="Average building"),SUMIFS(Backend!$BF$10:$BF$365,Backend!$K$10:$K$365,Carbon_Savings_By_Profile[[#This Row],[Window glazing]]), IF(AND(Carbon_Savings_By_Profile[[#This Row],[Year]]="Average building",Carbon_Savings_By_Profile[[#This Row],[Window glazing]]="Average building"), SUMIFS(Backend!$BF$10:$BF$365,Backend!$J$10:$J$365,Carbon_Savings_By_Profile[[#This Row],[Ventilation]]), IF(AND(Carbon_Savings_By_Profile[[#This Row],[Year]]="Average building",Carbon_Savings_By_Profile[[#This Row],[Window glazing]]<>"Average building",Carbon_Savings_By_Profile[[#This Row],[Ventilation]]<>"Average building"), SUMIFS(Backend!$BF$10:$BF$365,Backend!$K$10:$K$365,Carbon_Savings_By_Profile[[#This Row],[Window glazing]],Backend!$J$10:$J$365,Carbon_Savings_By_Profile[[#This Row],[Ventilation]]),SUMIFS(Backend!$BF$10:$BF$365,Backend!$H$10:$H$365,Carbon_Savings_By_Profile[[#This Row],[Year]],Backend!$K$10:$K$365,Carbon_Savings_By_Profile[[#This Row],[Window glazing]],Backend!$J$10:$J$365,Carbon_Savings_By_Profile[[#This Row],[Ventilation]]))))) -> 1.222453574 | AG11: 0.7794934593 | AH11: =Carbon_Savings_By_Profile[[#This Row],[Net avoided emissions market-based (kgCO2e/m2/year)]]/Carbon_Savings_By_Profile[[#This Row],[Buildings]] -> 0.4074845248 | AI11: =IF(AND(Carbon_Savings_By_Profile[[#This Row],[Window glazing]]="Average building",Carbon_Savings_By_Profile[[#This Row],[Ventilation]]="Average building"), SUMIFS(Backend!$BG$10:$BG$365,Backend!$H$10:$H$365,Carbon_Savings_By_Profile[[#This Row],[Year]]),IF(AND(Carbon_Savings_By_Profile[[#This Row],[Year]]="Average building",Carbon_Savings_By_Profile[[#This Row],[Ventilation]]="Average building"),SUMIFS(Backend!$BG$10:$BG$365,Backend!$K$10:$K$365,Carbon_Savings_By_Profile[[#This Row],[Window glazing]]), IF(AND(Carbon_Savings_By_Profile[[#This Row],[Year]]="Average building",Carbon_Savings_By_Profile[[#This Row],[Window glazing]]="Average building"), SUMIFS(Backend!$BG$10:$BG$365,Backend!$J$10:$J$365,Carbon_Savings_By_Profile[[#This Row],[Ventilation]]), IF(AND(Carbon_Savings_By_Profile[[#This Row],[Year]]="Average building",Carbon_Savings_By_Profile[[#This Row],[Window glazing]]<>"Average building",Carbon_Savings_By_Profile[[#This Row],[Ventilation]]<>"Average building"), SUMIFS(Backend!$BG$10:$BG$365,Backend!$K$10:$K$365,Carbon_Savings_By_Profile[[#This Row],[Window glazing]],Backend!$J$10:$J$365,Carbon_Savings_By_Profile[[#This Row],[Ventilation]]),SUMIFS(Backend!$BG$10:$BG$365,Backend!$H$10:$H$365,Carbon_Savings_By_Profile[[#This Row],[Year]],Backend!$K$10:$K$365,Carbon_Savings_By_Profile[[#This Row],[Window glazing]],Backend!$J$10:$J$365,Carbon_Savings_By_Profile[[#This Row],[Ventilation]]))))) -> 3383.910102 | AJ11: =IF(AND(Carbon_Savings_By_Profile[[#This Row],[Window glazing]]="Average building",Carbon_Savings_By_Profile[[#This Row],[Ventilation]]="Average building"), SUMIFS(Backend!$BH$10:$BH$365,Backend!$H$10:$H$365,Carbon_Savings_By_Profile[[#This Row],[Year]]),IF(AND(Carbon_Savings_By_Profile[[#This Row],[Year]]="Average building",Carbon_Savings_By_Profile[[#This Row],[Ventilation]]="Average building"),SUMIFS(Backend!$BH$10:$BH$365,Backend!$K$10:$K$365,Carbon_Savings_By_Profile[[#This Row],[Window glazing]]), IF(AND(Carbon_Savings_By_Profile[[#This Row],[Year]]="Average building",Carbon_Savings_By_Profile[[#This Row],[Window glazing]]="Average building"), SUMIFS(Backend!$BH$10:$BH$365,Backend!$J$10:$J$365,Carbon_Savings_By_Profile[[#This Row],[Ventilation]]), IF(AND(Carbon_Savings_By_Profile[[#This Row],[Year]]="Average building",Carbon_Savings_By_Profile[[#This Row],[Window glazing]]<>"Average building",Carbon_Savings_By_Profile[[#This Row],[Ventilation]]<>"Average building"), SUMIFS(Backend!$BH$10:$BH$365,Backend!$K$10:$K$365,Carbon_Savings_By_Profile[[#This Row],[Window glazing]],Backend!$J$10:$J$365,Carbon_Savings_By_Profile[[#This Row],[Ventilation]]),SUMIFS(Backend!$BH$10:$BH$365,Backend!$H$10:$H$365,Carbon_Savings_By_Profile[[#This Row],[Year]],Backend!$K$10:$K$365,Carbon_Savings_By_Profile[[#This Row],[Window glazing]],Backend!$J$10:$J$365,Carbon_Savings_By_Profile[[#This Row],[Ventilation]]))))) -> 2921.466987 | AK11: =Carbon_Savings_By_Profile[[#This Row],[Net avoided emissions location-based (kgCO2e/year)]]/Carbon_Savings_By_Profile[[#This Row],[Buildings]] -> 1127.970034 | AL11: =Carbon_Savings_By_Profile[[#This Row],[Net avoided emissions market-based (kgCO2e/year)]]/Carbon_Savings_By_Profile[[#This Row],[Buildings]] -> 973.8223289 | AM11: =IF(Results!$L$15="market-based",Carbon_Savings_By_Profile[[#This Row],[Average net avoided emissions market-based (kgCO2e/m2/year)]],Carbon_Savings_By_Profile[[#This Row],[Average net avoided emissions location-based (kgCO2e/m2/year)]]) -> 0.7794934593 | AN11: =IF(AND(Carbon_Savings_By_Profile[[#This Row],[Window glazing]]="Average building",Carbon_Savings_By_Profile[[#This Row],[Ventilation]]="Average building"), SUMIFS(Table7[Emissions uncertainty per m2 location-based (kgCO2e)],Backend!$H$10:$H$365,Carbon_Savings_By_Profile[[#This Row],[Year]]),IF(AND(Carbon_Savings_By_Profile[[#This Row],[Year]]="Average building",Carbon_Savings_By_Profile[[#This Row],[Ventilation]]="Average building"),SUMIFS(Table7[Emissions uncertainty per m2 location-based (kgCO2e)],Backend!$K$10:$K$365,Carbon_Savings_By_Profile[[#This Row],[Window glazing]]), IF(AND(Carbon_Savings_By_Profile[[#This Row],[Year]]="Average building",Carbon_Savings_By_Profile[[#This Row],[Window glazing]]="Average building"), SUMIFS(Table7[Emissions uncertainty per m2 location-based (kgCO2e)],Backend!$J$10:$J$365,Carbon_Savings_By_Profile[[#This Row],[Ventilation]]), IF(AND(Carbon_Savings_By_Profile[[#This Row],[Year]]="Average building",Carbon_Savings_By_Profile[[#This Row],[Window glazing]]<>"Average building",Carbon_Savings_By_Profile[[#This Row],[Ventilation]]<>"Average building"), SUMIFS(Table7[Emissions uncertainty per m2 location-based (kgCO2e)],Backend!$K$10:$K$365,Carbon_Savings_By_Profile[[#This Row],[Window glazing]],Backend!$J$10:$J$365,Carbon_Savings_By_Profile[[#This Row],[Ventilation]]),SUMIFS(Table7[Emissions uncertainty per m2 location-based (kgCO2e)],Backend!$H$10:$H$365,Carbon_Savings_By_Profile[[#This Row],[Year]],Backend!$K$10:$K$365,Carbon_Savings_By_Profile[[#This Row],[Window glazing]],Backend!$J$10:$J$365,Carbon_Savings_By_Profile[[#This Row],[Ventilation]]))))) -> 0.1577224928 | AO11: =IF(AND(Carbon_Savings_By_Profile[[#This Row],[Window glazing]]="Average building",Carbon_Savings_By_Profile[[#This Row],[Ventilation]]="Average building"), SUMIFS(Table7[Emissions uncertainty per m2 market-based* (kgCO2e)],Backend!$H$10:$H$365,Carbon_Savings_By_Profile[[#This Row],[Year]]),IF(AND(Carbon_Savings_By_Profile[[#This Row],[Year]]="Average building",Carbon_Savings_By_Profile[[#This Row],[Ventilation]]="Average building"),SUMIFS(Table7[Emissions uncertainty per m2 market-based* (kgCO2e)],Backend!$K$10:$K$365,Carbon_Savings_By_Profile[[#This Row],[Window glazing]]), IF(AND(Carbon_Savings_By_Profile[[#This Row],[Year]]="Average building",Carbon_Savings_By_Profile[[#This Row],[Window glazing]]="Average building"), SUMIFS(Table7[Emissions uncertainty per m2 market-based* (kgCO2e)],Backend!$J$10:$J$365,Carbon_Savings_By_Profile[[#This Row],[Ventilation]]), IF(AND(Carbon_Savings_By_Profile[[#This Row],[Year]]="Average building",Carbon_Savings_By_Profile[[#This Row],[Window glazing]]<>"Average building",Carbon_Savings_By_Profile[[#This Row],[Ventilation]]<>"Average building"), SUMIFS(Table7[Emissions uncertainty per m2 market-based* (kgCO2e)],Backend!$K$10:$K$365,Carbon_Savings_By_Profile[[#This Row],[Window glazing]],Backend!$J$10:$J$365,Carbon_Savings_By_Profile[[#This Row],[Ventilation]]),SUMIFS(Table7[Emissions uncertainty per m2 market-based* (kgCO2e)],Backend!$H$10:$H$365,Carbon_Savings_By_Profile[[#This Row],[Year]],Backend!$K$10:$K$365,Carbon_Savings_By_Profile[[#This Row],[Window glazing]],Backend!$J$10:$J$365,Carbon_Savings_By_Profile[[#This Row],[Ventilation]]))))) -> 0.08340589845 | AP11: =Carbon_Savings_By_Profile[[#This Row],[Uncertainty location-based (kgCO2e/m2/year)]]/Carbon_Savings_By_Profile[[#This Row],[Buildings]] -> 0.05257416426 | AQ11: =Carbon_Savings_By_Profile[[#This Row],[Uncertainty market-based (kgCO2e/m2/year)]]/Carbon_Savings_By_Profile[[#This Row],[Buildings]] -> 0.02780196615 | AR11: =((M11-AG11)-M11)/M11 -> -0.08138529823 | AS11: =((I11-AK11)-I11)/I11 -> -0.08694417112
B12: 1920-1944 | C12: Double glazed | D12: Exhaust | E12: 1920-1944 - Double glazed - Exhaust | F12: =IF(AND(Carbon_Savings_By_Profile[[#This Row],[Window glazing]]="Average building",Carbon_Savings_By_Profile[[#This Row],[Ventilation]]="Average building"), COUNTIFS(Backend!$H$10:$H$365,Carbon_Savings_By_Profile[[#This Row],[Year]]),IF(AND(Carbon_Savings_By_Profile[[#This Row],[Year]]="Average building",Carbon_Savings_By_Profile[[#This Row],[Ventilation]]="Average building"),COUNTIFS(Backend!$K$10:$K$365,Carbon_Savings_By_Profile[[#This Row],[Window glazing]]), IF(AND(Carbon_Savings_By_Profile[[#This Row],[Year]]="Average building",Carbon_Savings_By_Profile[[#This Row],[Window glazing]]="Average building"), COUNTIFS(Backend!$J$10:$J$365,Carbon_Savings_By_Profile[[#This Row],[Ventilation]]), IF(AND(Carbon_Savings_By_Profile[[#This Row],[Year]]="Average building",Carbon_Savings_By_Profile[[#This Row],[Window glazing]]<>"Average building",Carbon_Savings_By_Profile[[#This Row],[Ventilation]]<>"Average building"), COUNTIFS(Backend!$K$10:$K$365,Carbon_Savings_By_Profile[[#This Row],[Window glazing]],Backend!$J$10:$J$365,Carbon_Savings_By_Profile[[#This Row],[Ventilation]]),COUNTIFS(Backend!$H$10:$H$365,Carbon_Savings_By_Profile[[#This Row],[Year]],Backend!$K$10:$K$365,Carbon_Savings_By_Profile[[#This Row],[Window glazing]],Backend!$J$10:$J$365,Carbon_Savings_By_Profile[[#This Row],[Ventilation]]))))) -> 2 | G12: =IF(AND(Carbon_Savings_By_Profile[[#This Row],[Window glazing]]="Average building",Carbon_Savings_By_Profile[[#This Row],[Ventilation]]="Average building"), SUMIFS(Table7[Emissions w/o AI location-based (kgCO2e/building)],Backend!$H$10:$H$365,Carbon_Savings_By_Profile[[#This Row],[Year]]),IF(AND(Carbon_Savings_By_Profile[[#This Row],[Year]]="Average building",Carbon_Savings_By_Profile[[#This Row],[Ventilation]]="Average building"),SUMIFS(Table7[Emissions w/o AI location-based (kgCO2e/building)],Backend!$K$10:$K$365,Carbon_Savings_By_Profile[[#This Row],[Window glazing]]), IF(AND(Carbon_Savings_By_Profile[[#This Row],[Year]]="Average building",Carbon_Savings_By_Profile[[#This Row],[Window glazing]]="Average building"), SUMIFS(Table7[Emissions w/o AI location-based (kgCO2e/building)],Backend!$J$10:$J$365,Carbon_Savings_By_Profile[[#This Row],[Ventilation]]), IF(AND(Carbon_Savings_By_Profile[[#This Row],[Year]]="Average building",Carbon_Savings_By_Profile[[#This Row],[Window glazing]]<>"Average building",Carbon_Savings_By_Profile[[#This Row],[Ventilation]]<>"Average building"), SUMIFS(Table7[Emissions w/o AI location-based (kgCO2e/building)],Backend!$K$10:$K$365,Carbon_Savings_By_Profile[[#This Row],[Window glazing]],Backend!$J$10:$J$365,Carbon_Savings_By_Profile[[#This Row],[Ventilation]]),SUMIFS(Table7[Emissions w/o AI location-based (kgCO2e/building)],Backend!$H$10:$H$365,Carbon_Savings_By_Profile[[#This Row],[Year]],Backend!$K$10:$K$365,Carbon_Savings_By_Profile[[#This Row],[Window glazing]],Backend!$J$10:$J$365,Carbon_Savings_By_Profile[[#This Row],[Ventilation]]))))) -> 14368.48985 | H12: =IF(AND(Carbon_Savings_By_Profile[[#This Row],[Window glazing]]="Average building",Carbon_Savings_By_Profile[[#This Row],[Ventilation]]="Average building"), SUMIFS(Table7[Emissions w/o AI market-based* (kgCO2e/building)],Backend!$H$10:$H$365,Carbon_Savings_By_Profile[[#This Row],[Year]]),IF(AND(Carbon_Savings_By_Profile[[#This Row],[Year]]="Average building",Carbon_Savings_By_Profile[[#This Row],[Ventilation]]="Average building"),SUMIFS(Table7[Emissions w/o AI market-based* (kgCO2e/building)],Backend!$K$10:$K$365,Carbon_Savings_By_Profile[[#This Row],[Window glazing]]), IF(AND(Carbon_Savings_By_Profile[[#This Row],[Year]]="Average building",Carbon_Savings_By_Profile[[#This Row],[Window glazing]]="Average building"), SUMIFS(Table7[Emissions w/o AI market-based* (kgCO2e/building)],Backend!$J$10:$J$365,Carbon_Savings_By_Profile[[#This Row],[Ventilation]]), IF(AND(Carbon_Savings_By_Profile[[#This Row],[Year]]="Average building",Carbon_Savings_By_Profile[[#This Row],[Window glazing]]<>"Average building",Carbon_Savings_By_Profile[[#This Row],[Ventilation]]<>"Average building"), SUMIFS(Table7[Emissions w/o AI market-based* (kgCO2e/building)],Backend!$K$10:$K$365,Carbon_Savings_By_Profile[[#This Row],[Window glazing]],Backend!$J$10:$J$365,Carbon_Savings_By_Profile[[#This Row],[Ventilation]]),SUMIFS(Table7[Emissions w/o AI market-based* (kgCO2e/building)],Backend!$H$10:$H$365,Carbon_Savings_By_Profile[[#This Row],[Year]],Backend!$K$10:$K$365,Carbon_Savings_By_Profile[[#This Row],[Window glazing]],Backend!$J$10:$J$365,Carbon_Savings_By_Profile[[#This Row],[Ventilation]]))))) -> 14368.48985 | I12: =Carbon_Savings_By_Profile[[#This Row],[Emissions w/o AI location-based (kgCO2e/year)]]/Carbon_Savings_By_Profile[[#This Row],[Buildings]] -> 7184.244925 | J12: =Carbon_Savings_By_Profile[[#This Row],[Emissions w/o AI market-based (kgCO2e/year)]]/Carbon_Savings_By_Profile[[#This Row],[Buildings]] -> 7184.244925 | K12: =IF(AND(Carbon_Savings_By_Profile[[#This Row],[Window glazing]]="Average building",Carbon_Savings_By_Profile[[#This Row],[Ventilation]]="Average building"), SUMIFS(Table7[Emissions w/o AI location-based (kgCO2e/m2)],Backend!$H$10:$H$365,Carbon_Savings_By_Profile[[#This Row],[Year]]),IF(AND(Carbon_Savings_By_Profile[[#This Row],[Year]]="Average building",Carbon_Savings_By_Profile[[#This Row],[Ventilation]]="Average building"),SUMIFS(Table7[Emissions w/o AI location-based (kgCO2e/m2)],Backend!$K$10:$K$365,Carbon_Savings_By_Profile[[#This Row],[Window glazing]]), IF(AND(Carbon_Savings_By_Profile[[#This Row],[Year]]="Average building",Carbon_Savings_By_Profile[[#This Row],[Window glazing]]="Average building"), SUMIFS(Table7[Emissions w/o AI location-based (kgCO2e/m2)],Backend!$J$10:$J$365,Carbon_Savings_By_Profile[[#This Row],[Ventilation]]), IF(AND(Carbon_Savings_By_Profile[[#This Row],[Year]]="Average building",Carbon_Savings_By_Profile[[#This Row],[Window glazing]]<>"Average building",Carbon_Savings_By_Profile[[#This Row],[Ventilation]]<>"Average building"), SUMIFS(Table7[Emissions w/o AI location-based (kgCO2e/m2)],Backend!$K$10:$K$365,Carbon_Savings_By_Profile[[#This Row],[Window glazing]],Backend!$J$10:$J$365,Carbon_Savings_By_Profile[[#This Row],[Ventilation]]),SUMIFS(Table7[Emissions w/o AI location-based (kgCO2e/m2)],Backend!$H$10:$H$365,Carbon_Savings_By_Profile[[#This Row],[Year]],Backend!$K$10:$K$365,Carbon_Savings_By_Profile[[#This Row],[Window glazing]],Backend!$J$10:$J$365,Carbon_Savings_By_Profile[[#This Row],[Ventilation]]))))) -> 17.87836056 | L12: =IF(AND(Carbon_Savings_By_Profile[[#This Row],[Window glazing]]="Average building",Carbon_Savings_By_Profile[[#This Row],[Ventilation]]="Average building"), SUMIFS(Table7[Emissions w/o AI market-based* (kgCO2e/m2)],Backend!$H$10:$H$365,Carbon_Savings_By_Profile[[#This Row],[Year]]),IF(AND(Carbon_Savings_By_Profile[[#This Row],[Year]]="Average building",Carbon_Savings_By_Profile[[#This Row],[Ventilation]]="Average building"),SUMIFS(Table7[Emissions w/o AI market-based* (kgCO2e/m2)],Backend!$K$10:$K$365,Carbon_Savings_By_Profile[[#This Row],[Window glazing]]), IF(AND(Carbon_Savings_By_Profile[[#This Row],[Year]]="Average building",Carbon_Savings_By_Profile[[#This Row],[Window glazing]]="Average building"), SUMIFS(Table7[Emissions w/o AI market-based* (kgCO2e/m2)],Backend!$J$10:$J$365,Carbon_Savings_By_Profile[[#This Row],[Ventilation]]), IF(AND(Carbon_Savings_By_Profile[[#This Row],[Year]]="Average building",Carbon_Savings_By_Profile[[#This Row],[Window glazing]]<>"Average building",Carbon_Savings_By_Profile[[#This Row],[Ventilation]]<>"Average building"), SUMIFS(Table7[Emissions w/o AI market-based* (kgCO2e/m2)],Backend!$K$10:$K$365,Carbon_Savings_By_Profile[[#This Row],[Window glazing]],Backend!$J$10:$J$365,Carbon_Savings_By_Profile[[#This Row],[Ventilation]]),SUMIFS(Table7[Emissions w/o AI market-based* (kgCO2e/m2)],Backend!$H$10:$H$365,Carbon_Savings_By_Profile[[#This Row],[Year]],Backend!$K$10:$K$365,Carbon_Savings_By_Profile[[#This Row],[Window glazing]],Backend!$J$10:$J$365,Carbon_Savings_By_Profile[[#This Row],[Ventilation]]))))) -> 17.87836056 | M12: =Carbon_Savings_By_Profile[[#This Row],[Emissions w/o AI location-based (kgCO2e/m2/year)]]/Carbon_Savings_By_Profile[[#This Row],[Buildings]] -> 8.939180282 | N12: =Carbon_Savings_By_Profile[[#This Row],[Emissions w/o AI market-based (kgCO2e/m2/year)]]/Carbon_Savings_By_Profile[[#This Row],[Buildings]] -> 8.939180282 | O12: =IF(AND(Carbon_Savings_By_Profile[[#This Row],[Window glazing]]="Average building",Carbon_Savings_By_Profile[[#This Row],[Ventilation]]="Average building"), SUMIFS(Backend!$AG$10:$AG$365,Backend!$H$10:$H$365,Carbon_Savings_By_Profile[[#This Row],[Year]]),IF(AND(Carbon_Savings_By_Profile[[#This Row],[Year]]="Average building",Carbon_Savings_By_Profile[[#This Row],[Ventilation]]="Average building"),SUMIFS(Backend!$AG$10:$AG$365,Backend!$K$10:$K$365,Carbon_Savings_By_Profile[[#This Row],[Window glazing]]), IF(AND(Carbon_Savings_By_Profile[[#This Row],[Year]]="Average building",Carbon_Savings_By_Profile[[#This Row],[Window glazing]]="Average building"), SUMIFS(Backend!$AG$10:$AG$365,Backend!$J$10:$J$365,Carbon_Savings_By_Profile[[#This Row],[Ventilation]]), IF(AND(Carbon_Savings_By_Profile[[#This Row],[Year]]="Average building",Carbon_Savings_By_Profile[[#This Row],[Window glazing]]<>"Average building",Carbon_Savings_By_Profile[[#This Row],[Ventilation]]<>"Average building"), SUMIFS(Backend!$AG$10:$AG$365,Backend!$K$10:$K$365,Carbon_Savings_By_Profile[[#This Row],[Window glazing]],Backend!$J$10:$J$365,Carbon_Savings_By_Profile[[#This Row],[Ventilation]]),SUMIFS(Backend!$AG$10:$AG$365,Backend!$H$10:$H$365,Carbon_Savings_By_Profile[[#This Row],[Year]],Backend!$K$10:$K$365,Carbon_Savings_By_Profile[[#This Row],[Window glazing]],Backend!$J$10:$J$365,Carbon_Savings_By_Profile[[#This Row],[Ventilation]]))))) -> 1.79399 | P12: =IF(AND(Carbon_Savings_By_Profile[[#This Row],[Window glazing]]="Average building",Carbon_Savings_By_Profile[[#This Row],[Ventilation]]="Average building"), SUMIFS(Backend!$AH$10:$AH$365,Backend!$H$10:$H$365,Carbon_Savings_By_Profile[[#This Row],[Year]]),IF(AND(Carbon_Savings_By_Profile[[#This Row],[Year]]="Average building",Carbon_Savings_By_Profile[[#This Row],[Ventilation]]="Average building"),SUMIFS(Backend!$AH$10:$AH$365,Backend!$K$10:$K$365,Carbon_Savings_By_Profile[[#This Row],[Window glazing]]), IF(AND(Carbon_Savings_By_Profile[[#This Row],[Year]]="Average building",Carbon_Savings_By_Profile[[#This Row],[Window glazing]]="Average building"), SUMIFS(Backend!$AH$10:$AH$365,Backend!$J$10:$J$365,Carbon_Savings_By_Profile[[#This Row],[Ventilation]]), IF(AND(Carbon_Savings_By_Profile[[#This Row],[Year]]="Average building",Carbon_Savings_By_Profile[[#This Row],[Window glazing]]<>"Average building",Carbon_Savings_By_Profile[[#This Row],[Ventilation]]<>"Average building"), SUMIFS(Backend!$AH$10:$AH$365,Backend!$K$10:$K$365,Carbon_Savings_By_Profile[[#This Row],[Window glazing]],Backend!$J$10:$J$365,Carbon_Savings_By_Profile[[#This Row],[Ventilation]]),SUMIFS(Backend!$AH$10:$AH$365,Backend!$H$10:$H$365,Carbon_Savings_By_Profile[[#This Row],[Year]],Backend!$K$10:$K$365,Carbon_Savings_By_Profile[[#This Row],[Window glazing]],Backend!$J$10:$J$365,Carbon_Savings_By_Profile[[#This Row],[Ventilation]]))))) -> 0.4511 | Q12: =IF(AND(Carbon_Savings_By_Profile[[#This Row],[Window glazing]]="Average building",Carbon_Savings_By_Profile[[#This Row],[Ventilation]]="Average building"), SUMIFS(Backend!$AI$10:$AI$365,Backend!$H$10:$H$365,Carbon_Savings_By_Profile[[#This Row],[Year]]),IF(AND(Carbon_Savings_By_Profile[[#This Row],[Year]]="Average building",Carbon_Savings_By_Profile[[#This Row],[Ventilation]]="Average building"),SUMIFS(Backend!$AI$10:$AI$365,Backend!$K$10:$K$365,Carbon_Savings_By_Profile[[#This Row],[Window glazing]]), IF(AND(Carbon_Savings_By_Profile[[#This Row],[Year]]="Average building",Carbon_Savings_By_Profile[[#This Row],[Window glazing]]="Average building"), SUMIFS(Backend!$AI$10:$AI$365,Backend!$J$10:$J$365,Carbon_Savings_By_Profile[[#This Row],[Ventilation]]), IF(AND(Carbon_Savings_By_Profile[[#This Row],[Year]]="Average building",Carbon_Savings_By_Profile[[#This Row],[Window glazing]]<>"Average building",Carbon_Savings_By_Profile[[#This Row],[Ventilation]]<>"Average building"), SUMIFS(Backend!$AI$10:$AI$365,Backend!$K$10:$K$365,Carbon_Savings_By_Profile[[#This Row],[Window glazing]],Backend!$J$10:$J$365,Carbon_Savings_By_Profile[[#This Row],[Ventilation]]),SUMIFS(Backend!$AI$10:$AI$365,Backend!$H$10:$H$365,Carbon_Savings_By_Profile[[#This Row],[Year]],Backend!$K$10:$K$365,Carbon_Savings_By_Profile[[#This Row],[Window glazing]],Backend!$J$10:$J$365,Carbon_Savings_By_Profile[[#This Row],[Ventilation]]))))) -> 1465.75704 | R12: =IF(AND(Carbon_Savings_By_Profile[[#This Row],[Window glazing]]="Average building",Carbon_Savings_By_Profile[[#This Row],[Ventilation]]="Average building"), SUMIFS(Backend!$AJ$10:$AJ$365,Backend!$H$10:$H$365,Carbon_Savings_By_Profile[[#This Row],[Year]]),IF(AND(Carbon_Savings_By_Profile[[#This Row],[Year]]="Average building",Carbon_Savings_By_Profile[[#This Row],[Ventilation]]="Average building"),SUMIFS(Backend!$AJ$10:$AJ$365,Backend!$K$10:$K$365,Carbon_Savings_By_Profile[[#This Row],[Window glazing]]), IF(AND(Carbon_Savings_By_Profile[[#This Row],[Year]]="Average building",Carbon_Savings_By_Profile[[#This Row],[Window glazing]]="Average building"), SUMIFS(Backend!$AJ$10:$AJ$365,Backend!$J$10:$J$365,Carbon_Savings_By_Profile[[#This Row],[Ventilation]]), IF(AND(Carbon_Savings_By_Profile[[#This Row],[Year]]="Average building",Carbon_Savings_By_Profile[[#This Row],[Window glazing]]<>"Average building",Carbon_Savings_By_Profile[[#This Row],[Ventilation]]<>"Average building"), SUMIFS(Backend!$AJ$10:$AJ$365,Backend!$K$10:$K$365,Carbon_Savings_By_Profile[[#This Row],[Window glazing]],Backend!$J$10:$J$365,Carbon_Savings_By_Profile[[#This Row],[Ventilation]]),SUMIFS(Backend!$AJ$10:$AJ$365,Backend!$H$10:$H$365,Carbon_Savings_By_Profile[[#This Row],[Year]],Backend!$K$10:$K$365,Carbon_Savings_By_Profile[[#This Row],[Window glazing]],Backend!$J$10:$J$365,Carbon_Savings_By_Profile[[#This Row],[Ventilation]]))))) -> 368.5656 | S12: =Carbon_Savings_By_Profile[[#This Row],[Avoided emissions location-based (kgCO2e/m2/year) ]]/Carbon_Savings_By_Profile[[#This Row],[Buildings]] -> 0.896995 | T12: =Carbon_Savings_By_Profile[[#This Row],[Avoided emissions market-based (kgCO2e/m2/year)]]/Carbon_Savings_By_Profile[[#This Row],[Buildings]] -> 0.22555 | U12: =Carbon_Savings_By_Profile[[#This Row],[Avoided emissions location-based (kgCO2e/building/year)]]/Carbon_Savings_By_Profile[[#This Row],[Buildings]] -> 732.87852 | V12: =Carbon_Savings_By_Profile[[#This Row],[Avoided emissions market-based (kgCO2e/building/year)]]/Carbon_Savings_By_Profile[[#This Row],[Buildings]] -> 184.2828 | W12: =IF(AND(Carbon_Savings_By_Profile[[#This Row],[Window glazing]]="Average building",Carbon_Savings_By_Profile[[#This Row],[Ventilation]]="Average building"), SUMIFS(Backend!$AY$10:$AY$365,Backend!$H$10:$H$365,Carbon_Savings_By_Profile[[#This Row],[Year]]),IF(AND(Carbon_Savings_By_Profile[[#This Row],[Year]]="Average building",Carbon_Savings_By_Profile[[#This Row],[Ventilation]]="Average building"),SUMIFS(Backend!$AY$10:$AY$365,Backend!$K$10:$K$365,Carbon_Savings_By_Profile[[#This Row],[Window glazing]]), IF(AND(Carbon_Savings_By_Profile[[#This Row],[Year]]="Average building",Carbon_Savings_By_Profile[[#This Row],[Window glazing]]="Average building"), SUMIFS(Backend!$AY$10:$AY$365,Backend!$J$10:$J$365,Carbon_Savings_By_Profile[[#This Row],[Ventilation]]), IF(AND(Carbon_Savings_By_Profile[[#This Row],[Year]]="Average building",Carbon_Savings_By_Profile[[#This Row],[Window glazing]]<>"Average building",Carbon_Savings_By_Profile[[#This Row],[Ventilation]]<>"Average building"), SUMIFS(Backend!$AY$10:$AY$365,Backend!$K$10:$K$365,Carbon_Savings_By_Profile[[#This Row],[Window glazing]],Backend!$J$10:$J$365,Carbon_Savings_By_Profile[[#This Row],[Ventilation]]),SUMIFS(Backend!$AY$10:$AY$365,Backend!$H$10:$H$365,Carbon_Savings_By_Profile[[#This Row],[Year]],Backend!$K$10:$K$365,Carbon_Savings_By_Profile[[#This Row],[Window glazing]],Backend!$J$10:$J$365,Carbon_Savings_By_Profile[[#This Row],[Ventilation]]))))) -> 0.0209376529 | X12: =IF(AND(Carbon_Savings_By_Profile[[#This Row],[Window glazing]]="Average building",Carbon_Savings_By_Profile[[#This Row],[Ventilation]]="Average building"), SUMIFS(Backend!$AZ$10:$AZ$365,Backend!$H$10:$H$365,Carbon_Savings_By_Profile[[#This Row],[Year]]),IF(AND(Carbon_Savings_By_Profile[[#This Row],[Year]]="Average building",Carbon_Savings_By_Profile[[#This Row],[Ventilation]]="Average building"),SUMIFS(Backend!$AZ$10:$AZ$365,Backend!$K$10:$K$365,Carbon_Savings_By_Profile[[#This Row],[Window glazing]]), IF(AND(Carbon_Savings_By_Profile[[#This Row],[Year]]="Average building",Carbon_Savings_By_Profile[[#This Row],[Window glazing]]="Average building"), SUMIFS(Backend!$AZ$10:$AZ$365,Backend!$J$10:$J$365,Carbon_Savings_By_Profile[[#This Row],[Ventilation]]), IF(AND(Carbon_Savings_By_Profile[[#This Row],[Year]]="Average building",Carbon_Savings_By_Profile[[#This Row],[Window glazing]]<>"Average building",Carbon_Savings_By_Profile[[#This Row],[Ventilation]]<>"Average building"), SUMIFS(Backend!$AZ$10:$AZ$365,Backend!$K$10:$K$365,Carbon_Savings_By_Profile[[#This Row],[Window glazing]],Backend!$J$10:$J$365,Carbon_Savings_By_Profile[[#This Row],[Ventilation]]),SUMIFS(Backend!$AZ$10:$AZ$365,Backend!$H$10:$H$365,Carbon_Savings_By_Profile[[#This Row],[Year]],Backend!$K$10:$K$365,Carbon_Savings_By_Profile[[#This Row],[Window glazing]],Backend!$J$10:$J$365,Carbon_Savings_By_Profile[[#This Row],[Ventilation]]))))) -> 0.01871205168 | Y12: =IF(AND(Carbon_Savings_By_Profile[[#This Row],[Window glazing]]="Average building",Carbon_Savings_By_Profile[[#This Row],[Ventilation]]="Average building"), SUMIFS(Backend!$BA$10:$BA$365,Backend!$H$10:$H$365,Carbon_Savings_By_Profile[[#This Row],[Year]]),IF(AND(Carbon_Savings_By_Profile[[#This Row],[Year]]="Average building",Carbon_Savings_By_Profile[[#This Row],[Ventilation]]="Average building"),SUMIFS(Backend!$BA$10:$BA$365,Backend!$K$10:$K$365,Carbon_Savings_By_Profile[[#This Row],[Window glazing]]), IF(AND(Carbon_Savings_By_Profile[[#This Row],[Year]]="Average building",Carbon_Savings_By_Profile[[#This Row],[Window glazing]]="Average building"), SUMIFS(Backend!$BA$10:$BA$365,Backend!$J$10:$J$365,Carbon_Savings_By_Profile[[#This Row],[Ventilation]]), IF(AND(Carbon_Savings_By_Profile[[#This Row],[Year]]="Average building",Carbon_Savings_By_Profile[[#This Row],[Window glazing]]<>"Average building",Carbon_Savings_By_Profile[[#This Row],[Ventilation]]<>"Average building"), SUMIFS(Backend!$BA$10:$BA$365,Backend!$K$10:$K$365,Carbon_Savings_By_Profile[[#This Row],[Window glazing]],Backend!$J$10:$J$365,Carbon_Savings_By_Profile[[#This Row],[Ventilation]]),SUMIFS(Backend!$BA$10:$BA$365,Backend!$H$10:$H$365,Carbon_Savings_By_Profile[[#This Row],[Year]],Backend!$K$10:$K$365,Carbon_Savings_By_Profile[[#This Row],[Window glazing]],Backend!$J$10:$J$365,Carbon_Savings_By_Profile[[#This Row],[Ventilation]]))))) -> 16.93676904 | Z12: =IF(AND(Carbon_Savings_By_Profile[[#This Row],[Window glazing]]="Average building",Carbon_Savings_By_Profile[[#This Row],[Ventilation]]="Average building"), SUMIFS(Backend!$BB$10:$BB$365,Backend!$H$10:$H$365,Carbon_Savings_By_Profile[[#This Row],[Year]]),IF(AND(Carbon_Savings_By_Profile[[#This Row],[Year]]="Average building",Carbon_Savings_By_Profile[[#This Row],[Ventilation]]="Average building"),SUMIFS(Backend!$BB$10:$BB$365,Backend!$K$10:$K$365,Carbon_Savings_By_Profile[[#This Row],[Window glazing]]), IF(AND(Carbon_Savings_By_Profile[[#This Row],[Year]]="Average building",Carbon_Savings_By_Profile[[#This Row],[Window glazing]]="Average building"), SUMIFS(Backend!$BB$10:$BB$365,Backend!$J$10:$J$365,Carbon_Savings_By_Profile[[#This Row],[Ventilation]]), IF(AND(Carbon_Savings_By_Profile[[#This Row],[Year]]="Average building",Carbon_Savings_By_Profile[[#This Row],[Window glazing]]<>"Average building",Carbon_Savings_By_Profile[[#This Row],[Ventilation]]<>"Average building"), SUMIFS(Backend!$BB$10:$BB$365,Backend!$K$10:$K$365,Carbon_Savings_By_Profile[[#This Row],[Window glazing]],Backend!$J$10:$J$365,Carbon_Savings_By_Profile[[#This Row],[Ventilation]]),SUMIFS(Backend!$BB$10:$BB$365,Backend!$H$10:$H$365,Carbon_Savings_By_Profile[[#This Row],[Year]],Backend!$K$10:$K$365,Carbon_Savings_By_Profile[[#This Row],[Window glazing]],Backend!$J$10:$J$365,Carbon_Savings_By_Profile[[#This Row],[Ventilation]]))))) -> 15.14312751 | AA12: =Carbon_Savings_By_Profile[[#This Row],[Aggregated first order effects location-based (kgCO2e/m2/year)]]/Carbon_Savings_By_Profile[[#This Row],[Buildings]] -> 0.01046882645 | AB12: =Carbon_Savings_By_Profile[[#This Row],[Aggregated first order effects market-based (kgCO2e/m2/year)]]/Carbon_Savings_By_Profile[[#This Row],[Buildings]] -> 0.009356025842 | AC12: =Carbon_Savings_By_Profile[[#This Row],[Aggregated first order effects location-based (kgCO2e/year)]]/Carbon_Savings_By_Profile[[#This Row],[Buildings]] -> 8.468384519 | AD12: =Carbon_Savings_By_Profile[[#This Row],[Aggregated first order effects market-based (kgCO2e/building/year)]]/Carbon_Savings_By_Profile[[#This Row],[Buildings]] -> 7.571563756 | AE12: =IF(AND(Carbon_Savings_By_Profile[[#This Row],[Window glazing]]="Average building",Carbon_Savings_By_Profile[[#This Row],[Ventilation]]="Average building"), SUMIFS(Backend!$BE$10:$BE$365,Backend!$H$10:$H$365,Carbon_Savings_By_Profile[[#This Row],[Year]]),IF(AND(Carbon_Savings_By_Profile[[#This Row],[Year]]="Average building",Carbon_Savings_By_Profile[[#This Row],[Ventilation]]="Average building"),SUMIFS(Backend!$BE$10:$BE$365,Backend!$K$10:$K$365,Carbon_Savings_By_Profile[[#This Row],[Window glazing]]), IF(AND(Carbon_Savings_By_Profile[[#This Row],[Year]]="Average building",Carbon_Savings_By_Profile[[#This Row],[Window glazing]]="Average building"), SUMIFS(Backend!$BE$10:$BE$365,Backend!$J$10:$J$365,Carbon_Savings_By_Profile[[#This Row],[Ventilation]]), IF(AND(Carbon_Savings_By_Profile[[#This Row],[Year]]="Average building",Carbon_Savings_By_Profile[[#This Row],[Window glazing]]<>"Average building",Carbon_Savings_By_Profile[[#This Row],[Ventilation]]<>"Average building"), SUMIFS(Backend!$BE$10:$BE$365,Backend!$K$10:$K$365,Carbon_Savings_By_Profile[[#This Row],[Window glazing]],Backend!$J$10:$J$365,Carbon_Savings_By_Profile[[#This Row],[Ventilation]]),SUMIFS(Backend!$BE$10:$BE$365,Backend!$H$10:$H$365,Carbon_Savings_By_Profile[[#This Row],[Year]],Backend!$K$10:$K$365,Carbon_Savings_By_Profile[[#This Row],[Window glazing]],Backend!$J$10:$J$365,Carbon_Savings_By_Profile[[#This Row],[Ventilation]]))))) -> 1.773052347 | AF12: =IF(AND(Carbon_Savings_By_Profile[[#This Row],[Window glazing]]="Average building",Carbon_Savings_By_Profile[[#This Row],[Ventilation]]="Average building"), SUMIFS(Backend!$BF$10:$BF$365,Backend!$H$10:$H$365,Carbon_Savings_By_Profile[[#This Row],[Year]]),IF(AND(Carbon_Savings_By_Profile[[#This Row],[Year]]="Average building",Carbon_Savings_By_Profile[[#This Row],[Ventilation]]="Average building"),SUMIFS(Backend!$BF$10:$BF$365,Backend!$K$10:$K$365,Carbon_Savings_By_Profile[[#This Row],[Window glazing]]), IF(AND(Carbon_Savings_By_Profile[[#This Row],[Year]]="Average building",Carbon_Savings_By_Profile[[#This Row],[Window glazing]]="Average building"), SUMIFS(Backend!$BF$10:$BF$365,Backend!$J$10:$J$365,Carbon_Savings_By_Profile[[#This Row],[Ventilation]]), IF(AND(Carbon_Savings_By_Profile[[#This Row],[Year]]="Average building",Carbon_Savings_By_Profile[[#This Row],[Window glazing]]<>"Average building",Carbon_Savings_By_Profile[[#This Row],[Ventilation]]<>"Average building"), SUMIFS(Backend!$BF$10:$BF$365,Backend!$K$10:$K$365,Carbon_Savings_By_Profile[[#This Row],[Window glazing]],Backend!$J$10:$J$365,Carbon_Savings_By_Profile[[#This Row],[Ventilation]]),SUMIFS(Backend!$BF$10:$BF$365,Backend!$H$10:$H$365,Carbon_Savings_By_Profile[[#This Row],[Year]],Backend!$K$10:$K$365,Carbon_Savings_By_Profile[[#This Row],[Window glazing]],Backend!$J$10:$J$365,Carbon_Savings_By_Profile[[#This Row],[Ventilation]]))))) -> 0.4323879483 | AG12: 0.8865261735 | AH12: =Carbon_Savings_By_Profile[[#This Row],[Net avoided emissions market-based (kgCO2e/m2/year)]]/Carbon_Savings_By_Profile[[#This Row],[Buildings]] -> 0.2161939742 | AI12: =IF(AND(Carbon_Savings_By_Profile[[#This Row],[Window glazing]]="Average building",Carbon_Savings_By_Profile[[#This Row],[Ventilation]]="Average building"), SUMIFS(Backend!$BG$10:$BG$365,Backend!$H$10:$H$365,Carbon_Savings_By_Profile[[#This Row],[Year]]),IF(AND(Carbon_Savings_By_Profile[[#This Row],[Year]]="Average building",Carbon_Savings_By_Profile[[#This Row],[Ventilation]]="Average building"),SUMIFS(Backend!$BG$10:$BG$365,Backend!$K$10:$K$365,Carbon_Savings_By_Profile[[#This Row],[Window glazing]]), IF(AND(Carbon_Savings_By_Profile[[#This Row],[Year]]="Average building",Carbon_Savings_By_Profile[[#This Row],[Window glazing]]="Average building"), SUMIFS(Backend!$BG$10:$BG$365,Backend!$J$10:$J$365,Carbon_Savings_By_Profile[[#This Row],[Ventilation]]), IF(AND(Carbon_Savings_By_Profile[[#This Row],[Year]]="Average building",Carbon_Savings_By_Profile[[#This Row],[Window glazing]]<>"Average building",Carbon_Savings_By_Profile[[#This Row],[Ventilation]]<>"Average building"), SUMIFS(Backend!$BG$10:$BG$365,Backend!$K$10:$K$365,Carbon_Savings_By_Profile[[#This Row],[Window glazing]],Backend!$J$10:$J$365,Carbon_Savings_By_Profile[[#This Row],[Ventilation]]),SUMIFS(Backend!$BG$10:$BG$365,Backend!$H$10:$H$365,Carbon_Savings_By_Profile[[#This Row],[Year]],Backend!$K$10:$K$365,Carbon_Savings_By_Profile[[#This Row],[Window glazing]],Backend!$J$10:$J$365,Carbon_Savings_By_Profile[[#This Row],[Ventilation]]))))) -> 1448.820271 | AJ12: =IF(AND(Carbon_Savings_By_Profile[[#This Row],[Window glazing]]="Average building",Carbon_Savings_By_Profile[[#This Row],[Ventilation]]="Average building"), SUMIFS(Backend!$BH$10:$BH$365,Backend!$H$10:$H$365,Carbon_Savings_By_Profile[[#This Row],[Year]]),IF(AND(Carbon_Savings_By_Profile[[#This Row],[Year]]="Average building",Carbon_Savings_By_Profile[[#This Row],[Ventilation]]="Average building"),SUMIFS(Backend!$BH$10:$BH$365,Backend!$K$10:$K$365,Carbon_Savings_By_Profile[[#This Row],[Window glazing]]), IF(AND(Carbon_Savings_By_Profile[[#This Row],[Year]]="Average building",Carbon_Savings_By_Profile[[#This Row],[Window glazing]]="Average building"), SUMIFS(Backend!$BH$10:$BH$365,Backend!$J$10:$J$365,Carbon_Savings_By_Profile[[#This Row],[Ventilation]]), IF(AND(Carbon_Savings_By_Profile[[#This Row],[Year]]="Average building",Carbon_Savings_By_Profile[[#This Row],[Window glazing]]<>"Average building",Carbon_Savings_By_Profile[[#This Row],[Ventilation]]<>"Average building"), SUMIFS(Backend!$BH$10:$BH$365,Backend!$K$10:$K$365,Carbon_Savings_By_Profile[[#This Row],[Window glazing]],Backend!$J$10:$J$365,Carbon_Savings_By_Profile[[#This Row],[Ventilation]]),SUMIFS(Backend!$BH$10:$BH$365,Backend!$H$10:$H$365,Carbon_Savings_By_Profile[[#This Row],[Year]],Backend!$K$10:$K$365,Carbon_Savings_By_Profile[[#This Row],[Window glazing]],Backend!$J$10:$J$365,Carbon_Savings_By_Profile[[#This Row],[Ventilation]]))))) -> 353.4224725 | AK12: =Carbon_Savings_By_Profile[[#This Row],[Net avoided emissions location-based (kgCO2e/year)]]/Carbon_Savings_By_Profile[[#This Row],[Buildings]] -> 724.4101355 | AL12: =Carbon_Savings_By_Profile[[#This Row],[Net avoided emissions market-based (kgCO2e/year)]]/Carbon_Savings_By_Profile[[#This Row],[Buildings]] -> 176.7112362 | AM12: =IF(Results!$L$15="market-based",Carbon_Savings_By_Profile[[#This Row],[Average net avoided emissions market-based (kgCO2e/m2/year)]],Carbon_Savings_By_Profile[[#This Row],[Average net avoided emissions location-based (kgCO2e/m2/year)]]) -> 0.8865261735 | AN12: =IF(AND(Carbon_Savings_By_Profile[[#This Row],[Window glazing]]="Average building",Carbon_Savings_By_Profile[[#This Row],[Ventilation]]="Average building"), SUMIFS(Table7[Emissions uncertainty per m2 location-based (kgCO2e)],Backend!$H$10:$H$365,Carbon_Savings_By_Profile[[#This Row],[Year]]),IF(AND(Carbon_Savings_By_Profile[[#This Row],[Year]]="Average building",Carbon_Savings_By_Profile[[#This Row],[Ventilation]]="Average building"),SUMIFS(Table7[Emissions uncertainty per m2 location-based (kgCO2e)],Backend!$K$10:$K$365,Carbon_Savings_By_Profile[[#This Row],[Window glazing]]), IF(AND(Carbon_Savings_By_Profile[[#This Row],[Year]]="Average building",Carbon_Savings_By_Profile[[#This Row],[Window glazing]]="Average building"), SUMIFS(Table7[Emissions uncertainty per m2 location-based (kgCO2e)],Backend!$J$10:$J$365,Carbon_Savings_By_Profile[[#This Row],[Ventilation]]), IF(AND(Carbon_Savings_By_Profile[[#This Row],[Year]]="Average building",Carbon_Savings_By_Profile[[#This Row],[Window glazing]]<>"Average building",Carbon_Savings_By_Profile[[#This Row],[Ventilation]]<>"Average building"), SUMIFS(Table7[Emissions uncertainty per m2 location-based (kgCO2e)],Backend!$K$10:$K$365,Carbon_Savings_By_Profile[[#This Row],[Window glazing]],Backend!$J$10:$J$365,Carbon_Savings_By_Profile[[#This Row],[Ventilation]]),SUMIFS(Table7[Emissions uncertainty per m2 location-based (kgCO2e)],Backend!$H$10:$H$365,Carbon_Savings_By_Profile[[#This Row],[Year]],Backend!$K$10:$K$365,Carbon_Savings_By_Profile[[#This Row],[Window glazing]],Backend!$J$10:$J$365,Carbon_Savings_By_Profile[[#This Row],[Ventilation]]))))) -> 0.1189776196 | AO12: =IF(AND(Carbon_Savings_By_Profile[[#This Row],[Window glazing]]="Average building",Carbon_Savings_By_Profile[[#This Row],[Ventilation]]="Average building"), SUMIFS(Table7[Emissions uncertainty per m2 market-based* (kgCO2e)],Backend!$H$10:$H$365,Carbon_Savings_By_Profile[[#This Row],[Year]]),IF(AND(Carbon_Savings_By_Profile[[#This Row],[Year]]="Average building",Carbon_Savings_By_Profile[[#This Row],[Ventilation]]="Average building"),SUMIFS(Table7[Emissions uncertainty per m2 market-based* (kgCO2e)],Backend!$K$10:$K$365,Carbon_Savings_By_Profile[[#This Row],[Window glazing]]), IF(AND(Carbon_Savings_By_Profile[[#This Row],[Year]]="Average building",Carbon_Savings_By_Profile[[#This Row],[Window glazing]]="Average building"), SUMIFS(Table7[Emissions uncertainty per m2 market-based* (kgCO2e)],Backend!$J$10:$J$365,Carbon_Savings_By_Profile[[#This Row],[Ventilation]]), IF(AND(Carbon_Savings_By_Profile[[#This Row],[Year]]="Average building",Carbon_Savings_By_Profile[[#This Row],[Window glazing]]<>"Average building",Carbon_Savings_By_Profile[[#This Row],[Ventilation]]<>"Average building"), SUMIFS(Table7[Emissions uncertainty per m2 market-based* (kgCO2e)],Backend!$K$10:$K$365,Carbon_Savings_By_Profile[[#This Row],[Window glazing]],Backend!$J$10:$J$365,Carbon_Savings_By_Profile[[#This Row],[Ventilation]]),SUMIFS(Table7[Emissions uncertainty per m2 market-based* (kgCO2e)],Backend!$H$10:$H$365,Carbon_Savings_By_Profile[[#This Row],[Year]],Backend!$K$10:$K$365,Carbon_Savings_By_Profile[[#This Row],[Window glazing]],Backend!$J$10:$J$365,Carbon_Savings_By_Profile[[#This Row],[Ventilation]]))))) -> 0.02991700298 | AP12: =Carbon_Savings_By_Profile[[#This Row],[Uncertainty location-based (kgCO2e/m2/year)]]/Carbon_Savings_By_Profile[[#This Row],[Buildings]] -> 0.05948880978 | AQ12: =Carbon_Savings_By_Profile[[#This Row],[Uncertainty market-based (kgCO2e/m2/year)]]/Carbon_Savings_By_Profile[[#This Row],[Buildings]] -> 0.01495850149 | AR12: -0.0991730948 | AS12: -0.1008331624
B13: 1920-1944 | C13: Triple glazed | D13: ESX | E13: 1920-1944 - Triple glazed - ESX | F13: =IF(AND(Carbon_Savings_By_Profile[[#This Row],[Window glazing]]="Average building",Carbon_Savings_By_Profile[[#This Row],[Ventilation]]="Average building"), COUNTIFS(Backend!$H$10:$H$365,Carbon_Savings_By_Profile[[#This Row],[Year]]),IF(AND(Carbon_Savings_By_Profile[[#This Row],[Year]]="Average building",Carbon_Savings_By_Profile[[#This Row],[Ventilation]]="Average building"),COUNTIFS(Backend!$K$10:$K$365,Carbon_Savings_By_Profile[[#This Row],[Window glazing]]), IF(AND(Carbon_Savings_By_Profile[[#This Row],[Year]]="Average building",Carbon_Savings_By_Profile[[#This Row],[Window glazing]]="Average building"), COUNTIFS(Backend!$J$10:$J$365,Carbon_Savings_By_Profile[[#This Row],[Ventilation]]), IF(AND(Carbon_Savings_By_Profile[[#This Row],[Year]]="Average building",Carbon_Savings_By_Profile[[#This Row],[Window glazing]]<>"Average building",Carbon_Savings_By_Profile[[#This Row],[Ventilation]]<>"Average building"), COUNTIFS(Backend!$K$10:$K$365,Carbon_Savings_By_Profile[[#This Row],[Window glazing]],Backend!$J$10:$J$365,Carbon_Savings_By_Profile[[#This Row],[Ventilation]]),COUNTIFS(Backend!$H$10:$H$365,Carbon_Savings_By_Profile[[#This Row],[Year]],Backend!$K$10:$K$365,Carbon_Savings_By_Profile[[#This Row],[Window glazing]],Backend!$J$10:$J$365,Carbon_Savings_By_Profile[[#This Row],[Ventilation]]))))) -> 1 | G13: =IF(AND(Carbon_Savings_By_Profile[[#This Row],[Window glazing]]="Average building",Carbon_Savings_By_Profile[[#This Row],[Ventilation]]="Average building"), SUMIFS(Table7[Emissions w/o AI location-based (kgCO2e/building)],Backend!$H$10:$H$365,Carbon_Savings_By_Profile[[#This Row],[Year]]),IF(AND(Carbon_Savings_By_Profile[[#This Row],[Year]]="Average building",Carbon_Savings_By_Profile[[#This Row],[Ventilation]]="Average building"),SUMIFS(Table7[Emissions w/o AI location-based (kgCO2e/building)],Backend!$K$10:$K$365,Carbon_Savings_By_Profile[[#This Row],[Window glazing]]), IF(AND(Carbon_Savings_By_Profile[[#This Row],[Year]]="Average building",Carbon_Savings_By_Profile[[#This Row],[Window glazing]]="Average building"), SUMIFS(Table7[Emissions w/o AI location-based (kgCO2e/building)],Backend!$J$10:$J$365,Carbon_Savings_By_Profile[[#This Row],[Ventilation]]), IF(AND(Carbon_Savings_By_Profile[[#This Row],[Year]]="Average building",Carbon_Savings_By_Profile[[#This Row],[Window glazing]]<>"Average building",Carbon_Savings_By_Profile[[#This Row],[Ventilation]]<>"Average building"), SUMIFS(Table7[Emissions w/o AI location-based (kgCO2e/building)],Backend!$K$10:$K$365,Carbon_Savings_By_Profile[[#This Row],[Window glazing]],Backend!$J$10:$J$365,Carbon_Savings_By_Profile[[#This Row],[Ventilation]]),SUMIFS(Table7[Emissions w/o AI location-based (kgCO2e/building)],Backend!$H$10:$H$365,Carbon_Savings_By_Profile[[#This Row],[Year]],Backend!$K$10:$K$365,Carbon_Savings_By_Profile[[#This Row],[Window glazing]],Backend!$J$10:$J$365,Carbon_Savings_By_Profile[[#This Row],[Ventilation]]))))) -> 4821.92458 | H13: =IF(AND(Carbon_Savings_By_Profile[[#This Row],[Window glazing]]="Average building",Carbon_Savings_By_Profile[[#This Row],[Ventilation]]="Average building"), SUMIFS(Table7[Emissions w/o AI market-based* (kgCO2e/building)],Backend!$H$10:$H$365,Carbon_Savings_By_Profile[[#This Row],[Year]]),IF(AND(Carbon_Savings_By_Profile[[#This Row],[Year]]="Average building",Carbon_Savings_By_Profile[[#This Row],[Ventilation]]="Average building"),SUMIFS(Table7[Emissions w/o AI market-based* (kgCO2e/building)],Backend!$K$10:$K$365,Carbon_Savings_By_Profile[[#This Row],[Window glazing]]), IF(AND(Carbon_Savings_By_Profile[[#This Row],[Year]]="Average building",Carbon_Savings_By_Profile[[#This Row],[Window glazing]]="Average building"), SUMIFS(Table7[Emissions w/o AI market-based* (kgCO2e/building)],Backend!$J$10:$J$365,Carbon_Savings_By_Profile[[#This Row],[Ventilation]]), IF(AND(Carbon_Savings_By_Profile[[#This Row],[Year]]="Average building",Carbon_Savings_By_Profile[[#This Row],[Window glazing]]<>"Average building",Carbon_Savings_By_Profile[[#This Row],[Ventilation]]<>"Average building"), SUMIFS(Table7[Emissions w/o AI market-based* (kgCO2e/building)],Backend!$K$10:$K$365,Carbon_Savings_By_Profile[[#This Row],[Window glazing]],Backend!$J$10:$J$365,Carbon_Savings_By_Profile[[#This Row],[Ventilation]]),SUMIFS(Table7[Emissions w/o AI market-based* (kgCO2e/building)],Backend!$H$10:$H$365,Carbon_Savings_By_Profile[[#This Row],[Year]],Backend!$K$10:$K$365,Carbon_Savings_By_Profile[[#This Row],[Window glazing]],Backend!$J$10:$J$365,Carbon_Savings_By_Profile[[#This Row],[Ventilation]]))))) -> 4821.92458 | I13: =Carbon_Savings_By_Profile[[#This Row],[Emissions w/o AI location-based (kgCO2e/year)]]/Carbon_Savings_By_Profile[[#This Row],[Buildings]] -> 4821.92458 | J13: =Carbon_Savings_By_Profile[[#This Row],[Emissions w/o AI market-based (kgCO2e/year)]]/Carbon_Savings_By_Profile[[#This Row],[Buildings]] -> 4821.92458 | K13: =IF(AND(Carbon_Savings_By_Profile[[#This Row],[Window glazing]]="Average building",Carbon_Savings_By_Profile[[#This Row],[Ventilation]]="Average building"), SUMIFS(Table7[Emissions w/o AI location-based (kgCO2e/m2)],Backend!$H$10:$H$365,Carbon_Savings_By_Profile[[#This Row],[Year]]),IF(AND(Carbon_Savings_By_Profile[[#This Row],[Year]]="Average building",Carbon_Savings_By_Profile[[#This Row],[Ventilation]]="Average building"),SUMIFS(Table7[Emissions w/o AI location-based (kgCO2e/m2)],Backend!$K$10:$K$365,Carbon_Savings_By_Profile[[#This Row],[Window glazing]]), IF(AND(Carbon_Savings_By_Profile[[#This Row],[Year]]="Average building",Carbon_Savings_By_Profile[[#This Row],[Window glazing]]="Average building"), SUMIFS(Table7[Emissions w/o AI location-based (kgCO2e/m2)],Backend!$J$10:$J$365,Carbon_Savings_By_Profile[[#This Row],[Ventilation]]), IF(AND(Carbon_Savings_By_Profile[[#This Row],[Year]]="Average building",Carbon_Savings_By_Profile[[#This Row],[Window glazing]]<>"Average building",Carbon_Savings_By_Profile[[#This Row],[Ventilation]]<>"Average building"), SUMIFS(Table7[Emissions w/o AI location-based (kgCO2e/m2)],Backend!$K$10:$K$365,Carbon_Savings_By_Profile[[#This Row],[Window glazing]],Backend!$J$10:$J$365,Carbon_Savings_By_Profile[[#This Row],[Ventilation]]),SUMIFS(Table7[Emissions w/o AI location-based (kgCO2e/m2)],Backend!$H$10:$H$365,Carbon_Savings_By_Profile[[#This Row],[Year]],Backend!$K$10:$K$365,Carbon_Savings_By_Profile[[#This Row],[Window glazing]],Backend!$J$10:$J$365,Carbon_Savings_By_Profile[[#This Row],[Ventilation]]))))) -> 6.810627938 | L13: =IF(AND(Carbon_Savings_By_Profile[[#This Row],[Window glazing]]="Average building",Carbon_Savings_By_Profile[[#This Row],[Ventilation]]="Average building"), SUMIFS(Table7[Emissions w/o AI market-based* (kgCO2e/m2)],Backend!$H$10:$H$365,Carbon_Savings_By_Profile[[#This Row],[Year]]),IF(AND(Carbon_Savings_By_Profile[[#This Row],[Year]]="Average building",Carbon_Savings_By_Profile[[#This Row],[Ventilation]]="Average building"),SUMIFS(Table7[Emissions w/o AI market-based* (kgCO2e/m2)],Backend!$K$10:$K$365,Carbon_Savings_By_Profile[[#This Row],[Window glazing]]), IF(AND(Carbon_Savings_By_Profile[[#This Row],[Year]]="Average building",Carbon_Savings_By_Profile[[#This Row],[Window glazing]]="Average building"), SUMIFS(Table7[Emissions w/o AI market-based* (kgCO2e/m2)],Backend!$J$10:$J$365,Carbon_Savings_By_Profile[[#This Row],[Ventilation]]), IF(AND(Carbon_Savings_By_Profile[[#This Row],[Year]]="Average building",Carbon_Savings_By_Profile[[#This Row],[Window glazing]]<>"Average building",Carbon_Savings_By_Profile[[#This Row],[Ventilation]]<>"Average building"), SUMIFS(Table7[Emissions w/o AI market-based* (kgCO2e/m2)],Backend!$K$10:$K$365,Carbon_Savings_By_Profile[[#This Row],[Window glazing]],Backend!$J$10:$J$365,Carbon_Savings_By_Profile[[#This Row],[Ventilation]]),SUMIFS(Table7[Emissions w/o AI market-based* (kgCO2e/m2)],Backend!$H$10:$H$365,Carbon_Savings_By_Profile[[#This Row],[Year]],Backend!$K$10:$K$365,Carbon_Savings_By_Profile[[#This Row],[Window glazing]],Backend!$J$10:$J$365,Carbon_Savings_By_Profile[[#This Row],[Ventilation]]))))) -> 6.810627938 | M13: =Carbon_Savings_By_Profile[[#This Row],[Emissions w/o AI location-based (kgCO2e/m2/year)]]/Carbon_Savings_By_Profile[[#This Row],[Buildings]] -> 6.810627938 | N13: =Carbon_Savings_By_Profile[[#This Row],[Emissions w/o AI market-based (kgCO2e/m2/year)]]/Carbon_Savings_By_Profile[[#This Row],[Buildings]] -> 6.810627938 | O13: =IF(AND(Carbon_Savings_By_Profile[[#This Row],[Window glazing]]="Average building",Carbon_Savings_By_Profile[[#This Row],[Ventilation]]="Average building"), SUMIFS(Backend!$AG$10:$AG$365,Backend!$H$10:$H$365,Carbon_Savings_By_Profile[[#This Row],[Year]]),IF(AND(Carbon_Savings_By_Profile[[#This Row],[Year]]="Average building",Carbon_Savings_By_Profile[[#This Row],[Ventilation]]="Average building"),SUMIFS(Backend!$AG$10:$AG$365,Backend!$K$10:$K$365,Carbon_Savings_By_Profile[[#This Row],[Window glazing]]), IF(AND(Carbon_Savings_By_Profile[[#This Row],[Year]]="Average building",Carbon_Savings_By_Profile[[#This Row],[Window glazing]]="Average building"), SUMIFS(Backend!$AG$10:$AG$365,Backend!$J$10:$J$365,Carbon_Savings_By_Profile[[#This Row],[Ventilation]]), IF(AND(Carbon_Savings_By_Profile[[#This Row],[Year]]="Average building",Carbon_Savings_By_Profile[[#This Row],[Window glazing]]<>"Average building",Carbon_Savings_By_Profile[[#This Row],[Ventilation]]<>"Average building"), SUMIFS(Backend!$AG$10:$AG$365,Backend!$K$10:$K$365,Carbon_Savings_By_Profile[[#This Row],[Window glazing]],Backend!$J$10:$J$365,Carbon_Savings_By_Profile[[#This Row],[Ventilation]]),SUMIFS(Backend!$AG$10:$AG$365,Backend!$H$10:$H$365,Carbon_Savings_By_Profile[[#This Row],[Year]],Backend!$K$10:$K$365,Carbon_Savings_By_Profile[[#This Row],[Window glazing]],Backend!$J$10:$J$365,Carbon_Savings_By_Profile[[#This Row],[Ventilation]]))))) -> 0.61006 | P13: =IF(AND(Carbon_Savings_By_Profile[[#This Row],[Window glazing]]="Average building",Carbon_Savings_By_Profile[[#This Row],[Ventilation]]="Average building"), SUMIFS(Backend!$AH$10:$AH$365,Backend!$H$10:$H$365,Carbon_Savings_By_Profile[[#This Row],[Year]]),IF(AND(Carbon_Savings_By_Profile[[#This Row],[Year]]="Average building",Carbon_Savings_By_Profile[[#This Row],[Ventilation]]="Average building"),SUMIFS(Backend!$AH$10:$AH$365,Backend!$K$10:$K$365,Carbon_Savings_By_Profile[[#This Row],[Window glazing]]), IF(AND(Carbon_Savings_By_Profile[[#This Row],[Year]]="Average building",Carbon_Savings_By_Profile[[#This Row],[Window glazing]]="Average building"), SUMIFS(Backend!$AH$10:$AH$365,Backend!$J$10:$J$365,Carbon_Savings_By_Profile[[#This Row],[Ventilation]]), IF(AND(Carbon_Savings_By_Profile[[#This Row],[Year]]="Average building",Carbon_Savings_By_Profile[[#This Row],[Window glazing]]<>"Average building",Carbon_Savings_By_Profile[[#This Row],[Ventilation]]<>"Average building"), SUMIFS(Backend!$AH$10:$AH$365,Backend!$K$10:$K$365,Carbon_Savings_By_Profile[[#This Row],[Window glazing]],Backend!$J$10:$J$365,Carbon_Savings_By_Profile[[#This Row],[Ventilation]]),SUMIFS(Backend!$AH$10:$AH$365,Backend!$H$10:$H$365,Carbon_Savings_By_Profile[[#This Row],[Year]],Backend!$K$10:$K$365,Carbon_Savings_By_Profile[[#This Row],[Window glazing]],Backend!$J$10:$J$365,Carbon_Savings_By_Profile[[#This Row],[Ventilation]]))))) -> 0.61006 | Q13: =IF(AND(Carbon_Savings_By_Profile[[#This Row],[Window glazing]]="Average building",Carbon_Savings_By_Profile[[#This Row],[Ventilation]]="Average building"), SUMIFS(Backend!$AI$10:$AI$365,Backend!$H$10:$H$365,Carbon_Savings_By_Profile[[#This Row],[Year]]),IF(AND(Carbon_Savings_By_Profile[[#This Row],[Year]]="Average building",Carbon_Savings_By_Profile[[#This Row],[Ventilation]]="Average building"),SUMIFS(Backend!$AI$10:$AI$365,Backend!$K$10:$K$365,Carbon_Savings_By_Profile[[#This Row],[Window glazing]]), IF(AND(Carbon_Savings_By_Profile[[#This Row],[Year]]="Average building",Carbon_Savings_By_Profile[[#This Row],[Window glazing]]="Average building"), SUMIFS(Backend!$AI$10:$AI$365,Backend!$J$10:$J$365,Carbon_Savings_By_Profile[[#This Row],[Ventilation]]), IF(AND(Carbon_Savings_By_Profile[[#This Row],[Year]]="Average building",Carbon_Savings_By_Profile[[#This Row],[Window glazing]]<>"Average building",Carbon_Savings_By_Profile[[#This Row],[Ventilation]]<>"Average building"), SUMIFS(Backend!$AI$10:$AI$365,Backend!$K$10:$K$365,Carbon_Savings_By_Profile[[#This Row],[Window glazing]],Backend!$J$10:$J$365,Carbon_Savings_By_Profile[[#This Row],[Ventilation]]),SUMIFS(Backend!$AI$10:$AI$365,Backend!$H$10:$H$365,Carbon_Savings_By_Profile[[#This Row],[Year]],Backend!$K$10:$K$365,Carbon_Savings_By_Profile[[#This Row],[Window glazing]],Backend!$J$10:$J$365,Carbon_Savings_By_Profile[[#This Row],[Ventilation]]))))) -> 431.92248 | R13: =IF(AND(Carbon_Savings_By_Profile[[#This Row],[Window glazing]]="Average building",Carbon_Savings_By_Profile[[#This Row],[Ventilation]]="Average building"), SUMIFS(Backend!$AJ$10:$AJ$365,Backend!$H$10:$H$365,Carbon_Savings_By_Profile[[#This Row],[Year]]),IF(AND(Carbon_Savings_By_Profile[[#This Row],[Year]]="Average building",Carbon_Savings_By_Profile[[#This Row],[Ventilation]]="Average building"),SUMIFS(Backend!$AJ$10:$AJ$365,Backend!$K$10:$K$365,Carbon_Savings_By_Profile[[#This Row],[Window glazing]]), IF(AND(Carbon_Savings_By_Profile[[#This Row],[Year]]="Average building",Carbon_Savings_By_Profile[[#This Row],[Window glazing]]="Average building"), SUMIFS(Backend!$AJ$10:$AJ$365,Backend!$J$10:$J$365,Carbon_Savings_By_Profile[[#This Row],[Ventilation]]), IF(AND(Carbon_Savings_By_Profile[[#This Row],[Year]]="Average building",Carbon_Savings_By_Profile[[#This Row],[Window glazing]]<>"Average building",Carbon_Savings_By_Profile[[#This Row],[Ventilation]]<>"Average building"), SUMIFS(Backend!$AJ$10:$AJ$365,Backend!$K$10:$K$365,Carbon_Savings_By_Profile[[#This Row],[Window glazing]],Backend!$J$10:$J$365,Carbon_Savings_By_Profile[[#This Row],[Ventilation]]),SUMIFS(Backend!$AJ$10:$AJ$365,Backend!$H$10:$H$365,Carbon_Savings_By_Profile[[#This Row],[Year]],Backend!$K$10:$K$365,Carbon_Savings_By_Profile[[#This Row],[Window glazing]],Backend!$J$10:$J$365,Carbon_Savings_By_Profile[[#This Row],[Ventilation]]))))) -> 431.92248 | S13: =Carbon_Savings_By_Profile[[#This Row],[Avoided emissions location-based (kgCO2e/m2/year) ]]/Carbon_Savings_By_Profile[[#This Row],[Buildings]] -> 0.61006 | T13: =Carbon_Savings_By_Profile[[#This Row],[Avoided emissions market-based (kgCO2e/m2/year)]]/Carbon_Savings_By_Profile[[#This Row],[Buildings]] -> 0.61006 | U13: =Carbon_Savings_By_Profile[[#This Row],[Avoided emissions location-based (kgCO2e/building/year)]]/Carbon_Savings_By_Profile[[#This Row],[Buildings]] -> 431.92248 | V13: =Carbon_Savings_By_Profile[[#This Row],[Avoided emissions market-based (kgCO2e/building/year)]]/Carbon_Savings_By_Profile[[#This Row],[Buildings]] -> 431.92248 | W13: =IF(AND(Carbon_Savings_By_Profile[[#This Row],[Window glazing]]="Average building",Carbon_Savings_By_Profile[[#This Row],[Ventilation]]="Average building"), SUMIFS(Backend!$AY$10:$AY$365,Backend!$H$10:$H$365,Carbon_Savings_By_Profile[[#This Row],[Year]]),IF(AND(Carbon_Savings_By_Profile[[#This Row],[Year]]="Average building",Carbon_Savings_By_Profile[[#This Row],[Ventilation]]="Average building"),SUMIFS(Backend!$AY$10:$AY$365,Backend!$K$10:$K$365,Carbon_Savings_By_Profile[[#This Row],[Window glazing]]), IF(AND(Carbon_Savings_By_Profile[[#This Row],[Year]]="Average building",Carbon_Savings_By_Profile[[#This Row],[Window glazing]]="Average building"), SUMIFS(Backend!$AY$10:$AY$365,Backend!$J$10:$J$365,Carbon_Savings_By_Profile[[#This Row],[Ventilation]]), IF(AND(Carbon_Savings_By_Profile[[#This Row],[Year]]="Average building",Carbon_Savings_By_Profile[[#This Row],[Window glazing]]<>"Average building",Carbon_Savings_By_Profile[[#This Row],[Ventilation]]<>"Average building"), SUMIFS(Backend!$AY$10:$AY$365,Backend!$K$10:$K$365,Carbon_Savings_By_Profile[[#This Row],[Window glazing]],Backend!$J$10:$J$365,Carbon_Savings_By_Profile[[#This Row],[Ventilation]]),SUMIFS(Backend!$AY$10:$AY$365,Backend!$H$10:$H$365,Carbon_Savings_By_Profile[[#This Row],[Year]],Backend!$K$10:$K$365,Carbon_Savings_By_Profile[[#This Row],[Window glazing]],Backend!$J$10:$J$365,Carbon_Savings_By_Profile[[#This Row],[Ventilation]]))))) -> 0.01088743543 | X13: =IF(AND(Carbon_Savings_By_Profile[[#This Row],[Window glazing]]="Average building",Carbon_Savings_By_Profile[[#This Row],[Ventilation]]="Average building"), SUMIFS(Backend!$AZ$10:$AZ$365,Backend!$H$10:$H$365,Carbon_Savings_By_Profile[[#This Row],[Year]]),IF(AND(Carbon_Savings_By_Profile[[#This Row],[Year]]="Average building",Carbon_Savings_By_Profile[[#This Row],[Ventilation]]="Average building"),SUMIFS(Backend!$AZ$10:$AZ$365,Backend!$K$10:$K$365,Carbon_Savings_By_Profile[[#This Row],[Window glazing]]), IF(AND(Carbon_Savings_By_Profile[[#This Row],[Year]]="Average building",Carbon_Savings_By_Profile[[#This Row],[Window glazing]]="Average building"), SUMIFS(Backend!$AZ$10:$AZ$365,Backend!$J$10:$J$365,Carbon_Savings_By_Profile[[#This Row],[Ventilation]]), IF(AND(Carbon_Savings_By_Profile[[#This Row],[Year]]="Average building",Carbon_Savings_By_Profile[[#This Row],[Window glazing]]<>"Average building",Carbon_Savings_By_Profile[[#This Row],[Ventilation]]<>"Average building"), SUMIFS(Backend!$AZ$10:$AZ$365,Backend!$K$10:$K$365,Carbon_Savings_By_Profile[[#This Row],[Window glazing]],Backend!$J$10:$J$365,Carbon_Savings_By_Profile[[#This Row],[Ventilation]]),SUMIFS(Backend!$AZ$10:$AZ$365,Backend!$H$10:$H$365,Carbon_Savings_By_Profile[[#This Row],[Year]],Backend!$K$10:$K$365,Carbon_Savings_By_Profile[[#This Row],[Window glazing]],Backend!$J$10:$J$365,Carbon_Savings_By_Profile[[#This Row],[Ventilation]]))))) -> 0.009620739439 | Y13: =IF(AND(Carbon_Savings_By_Profile[[#This Row],[Window glazing]]="Average building",Carbon_Savings_By_Profile[[#This Row],[Ventilation]]="Average building"), SUMIFS(Backend!$BA$10:$BA$365,Backend!$H$10:$H$365,Carbon_Savings_By_Profile[[#This Row],[Year]]),IF(AND(Carbon_Savings_By_Profile[[#This Row],[Year]]="Average building",Carbon_Savings_By_Profile[[#This Row],[Ventilation]]="Average building"),SUMIFS(Backend!$BA$10:$BA$365,Backend!$K$10:$K$365,Carbon_Savings_By_Profile[[#This Row],[Window glazing]]), IF(AND(Carbon_Savings_By_Profile[[#This Row],[Year]]="Average building",Carbon_Savings_By_Profile[[#This Row],[Window glazing]]="Average building"), SUMIFS(Backend!$BA$10:$BA$365,Backend!$J$10:$J$365,Carbon_Savings_By_Profile[[#This Row],[Ventilation]]), IF(AND(Carbon_Savings_By_Profile[[#This Row],[Year]]="Average building",Carbon_Savings_By_Profile[[#This Row],[Window glazing]]<>"Average building",Carbon_Savings_By_Profile[[#This Row],[Ventilation]]<>"Average building"), SUMIFS(Backend!$BA$10:$BA$365,Backend!$K$10:$K$365,Carbon_Savings_By_Profile[[#This Row],[Window glazing]],Backend!$J$10:$J$365,Carbon_Savings_By_Profile[[#This Row],[Ventilation]]),SUMIFS(Backend!$BA$10:$BA$365,Backend!$H$10:$H$365,Carbon_Savings_By_Profile[[#This Row],[Year]],Backend!$K$10:$K$365,Carbon_Savings_By_Profile[[#This Row],[Window glazing]],Backend!$J$10:$J$365,Carbon_Savings_By_Profile[[#This Row],[Ventilation]]))))) -> 7.708304286 | Z13: =IF(AND(Carbon_Savings_By_Profile[[#This Row],[Window glazing]]="Average building",Carbon_Savings_By_Profile[[#This Row],[Ventilation]]="Average building"), SUMIFS(Backend!$BB$10:$BB$365,Backend!$H$10:$H$365,Carbon_Savings_By_Profile[[#This Row],[Year]]),IF(AND(Carbon_Savings_By_Profile[[#This Row],[Year]]="Average building",Carbon_Savings_By_Profile[[#This Row],[Ventilation]]="Average building"),SUMIFS(Backend!$BB$10:$BB$365,Backend!$K$10:$K$365,Carbon_Savings_By_Profile[[#This Row],[Window glazing]]), IF(AND(Carbon_Savings_By_Profile[[#This Row],[Year]]="Average building",Carbon_Savings_By_Profile[[#This Row],[Window glazing]]="Average building"), SUMIFS(Backend!$BB$10:$BB$365,Backend!$J$10:$J$365,Carbon_Savings_By_Profile[[#This Row],[Ventilation]]), IF(AND(Carbon_Savings_By_Profile[[#This Row],[Year]]="Average building",Carbon_Savings_By_Profile[[#This Row],[Window glazing]]<>"Average building",Carbon_Savings_By_Profile[[#This Row],[Ventilation]]<>"Average building"), SUMIFS(Backend!$BB$10:$BB$365,Backend!$K$10:$K$365,Carbon_Savings_By_Profile[[#This Row],[Window glazing]],Backend!$J$10:$J$365,Carbon_Savings_By_Profile[[#This Row],[Ventilation]]),SUMIFS(Backend!$BB$10:$BB$365,Backend!$H$10:$H$365,Carbon_Savings_By_Profile[[#This Row],[Year]],Backend!$K$10:$K$365,Carbon_Savings_By_Profile[[#This Row],[Window glazing]],Backend!$J$10:$J$365,Carbon_Savings_By_Profile[[#This Row],[Ventilation]]))))) -> 6.811483523 | AA13: =Carbon_Savings_By_Profile[[#This Row],[Aggregated first order effects location-based (kgCO2e/m2/year)]]/Carbon_Savings_By_Profile[[#This Row],[Buildings]] -> 0.01088743543 | AB13: =Carbon_Savings_By_Profile[[#This Row],[Aggregated first order effects market-based (kgCO2e/m2/year)]]/Carbon_Savings_By_Profile[[#This Row],[Buildings]] -> 0.009620739439 | AC13: =Carbon_Savings_By_Profile[[#This Row],[Aggregated first order effects location-based (kgCO2e/year)]]/Carbon_Savings_By_Profile[[#This Row],[Buildings]] -> 7.708304286 | AD13: =Carbon_Savings_By_Profile[[#This Row],[Aggregated first order effects market-based (kgCO2e/building/year)]]/Carbon_Savings_By_Profile[[#This Row],[Buildings]] -> 6.811483523 | AE13: =IF(AND(Carbon_Savings_By_Profile[[#This Row],[Window glazing]]="Average building",Carbon_Savings_By_Profile[[#This Row],[Ventilation]]="Average building"), SUMIFS(Backend!$BE$10:$BE$365,Backend!$H$10:$H$365,Carbon_Savings_By_Profile[[#This Row],[Year]]),IF(AND(Carbon_Savings_By_Profile[[#This Row],[Year]]="Average building",Carbon_Savings_By_Profile[[#This Row],[Ventilation]]="Average building"),SUMIFS(Backend!$BE$10:$BE$365,Backend!$K$10:$K$365,Carbon_Savings_By_Profile[[#This Row],[Window glazing]]), IF(AND(Carbon_Savings_By_Profile[[#This Row],[Year]]="Average building",Carbon_Savings_By_Profile[[#This Row],[Window glazing]]="Average building"), SUMIFS(Backend!$BE$10:$BE$365,Backend!$J$10:$J$365,Carbon_Savings_By_Profile[[#This Row],[Ventilation]]), IF(AND(Carbon_Savings_By_Profile[[#This Row],[Year]]="Average building",Carbon_Savings_By_Profile[[#This Row],[Window glazing]]<>"Average building",Carbon_Savings_By_Profile[[#This Row],[Ventilation]]<>"Average building"), SUMIFS(Backend!$BE$10:$BE$365,Backend!$K$10:$K$365,Carbon_Savings_By_Profile[[#This Row],[Window glazing]],Backend!$J$10:$J$365,Carbon_Savings_By_Profile[[#This Row],[Ventilation]]),SUMIFS(Backend!$BE$10:$BE$365,Backend!$H$10:$H$365,Carbon_Savings_By_Profile[[#This Row],[Year]],Backend!$K$10:$K$365,Carbon_Savings_By_Profile[[#This Row],[Window glazing]],Backend!$J$10:$J$365,Carbon_Savings_By_Profile[[#This Row],[Ventilation]]))))) -> 0.5991725646 | AF13: =IF(AND(Carbon_Savings_By_Profile[[#This Row],[Window glazing]]="Average building",Carbon_Savings_By_Profile[[#This Row],[Ventilation]]="Average building"), SUMIFS(Backend!$BF$10:$BF$365,Backend!$H$10:$H$365,Carbon_Savings_By_Profile[[#This Row],[Year]]),IF(AND(Carbon_Savings_By_Profile[[#This Row],[Year]]="Average building",Carbon_Savings_By_Profile[[#This Row],[Ventilation]]="Average building"),SUMIFS(Backend!$BF$10:$BF$365,Backend!$K$10:$K$365,Carbon_Savings_By_Profile[[#This Row],[Window glazing]]), IF(AND(Carbon_Savings_By_Profile[[#This Row],[Year]]="Average building",Carbon_Savings_By_Profile[[#This Row],[Window glazing]]="Average building"), SUMIFS(Backend!$BF$10:$BF$365,Backend!$J$10:$J$365,Carbon_Savings_By_Profile[[#This Row],[Ventilation]]), IF(AND(Carbon_Savings_By_Profile[[#This Row],[Year]]="Average building",Carbon_Savings_By_Profile[[#This Row],[Window glazing]]<>"Average building",Carbon_Savings_By_Profile[[#This Row],[Ventilation]]<>"Average building"), SUMIFS(Backend!$BF$10:$BF$365,Backend!$K$10:$K$365,Carbon_Savings_By_Profile[[#This Row],[Window glazing]],Backend!$J$10:$J$365,Carbon_Savings_By_Profile[[#This Row],[Ventilation]]),SUMIFS(Backend!$BF$10:$BF$365,Backend!$H$10:$H$365,Carbon_Savings_By_Profile[[#This Row],[Year]],Backend!$K$10:$K$365,Carbon_Savings_By_Profile[[#This Row],[Window glazing]],Backend!$J$10:$J$365,Carbon_Savings_By_Profile[[#This Row],[Ventilation]]))))) -> 0.6004392606 | AG13: 0.5991725646 | AH13: =Carbon_Savings_By_Profile[[#This Row],[Net avoided emissions market-based (kgCO2e/m2/year)]]/Carbon_Savings_By_Profile[[#This Row],[Buildings]] -> 0.6004392606 | AI13: =IF(AND(Carbon_Savings_By_Profile[[#This Row],[Window glazing]]="Average building",Carbon_Savings_By_Profile[[#This Row],[Ventilation]]="Average building"), SUMIFS(Backend!$BG$10:$BG$365,Backend!$H$10:$H$365,Carbon_Savings_By_Profile[[#This Row],[Year]]),IF(AND(Carbon_Savings_By_Profile[[#This Row],[Year]]="Average building",Carbon_Savings_By_Profile[[#This Row],[Ventilation]]="Average building"),SUMIFS(Backend!$BG$10:$BG$365,Backend!$K$10:$K$365,Carbon_Savings_By_Profile[[#This Row],[Window glazing]]), IF(AND(Carbon_Savings_By_Profile[[#This Row],[Year]]="Average building",Carbon_Savings_By_Profile[[#This Row],[Window glazing]]="Average building"), SUMIFS(Backend!$BG$10:$BG$365,Backend!$J$10:$J$365,Carbon_Savings_By_Profile[[#This Row],[Ventilation]]), IF(AND(Carbon_Savings_By_Profile[[#This Row],[Year]]="Average building",Carbon_Savings_By_Profile[[#This Row],[Window glazing]]<>"Average building",Carbon_Savings_By_Profile[[#This Row],[Ventilation]]<>"Average building"), SUMIFS(Backend!$BG$10:$BG$365,Backend!$K$10:$K$365,Carbon_Savings_By_Profile[[#This Row],[Window glazing]],Backend!$J$10:$J$365,Carbon_Savings_By_Profile[[#This Row],[Ventilation]]),SUMIFS(Backend!$BG$10:$BG$365,Backend!$H$10:$H$365,Carbon_Savings_By_Profile[[#This Row],[Year]],Backend!$K$10:$K$365,Carbon_Savings_By_Profile[[#This Row],[Window glazing]],Backend!$J$10:$J$365,Carbon_Savings_By_Profile[[#This Row],[Ventilation]]))))) -> 424.2141757 | AJ13: =IF(AND(Carbon_Savings_By_Profile[[#This Row],[Window glazing]]="Average building",Carbon_Savings_By_Profile[[#This Row],[Ventilation]]="Average building"), SUMIFS(Backend!$BH$10:$BH$365,Backend!$H$10:$H$365,Carbon_Savings_By_Profile[[#This Row],[Year]]),IF(AND(Carbon_Savings_By_Profile[[#This Row],[Year]]="Average building",Carbon_Savings_By_Profile[[#This Row],[Ventilation]]="Average building"),SUMIFS(Backend!$BH$10:$BH$365,Backend!$K$10:$K$365,Carbon_Savings_By_Profile[[#This Row],[Window glazing]]), IF(AND(Carbon_Savings_By_Profile[[#This Row],[Year]]="Average building",Carbon_Savings_By_Profile[[#This Row],[Window glazing]]="Average building"), SUMIFS(Backend!$BH$10:$BH$365,Backend!$J$10:$J$365,Carbon_Savings_By_Profile[[#This Row],[Ventilation]]), IF(AND(Carbon_Savings_By_Profile[[#This Row],[Year]]="Average building",Carbon_Savings_By_Profile[[#This Row],[Window glazing]]<>"Average building",Carbon_Savings_By_Profile[[#This Row],[Ventilation]]<>"Average building"), SUMIFS(Backend!$BH$10:$BH$365,Backend!$K$10:$K$365,Carbon_Savings_By_Profile[[#This Row],[Window glazing]],Backend!$J$10:$J$365,Carbon_Savings_By_Profile[[#This Row],[Ventilation]]),SUMIFS(Backend!$BH$10:$BH$365,Backend!$H$10:$H$365,Carbon_Savings_By_Profile[[#This Row],[Year]],Backend!$K$10:$K$365,Carbon_Savings_By_Profile[[#This Row],[Window glazing]],Backend!$J$10:$J$365,Carbon_Savings_By_Profile[[#This Row],[Ventilation]]))))) -> 425.1109965 | AK13: =Carbon_Savings_By_Profile[[#This Row],[Net avoided emissions location-based (kgCO2e/year)]]/Carbon_Savings_By_Profile[[#This Row],[Buildings]] -> 424.2141757 | AL13: =Carbon_Savings_By_Profile[[#This Row],[Net avoided emissions market-based (kgCO2e/year)]]/Carbon_Savings_By_Profile[[#This Row],[Buildings]] -> 425.1109965 | AM13: =IF(Results!$L$15="market-based",Carbon_Savings_By_Profile[[#This Row],[Average net avoided emissions market-based (kgCO2e/m2/year)]],Carbon_Savings_By_Profile[[#This Row],[Average net avoided emissions location-based (kgCO2e/m2/year)]]) -> 0.5991725646 | AN13: =IF(AND(Carbon_Savings_By_Profile[[#This Row],[Window glazing]]="Average building",Carbon_Savings_By_Profile[[#This Row],[Ventilation]]="Average building"), SUMIFS(Table7[Emissions uncertainty per m2 location-based (kgCO2e)],Backend!$H$10:$H$365,Carbon_Savings_By_Profile[[#This Row],[Year]]),IF(AND(Carbon_Savings_By_Profile[[#This Row],[Year]]="Average building",Carbon_Savings_By_Profile[[#This Row],[Ventilation]]="Average building"),SUMIFS(Table7[Emissions uncertainty per m2 location-based (kgCO2e)],Backend!$K$10:$K$365,Carbon_Savings_By_Profile[[#This Row],[Window glazing]]), IF(AND(Carbon_Savings_By_Profile[[#This Row],[Year]]="Average building",Carbon_Savings_By_Profile[[#This Row],[Window glazing]]="Average building"), SUMIFS(Table7[Emissions uncertainty per m2 location-based (kgCO2e)],Backend!$J$10:$J$365,Carbon_Savings_By_Profile[[#This Row],[Ventilation]]), IF(AND(Carbon_Savings_By_Profile[[#This Row],[Year]]="Average building",Carbon_Savings_By_Profile[[#This Row],[Window glazing]]<>"Average building",Carbon_Savings_By_Profile[[#This Row],[Ventilation]]<>"Average building"), SUMIFS(Table7[Emissions uncertainty per m2 location-based (kgCO2e)],Backend!$K$10:$K$365,Carbon_Savings_By_Profile[[#This Row],[Window glazing]],Backend!$J$10:$J$365,Carbon_Savings_By_Profile[[#This Row],[Ventilation]]),SUMIFS(Table7[Emissions uncertainty per m2 location-based (kgCO2e)],Backend!$H$10:$H$365,Carbon_Savings_By_Profile[[#This Row],[Year]],Backend!$K$10:$K$365,Carbon_Savings_By_Profile[[#This Row],[Window glazing]],Backend!$J$10:$J$365,Carbon_Savings_By_Profile[[#This Row],[Ventilation]]))))) -> 0.04045924815 | AO13: =IF(AND(Carbon_Savings_By_Profile[[#This Row],[Window glazing]]="Average building",Carbon_Savings_By_Profile[[#This Row],[Ventilation]]="Average building"), SUMIFS(Table7[Emissions uncertainty per m2 market-based* (kgCO2e)],Backend!$H$10:$H$365,Carbon_Savings_By_Profile[[#This Row],[Year]]),IF(AND(Carbon_Savings_By_Profile[[#This Row],[Year]]="Average building",Carbon_Savings_By_Profile[[#This Row],[Ventilation]]="Average building"),SUMIFS(Table7[Emissions uncertainty per m2 market-based* (kgCO2e)],Backend!$K$10:$K$365,Carbon_Savings_By_Profile[[#This Row],[Window glazing]]), IF(AND(Carbon_Savings_By_Profile[[#This Row],[Year]]="Average building",Carbon_Savings_By_Profile[[#This Row],[Window glazing]]="Average building"), SUMIFS(Table7[Emissions uncertainty per m2 market-based* (kgCO2e)],Backend!$J$10:$J$365,Carbon_Savings_By_Profile[[#This Row],[Ventilation]]), IF(AND(Carbon_Savings_By_Profile[[#This Row],[Year]]="Average building",Carbon_Savings_By_Profile[[#This Row],[Window glazing]]<>"Average building",Carbon_Savings_By_Profile[[#This Row],[Ventilation]]<>"Average building"), SUMIFS(Table7[Emissions uncertainty per m2 market-based* (kgCO2e)],Backend!$K$10:$K$365,Carbon_Savings_By_Profile[[#This Row],[Window glazing]],Backend!$J$10:$J$365,Carbon_Savings_By_Profile[[#This Row],[Ventilation]]),SUMIFS(Table7[Emissions uncertainty per m2 market-based* (kgCO2e)],Backend!$H$10:$H$365,Carbon_Savings_By_Profile[[#This Row],[Year]],Backend!$K$10:$K$365,Carbon_Savings_By_Profile[[#This Row],[Window glazing]],Backend!$J$10:$J$365,Carbon_Savings_By_Profile[[#This Row],[Ventilation]]))))) -> 0.04045924815 | AP13: =Carbon_Savings_By_Profile[[#This Row],[Uncertainty location-based (kgCO2e/m2/year)]]/Carbon_Savings_By_Profile[[#This Row],[Buildings]] -> 0.04045924815 | AQ13: =Carbon_Savings_By_Profile[[#This Row],[Uncertainty market-based (kgCO2e/m2/year)]]/Carbon_Savings_By_Profile[[#This Row],[Buildings]] -> 0.04045924815 | AR13: -0.08797611175 | AS13: -0.08797611175
B14: 1945-1969 | C14: Double glazed | D14: Natural ventilation | E14: 1945-1969 - Double glazed - Natural ventilation | F14: =IF(AND(Carbon_Savings_By_Profile[[#This Row],[Window glazing]]="Average building",Carbon_Savings_By_Profile[[#This Row],[Ventilation]]="Average building"), COUNTIFS(Backend!$H$10:$H$365,Carbon_Savings_By_Profile[[#This Row],[Year]]),IF(AND(Carbon_Savings_By_Profile[[#This Row],[Year]]="Average building",Carbon_Savings_By_Profile[[#This Row],[Ventilation]]="Average building"),COUNTIFS(Backend!$K$10:$K$365,Carbon_Savings_By_Profile[[#This Row],[Window glazing]]), IF(AND(Carbon_Savings_By_Profile[[#This Row],[Year]]="Average building",Carbon_Savings_By_Profile[[#This Row],[Window glazing]]="Average building"), COUNTIFS(Backend!$J$10:$J$365,Carbon_Savings_By_Profile[[#This Row],[Ventilation]]), IF(AND(Carbon_Savings_By_Profile[[#This Row],[Year]]="Average building",Carbon_Savings_By_Profile[[#This Row],[Window glazing]]<>"Average building",Carbon_Savings_By_Profile[[#This Row],[Ventilation]]<>"Average building"), COUNTIFS(Backend!$K$10:$K$365,Carbon_Savings_By_Profile[[#This Row],[Window glazing]],Backend!$J$10:$J$365,Carbon_Savings_By_Profile[[#This Row],[Ventilation]]),COUNTIFS(Backend!$H$10:$H$365,Carbon_Savings_By_Profile[[#This Row],[Year]],Backend!$K$10:$K$365,Carbon_Savings_By_Profile[[#This Row],[Window glazing]],Backend!$J$10:$J$365,Carbon_Savings_By_Profile[[#This Row],[Ventilation]]))))) -> 7 | G14: =IF(AND(Carbon_Savings_By_Profile[[#This Row],[Window glazing]]="Average building",Carbon_Savings_By_Profile[[#This Row],[Ventilation]]="Average building"), SUMIFS(Table7[Emissions w/o AI location-based (kgCO2e/building)],Backend!$H$10:$H$365,Carbon_Savings_By_Profile[[#This Row],[Year]]),IF(AND(Carbon_Savings_By_Profile[[#This Row],[Year]]="Average building",Carbon_Savings_By_Profile[[#This Row],[Ventilation]]="Average building"),SUMIFS(Table7[Emissions w/o AI location-based (kgCO2e/building)],Backend!$K$10:$K$365,Carbon_Savings_By_Profile[[#This Row],[Window glazing]]), IF(AND(Carbon_Savings_By_Profile[[#This Row],[Year]]="Average building",Carbon_Savings_By_Profile[[#This Row],[Window glazing]]="Average building"), SUMIFS(Table7[Emissions w/o AI location-based (kgCO2e/building)],Backend!$J$10:$J$365,Carbon_Savings_By_Profile[[#This Row],[Ventilation]]), IF(AND(Carbon_Savings_By_Profile[[#This Row],[Year]]="Average building",Carbon_Savings_By_Profile[[#This Row],[Window glazing]]<>"Average building",Carbon_Savings_By_Profile[[#This Row],[Ventilation]]<>"Average building"), SUMIFS(Table7[Emissions w/o AI location-based (kgCO2e/building)],Backend!$K$10:$K$365,Carbon_Savings_By_Profile[[#This Row],[Window glazing]],Backend!$J$10:$J$365,Carbon_Savings_By_Profile[[#This Row],[Ventilation]]),SUMIFS(Table7[Emissions w/o AI location-based (kgCO2e/building)],Backend!$H$10:$H$365,Carbon_Savings_By_Profile[[#This Row],[Year]],Backend!$K$10:$K$365,Carbon_Savings_By_Profile[[#This Row],[Window glazing]],Backend!$J$10:$J$365,Carbon_Savings_By_Profile[[#This Row],[Ventilation]]))))) -> 316577.9602 | H14: =IF(AND(Carbon_Savings_By_Profile[[#This Row],[Window glazing]]="Average building",Carbon_Savings_By_Profile[[#This Row],[Ventilation]]="Average building"), SUMIFS(Table7[Emissions w/o AI market-based* (kgCO2e/building)],Backend!$H$10:$H$365,Carbon_Savings_By_Profile[[#This Row],[Year]]),IF(AND(Carbon_Savings_By_Profile[[#This Row],[Year]]="Average building",Carbon_Savings_By_Profile[[#This Row],[Ventilation]]="Average building"),SUMIFS(Table7[Emissions w/o AI market-based* (kgCO2e/building)],Backend!$K$10:$K$365,Carbon_Savings_By_Profile[[#This Row],[Window glazing]]), IF(AND(Carbon_Savings_By_Profile[[#This Row],[Year]]="Average building",Carbon_Savings_By_Profile[[#This Row],[Window glazing]]="Average building"), SUMIFS(Table7[Emissions w/o AI market-based* (kgCO2e/building)],Backend!$J$10:$J$365,Carbon_Savings_By_Profile[[#This Row],[Ventilation]]), IF(AND(Carbon_Savings_By_Profile[[#This Row],[Year]]="Average building",Carbon_Savings_By_Profile[[#This Row],[Window glazing]]<>"Average building",Carbon_Savings_By_Profile[[#This Row],[Ventilation]]<>"Average building"), SUMIFS(Table7[Emissions w/o AI market-based* (kgCO2e/building)],Backend!$K$10:$K$365,Carbon_Savings_By_Profile[[#This Row],[Window glazing]],Backend!$J$10:$J$365,Carbon_Savings_By_Profile[[#This Row],[Ventilation]]),SUMIFS(Table7[Emissions w/o AI market-based* (kgCO2e/building)],Backend!$H$10:$H$365,Carbon_Savings_By_Profile[[#This Row],[Year]],Backend!$K$10:$K$365,Carbon_Savings_By_Profile[[#This Row],[Window glazing]],Backend!$J$10:$J$365,Carbon_Savings_By_Profile[[#This Row],[Ventilation]]))))) -> 316577.9602 | I14: =Carbon_Savings_By_Profile[[#This Row],[Emissions w/o AI location-based (kgCO2e/year)]]/Carbon_Savings_By_Profile[[#This Row],[Buildings]] -> 45225.42288 | J14: =Carbon_Savings_By_Profile[[#This Row],[Emissions w/o AI market-based (kgCO2e/year)]]/Carbon_Savings_By_Profile[[#This Row],[Buildings]] -> 45225.42288 | K14: =IF(AND(Carbon_Savings_By_Profile[[#This Row],[Window glazing]]="Average building",Carbon_Savings_By_Profile[[#This Row],[Ventilation]]="Average building"), SUMIFS(Table7[Emissions w/o AI location-based (kgCO2e/m2)],Backend!$H$10:$H$365,Carbon_Savings_By_Profile[[#This Row],[Year]]),IF(AND(Carbon_Savings_By_Profile[[#This Row],[Year]]="Average building",Carbon_Savings_By_Profile[[#This Row],[Ventilation]]="Average building"),SUMIFS(Table7[Emissions w/o AI location-based (kgCO2e/m2)],Backend!$K$10:$K$365,Carbon_Savings_By_Profile[[#This Row],[Window glazing]]), IF(AND(Carbon_Savings_By_Profile[[#This Row],[Year]]="Average building",Carbon_Savings_By_Profile[[#This Row],[Window glazing]]="Average building"), SUMIFS(Table7[Emissions w/o AI location-based (kgCO2e/m2)],Backend!$J$10:$J$365,Carbon_Savings_By_Profile[[#This Row],[Ventilation]]), IF(AND(Carbon_Savings_By_Profile[[#This Row],[Year]]="Average building",Carbon_Savings_By_Profile[[#This Row],[Window glazing]]<>"Average building",Carbon_Savings_By_Profile[[#This Row],[Ventilation]]<>"Average building"), SUMIFS(Table7[Emissions w/o AI location-based (kgCO2e/m2)],Backend!$K$10:$K$365,Carbon_Savings_By_Profile[[#This Row],[Window glazing]],Backend!$J$10:$J$365,Carbon_Savings_By_Profile[[#This Row],[Ventilation]]),SUMIFS(Table7[Emissions w/o AI location-based (kgCO2e/m2)],Backend!$H$10:$H$365,Carbon_Savings_By_Profile[[#This Row],[Year]],Backend!$K$10:$K$365,Carbon_Savings_By_Profile[[#This Row],[Window glazing]],Backend!$J$10:$J$365,Carbon_Savings_By_Profile[[#This Row],[Ventilation]]))))) -> 58.10091022 | L14: =IF(AND(Carbon_Savings_By_Profile[[#This Row],[Window glazing]]="Average building",Carbon_Savings_By_Profile[[#This Row],[Ventilation]]="Average building"), SUMIFS(Table7[Emissions w/o AI market-based* (kgCO2e/m2)],Backend!$H$10:$H$365,Carbon_Savings_By_Profile[[#This Row],[Year]]),IF(AND(Carbon_Savings_By_Profile[[#This Row],[Year]]="Average building",Carbon_Savings_By_Profile[[#This Row],[Ventilation]]="Average building"),SUMIFS(Table7[Emissions w/o AI market-based* (kgCO2e/m2)],Backend!$K$10:$K$365,Carbon_Savings_By_Profile[[#This Row],[Window glazing]]), IF(AND(Carbon_Savings_By_Profile[[#This Row],[Year]]="Average building",Carbon_Savings_By_Profile[[#This Row],[Window glazing]]="Average building"), SUMIFS(Table7[Emissions w/o AI market-based* (kgCO2e/m2)],Backend!$J$10:$J$365,Carbon_Savings_By_Profile[[#This Row],[Ventilation]]), IF(AND(Carbon_Savings_By_Profile[[#This Row],[Year]]="Average building",Carbon_Savings_By_Profile[[#This Row],[Window glazing]]<>"Average building",Carbon_Savings_By_Profile[[#This Row],[Ventilation]]<>"Average building"), SUMIFS(Table7[Emissions w/o AI market-based* (kgCO2e/m2)],Backend!$K$10:$K$365,Carbon_Savings_By_Profile[[#This Row],[Window glazing]],Backend!$J$10:$J$365,Carbon_Savings_By_Profile[[#This Row],[Ventilation]]),SUMIFS(Table7[Emissions w/o AI market-based* (kgCO2e/m2)],Backend!$H$10:$H$365,Carbon_Savings_By_Profile[[#This Row],[Year]],Backend!$K$10:$K$365,Carbon_Savings_By_Profile[[#This Row],[Window glazing]],Backend!$J$10:$J$365,Carbon_Savings_By_Profile[[#This Row],[Ventilation]]))))) -> 58.10091022 | M14: =Carbon_Savings_By_Profile[[#This Row],[Emissions w/o AI location-based (kgCO2e/m2/year)]]/Carbon_Savings_By_Profile[[#This Row],[Buildings]] -> 8.300130031 | N14: =Carbon_Savings_By_Profile[[#This Row],[Emissions w/o AI market-based (kgCO2e/m2/year)]]/Carbon_Savings_By_Profile[[#This Row],[Buildings]] -> 8.300130031 | O14: =IF(AND(Carbon_Savings_By_Profile[[#This Row],[Window glazing]]="Average building",Carbon_Savings_By_Profile[[#This Row],[Ventilation]]="Average building"), SUMIFS(Backend!$AG$10:$AG$365,Backend!$H$10:$H$365,Carbon_Savings_By_Profile[[#This Row],[Year]]),IF(AND(Carbon_Savings_By_Profile[[#This Row],[Year]]="Average building",Carbon_Savings_By_Profile[[#This Row],[Ventilation]]="Average building"),SUMIFS(Backend!$AG$10:$AG$365,Backend!$K$10:$K$365,Carbon_Savings_By_Profile[[#This Row],[Window glazing]]), IF(AND(Carbon_Savings_By_Profile[[#This Row],[Year]]="Average building",Carbon_Savings_By_Profile[[#This Row],[Window glazing]]="Average building"), SUMIFS(Backend!$AG$10:$AG$365,Backend!$J$10:$J$365,Carbon_Savings_By_Profile[[#This Row],[Ventilation]]), IF(AND(Carbon_Savings_By_Profile[[#This Row],[Year]]="Average building",Carbon_Savings_By_Profile[[#This Row],[Window glazing]]<>"Average building",Carbon_Savings_By_Profile[[#This Row],[Ventilation]]<>"Average building"), SUMIFS(Backend!$AG$10:$AG$365,Backend!$K$10:$K$365,Carbon_Savings_By_Profile[[#This Row],[Window glazing]],Backend!$J$10:$J$365,Carbon_Savings_By_Profile[[#This Row],[Ventilation]]),SUMIFS(Backend!$AG$10:$AG$365,Backend!$H$10:$H$365,Carbon_Savings_By_Profile[[#This Row],[Year]],Backend!$K$10:$K$365,Carbon_Savings_By_Profile[[#This Row],[Window glazing]],Backend!$J$10:$J$365,Carbon_Savings_By_Profile[[#This Row],[Ventilation]]))))) -> 5.90414 | P14: =IF(AND(Carbon_Savings_By_Profile[[#This Row],[Window glazing]]="Average building",Carbon_Savings_By_Profile[[#This Row],[Ventilation]]="Average building"), SUMIFS(Backend!$AH$10:$AH$365,Backend!$H$10:$H$365,Carbon_Savings_By_Profile[[#This Row],[Year]]),IF(AND(Carbon_Savings_By_Profile[[#This Row],[Year]]="Average building",Carbon_Savings_By_Profile[[#This Row],[Ventilation]]="Average building"),SUMIFS(Backend!$AH$10:$AH$365,Backend!$K$10:$K$365,Carbon_Savings_By_Profile[[#This Row],[Window glazing]]), IF(AND(Carbon_Savings_By_Profile[[#This Row],[Year]]="Average building",Carbon_Savings_By_Profile[[#This Row],[Window glazing]]="Average building"), SUMIFS(Backend!$AH$10:$AH$365,Backend!$J$10:$J$365,Carbon_Savings_By_Profile[[#This Row],[Ventilation]]), IF(AND(Carbon_Savings_By_Profile[[#This Row],[Year]]="Average building",Carbon_Savings_By_Profile[[#This Row],[Window glazing]]<>"Average building",Carbon_Savings_By_Profile[[#This Row],[Ventilation]]<>"Average building"), SUMIFS(Backend!$AH$10:$AH$365,Backend!$K$10:$K$365,Carbon_Savings_By_Profile[[#This Row],[Window glazing]],Backend!$J$10:$J$365,Carbon_Savings_By_Profile[[#This Row],[Ventilation]]),SUMIFS(Backend!$AH$10:$AH$365,Backend!$H$10:$H$365,Carbon_Savings_By_Profile[[#This Row],[Year]],Backend!$K$10:$K$365,Carbon_Savings_By_Profile[[#This Row],[Window glazing]],Backend!$J$10:$J$365,Carbon_Savings_By_Profile[[#This Row],[Ventilation]]))))) -> 2.99673 | Q14: =IF(AND(Carbon_Savings_By_Profile[[#This Row],[Window glazing]]="Average building",Carbon_Savings_By_Profile[[#This Row],[Ventilation]]="Average building"), SUMIFS(Backend!$AI$10:$AI$365,Backend!$H$10:$H$365,Carbon_Savings_By_Profile[[#This Row],[Year]]),IF(AND(Carbon_Savings_By_Profile[[#This Row],[Year]]="Average building",Carbon_Savings_By_Profile[[#This Row],[Ventilation]]="Average building"),SUMIFS(Backend!$AI$10:$AI$365,Backend!$K$10:$K$365,Carbon_Savings_By_Profile[[#This Row],[Window glazing]]), IF(AND(Carbon_Savings_By_Profile[[#This Row],[Year]]="Average building",Carbon_Savings_By_Profile[[#This Row],[Window glazing]]="Average building"), SUMIFS(Backend!$AI$10:$AI$365,Backend!$J$10:$J$365,Carbon_Savings_By_Profile[[#This Row],[Ventilation]]), IF(AND(Carbon_Savings_By_Profile[[#This Row],[Year]]="Average building",Carbon_Savings_By_Profile[[#This Row],[Window glazing]]<>"Average building",Carbon_Savings_By_Profile[[#This Row],[Ventilation]]<>"Average building"), SUMIFS(Backend!$AI$10:$AI$365,Backend!$K$10:$K$365,Carbon_Savings_By_Profile[[#This Row],[Window glazing]],Backend!$J$10:$J$365,Carbon_Savings_By_Profile[[#This Row],[Ventilation]]),SUMIFS(Backend!$AI$10:$AI$365,Backend!$H$10:$H$365,Carbon_Savings_By_Profile[[#This Row],[Year]],Backend!$K$10:$K$365,Carbon_Savings_By_Profile[[#This Row],[Window glazing]],Backend!$J$10:$J$365,Carbon_Savings_By_Profile[[#This Row],[Ventilation]]))))) -> 32406.52679 | R14: =IF(AND(Carbon_Savings_By_Profile[[#This Row],[Window glazing]]="Average building",Carbon_Savings_By_Profile[[#This Row],[Ventilation]]="Average building"), SUMIFS(Backend!$AJ$10:$AJ$365,Backend!$H$10:$H$365,Carbon_Savings_By_Profile[[#This Row],[Year]]),IF(AND(Carbon_Savings_By_Profile[[#This Row],[Year]]="Average building",Carbon_Savings_By_Profile[[#This Row],[Ventilation]]="Average building"),SUMIFS(Backend!$AJ$10:$AJ$365,Backend!$K$10:$K$365,Carbon_Savings_By_Profile[[#This Row],[Window glazing]]), IF(AND(Carbon_Savings_By_Profile[[#This Row],[Year]]="Average building",Carbon_Savings_By_Profile[[#This Row],[Window glazing]]="Average building"), SUMIFS(Backend!$AJ$10:$AJ$365,Backend!$J$10:$J$365,Carbon_Savings_By_Profile[[#This Row],[Ventilation]]), IF(AND(Carbon_Savings_By_Profile[[#This Row],[Year]]="Average building",Carbon_Savings_By_Profile[[#This Row],[Window glazing]]<>"Average building",Carbon_Savings_By_Profile[[#This Row],[Ventilation]]<>"Average building"), SUMIFS(Backend!$AJ$10:$AJ$365,Backend!$K$10:$K$365,Carbon_Savings_By_Profile[[#This Row],[Window glazing]],Backend!$J$10:$J$365,Carbon_Savings_By_Profile[[#This Row],[Ventilation]]),SUMIFS(Backend!$AJ$10:$AJ$365,Backend!$H$10:$H$365,Carbon_Savings_By_Profile[[#This Row],[Year]],Backend!$K$10:$K$365,Carbon_Savings_By_Profile[[#This Row],[Window glazing]],Backend!$J$10:$J$365,Carbon_Savings_By_Profile[[#This Row],[Ventilation]]))))) -> 13114.25611 | S14: =Carbon_Savings_By_Profile[[#This Row],[Avoided emissions location-based (kgCO2e/m2/year) ]]/Carbon_Savings_By_Profile[[#This Row],[Buildings]] -> 0.8434485714 | T14: =Carbon_Savings_By_Profile[[#This Row],[Avoided emissions market-based (kgCO2e/m2/year)]]/Carbon_Savings_By_Profile[[#This Row],[Buildings]] -> 0.4281042857 | U14: =Carbon_Savings_By_Profile[[#This Row],[Avoided emissions location-based (kgCO2e/building/year)]]/Carbon_Savings_By_Profile[[#This Row],[Buildings]] -> 4629.503827 | V14: =Carbon_Savings_By_Profile[[#This Row],[Avoided emissions market-based (kgCO2e/building/year)]]/Carbon_Savings_By_Profile[[#This Row],[Buildings]] -> 1873.465159 | W14: =IF(AND(Carbon_Savings_By_Profile[[#This Row],[Window glazing]]="Average building",Carbon_Savings_By_Profile[[#This Row],[Ventilation]]="Average building"), SUMIFS(Backend!$AY$10:$AY$365,Backend!$H$10:$H$365,Carbon_Savings_By_Profile[[#This Row],[Year]]),IF(AND(Carbon_Savings_By_Profile[[#This Row],[Year]]="Average building",Carbon_Savings_By_Profile[[#This Row],[Ventilation]]="Average building"),SUMIFS(Backend!$AY$10:$AY$365,Backend!$K$10:$K$365,Carbon_Savings_By_Profile[[#This Row],[Window glazing]]), IF(AND(Carbon_Savings_By_Profile[[#This Row],[Year]]="Average building",Carbon_Savings_By_Profile[[#This Row],[Window glazing]]="Average building"), SUMIFS(Backend!$AY$10:$AY$365,Backend!$J$10:$J$365,Carbon_Savings_By_Profile[[#This Row],[Ventilation]]), IF(AND(Carbon_Savings_By_Profile[[#This Row],[Year]]="Average building",Carbon_Savings_By_Profile[[#This Row],[Window glazing]]<>"Average building",Carbon_Savings_By_Profile[[#This Row],[Ventilation]]<>"Average building"), SUMIFS(Backend!$AY$10:$AY$365,Backend!$K$10:$K$365,Carbon_Savings_By_Profile[[#This Row],[Window glazing]],Backend!$J$10:$J$365,Carbon_Savings_By_Profile[[#This Row],[Ventilation]]),SUMIFS(Backend!$AY$10:$AY$365,Backend!$H$10:$H$365,Carbon_Savings_By_Profile[[#This Row],[Year]],Backend!$K$10:$K$365,Carbon_Savings_By_Profile[[#This Row],[Window glazing]],Backend!$J$10:$J$365,Carbon_Savings_By_Profile[[#This Row],[Ventilation]]))))) -> 0.02036887201 | X14: =IF(AND(Carbon_Savings_By_Profile[[#This Row],[Window glazing]]="Average building",Carbon_Savings_By_Profile[[#This Row],[Ventilation]]="Average building"), SUMIFS(Backend!$AZ$10:$AZ$365,Backend!$H$10:$H$365,Carbon_Savings_By_Profile[[#This Row],[Year]]),IF(AND(Carbon_Savings_By_Profile[[#This Row],[Year]]="Average building",Carbon_Savings_By_Profile[[#This Row],[Ventilation]]="Average building"),SUMIFS(Backend!$AZ$10:$AZ$365,Backend!$K$10:$K$365,Carbon_Savings_By_Profile[[#This Row],[Window glazing]]), IF(AND(Carbon_Savings_By_Profile[[#This Row],[Year]]="Average building",Carbon_Savings_By_Profile[[#This Row],[Window glazing]]="Average building"), SUMIFS(Backend!$AZ$10:$AZ$365,Backend!$J$10:$J$365,Carbon_Savings_By_Profile[[#This Row],[Ventilation]]), IF(AND(Carbon_Savings_By_Profile[[#This Row],[Year]]="Average building",Carbon_Savings_By_Profile[[#This Row],[Window glazing]]<>"Average building",Carbon_Savings_By_Profile[[#This Row],[Ventilation]]<>"Average building"), SUMIFS(Backend!$AZ$10:$AZ$365,Backend!$K$10:$K$365,Carbon_Savings_By_Profile[[#This Row],[Window glazing]],Backend!$J$10:$J$365,Carbon_Savings_By_Profile[[#This Row],[Ventilation]]),SUMIFS(Backend!$AZ$10:$AZ$365,Backend!$H$10:$H$365,Carbon_Savings_By_Profile[[#This Row],[Year]],Backend!$K$10:$K$365,Carbon_Savings_By_Profile[[#This Row],[Window glazing]],Backend!$J$10:$J$365,Carbon_Savings_By_Profile[[#This Row],[Ventilation]]))))) -> 0.01852250331 | Y14: =IF(AND(Carbon_Savings_By_Profile[[#This Row],[Window glazing]]="Average building",Carbon_Savings_By_Profile[[#This Row],[Ventilation]]="Average building"), SUMIFS(Backend!$BA$10:$BA$365,Backend!$H$10:$H$365,Carbon_Savings_By_Profile[[#This Row],[Year]]),IF(AND(Carbon_Savings_By_Profile[[#This Row],[Year]]="Average building",Carbon_Savings_By_Profile[[#This Row],[Ventilation]]="Average building"),SUMIFS(Backend!$BA$10:$BA$365,Backend!$K$10:$K$365,Carbon_Savings_By_Profile[[#This Row],[Window glazing]]), IF(AND(Carbon_Savings_By_Profile[[#This Row],[Year]]="Average building",Carbon_Savings_By_Profile[[#This Row],[Window glazing]]="Average building"), SUMIFS(Backend!$BA$10:$BA$365,Backend!$J$10:$J$365,Carbon_Savings_By_Profile[[#This Row],[Ventilation]]), IF(AND(Carbon_Savings_By_Profile[[#This Row],[Year]]="Average building",Carbon_Savings_By_Profile[[#This Row],[Window glazing]]<>"Average building",Carbon_Savings_By_Profile[[#This Row],[Ventilation]]<>"Average building"), SUMIFS(Backend!$BA$10:$BA$365,Backend!$K$10:$K$365,Carbon_Savings_By_Profile[[#This Row],[Window glazing]],Backend!$J$10:$J$365,Carbon_Savings_By_Profile[[#This Row],[Ventilation]]),SUMIFS(Backend!$BA$10:$BA$365,Backend!$H$10:$H$365,Carbon_Savings_By_Profile[[#This Row],[Year]],Backend!$K$10:$K$365,Carbon_Savings_By_Profile[[#This Row],[Window glazing]],Backend!$J$10:$J$365,Carbon_Savings_By_Profile[[#This Row],[Ventilation]]))))) -> 74.15454762 | Z14: =IF(AND(Carbon_Savings_By_Profile[[#This Row],[Window glazing]]="Average building",Carbon_Savings_By_Profile[[#This Row],[Ventilation]]="Average building"), SUMIFS(Backend!$BB$10:$BB$365,Backend!$H$10:$H$365,Carbon_Savings_By_Profile[[#This Row],[Year]]),IF(AND(Carbon_Savings_By_Profile[[#This Row],[Year]]="Average building",Carbon_Savings_By_Profile[[#This Row],[Ventilation]]="Average building"),SUMIFS(Backend!$BB$10:$BB$365,Backend!$K$10:$K$365,Carbon_Savings_By_Profile[[#This Row],[Window glazing]]), IF(AND(Carbon_Savings_By_Profile[[#This Row],[Year]]="Average building",Carbon_Savings_By_Profile[[#This Row],[Window glazing]]="Average building"), SUMIFS(Backend!$BB$10:$BB$365,Backend!$J$10:$J$365,Carbon_Savings_By_Profile[[#This Row],[Ventilation]]), IF(AND(Carbon_Savings_By_Profile[[#This Row],[Year]]="Average building",Carbon_Savings_By_Profile[[#This Row],[Window glazing]]<>"Average building",Carbon_Savings_By_Profile[[#This Row],[Ventilation]]<>"Average building"), SUMIFS(Backend!$BB$10:$BB$365,Backend!$K$10:$K$365,Carbon_Savings_By_Profile[[#This Row],[Window glazing]],Backend!$J$10:$J$365,Carbon_Savings_By_Profile[[#This Row],[Ventilation]]),SUMIFS(Backend!$BB$10:$BB$365,Backend!$H$10:$H$365,Carbon_Savings_By_Profile[[#This Row],[Year]],Backend!$K$10:$K$365,Carbon_Savings_By_Profile[[#This Row],[Window glazing]],Backend!$J$10:$J$365,Carbon_Savings_By_Profile[[#This Row],[Ventilation]]))))) -> 67.87680227 | AA14: =Carbon_Savings_By_Profile[[#This Row],[Aggregated first order effects location-based (kgCO2e/m2/year)]]/Carbon_Savings_By_Profile[[#This Row],[Buildings]] -> 0.002909838859 | AB14: =Carbon_Savings_By_Profile[[#This Row],[Aggregated first order effects market-based (kgCO2e/m2/year)]]/Carbon_Savings_By_Profile[[#This Row],[Buildings]] -> 0.002646071902 | AC14: =Carbon_Savings_By_Profile[[#This Row],[Aggregated first order effects location-based (kgCO2e/year)]]/Carbon_Savings_By_Profile[[#This Row],[Buildings]] -> 10.5935068 | AD14: =Carbon_Savings_By_Profile[[#This Row],[Aggregated first order effects market-based (kgCO2e/building/year)]]/Carbon_Savings_By_Profile[[#This Row],[Buildings]] -> 9.696686039 | AE14: =IF(AND(Carbon_Savings_By_Profile[[#This Row],[Window glazing]]="Average building",Carbon_Savings_By_Profile[[#This Row],[Ventilation]]="Average building"), SUMIFS(Backend!$BE$10:$BE$365,Backend!$H$10:$H$365,Carbon_Savings_By_Profile[[#This Row],[Year]]),IF(AND(Carbon_Savings_By_Profile[[#This Row],[Year]]="Average building",Carbon_Savings_By_Profile[[#This Row],[Ventilation]]="Average building"),SUMIFS(Backend!$BE$10:$BE$365,Backend!$K$10:$K$365,Carbon_Savings_By_Profile[[#This Row],[Window glazing]]), IF(AND(Carbon_Savings_By_Profile[[#This Row],[Year]]="Average building",Carbon_Savings_By_Profile[[#This Row],[Window glazing]]="Average building"), SUMIFS(Backend!$BE$10:$BE$365,Backend!$J$10:$J$365,Carbon_Savings_By_Profile[[#This Row],[Ventilation]]), IF(AND(Carbon_Savings_By_Profile[[#This Row],[Year]]="Average building",Carbon_Savings_By_Profile[[#This Row],[Window glazing]]<>"Average building",Carbon_Savings_By_Profile[[#This Row],[Ventilation]]<>"Average building"), SUMIFS(Backend!$BE$10:$BE$365,Backend!$K$10:$K$365,Carbon_Savings_By_Profile[[#This Row],[Window glazing]],Backend!$J$10:$J$365,Carbon_Savings_By_Profile[[#This Row],[Ventilation]]),SUMIFS(Backend!$BE$10:$BE$365,Backend!$H$10:$H$365,Carbon_Savings_By_Profile[[#This Row],[Year]],Backend!$K$10:$K$365,Carbon_Savings_By_Profile[[#This Row],[Window glazing]],Backend!$J$10:$J$365,Carbon_Savings_By_Profile[[#This Row],[Ventilation]]))))) -> 5.883771128 | AF14: =IF(AND(Carbon_Savings_By_Profile[[#This Row],[Window glazing]]="Average building",Carbon_Savings_By_Profile[[#This Row],[Ventilation]]="Average building"), SUMIFS(Backend!$BF$10:$BF$365,Backend!$H$10:$H$365,Carbon_Savings_By_Profile[[#This Row],[Year]]),IF(AND(Carbon_Savings_By_Profile[[#This Row],[Year]]="Average building",Carbon_Savings_By_Profile[[#This Row],[Ventilation]]="Average building"),SUMIFS(Backend!$BF$10:$BF$365,Backend!$K$10:$K$365,Carbon_Savings_By_Profile[[#This Row],[Window glazing]]), IF(AND(Carbon_Savings_By_Profile[[#This Row],[Year]]="Average building",Carbon_Savings_By_Profile[[#This Row],[Window glazing]]="Average building"), SUMIFS(Backend!$BF$10:$BF$365,Backend!$J$10:$J$365,Carbon_Savings_By_Profile[[#This Row],[Ventilation]]), IF(AND(Carbon_Savings_By_Profile[[#This Row],[Year]]="Average building",Carbon_Savings_By_Profile[[#This Row],[Window glazing]]<>"Average building",Carbon_Savings_By_Profile[[#This Row],[Ventilation]]<>"Average building"), SUMIFS(Backend!$BF$10:$BF$365,Backend!$K$10:$K$365,Carbon_Savings_By_Profile[[#This Row],[Window glazing]],Backend!$J$10:$J$365,Carbon_Savings_By_Profile[[#This Row],[Ventilation]]),SUMIFS(Backend!$BF$10:$BF$365,Backend!$H$10:$H$365,Carbon_Savings_By_Profile[[#This Row],[Year]],Backend!$K$10:$K$365,Carbon_Savings_By_Profile[[#This Row],[Window glazing]],Backend!$J$10:$J$365,Carbon_Savings_By_Profile[[#This Row],[Ventilation]]))))) -> 2.978207497 | AG14: 0.8405387326 | AH14: =Carbon_Savings_By_Profile[[#This Row],[Net avoided emissions market-based (kgCO2e/m2/year)]]/Carbon_Savings_By_Profile[[#This Row],[Buildings]] -> 0.4254582138 | AI14: =IF(AND(Carbon_Savings_By_Profile[[#This Row],[Window glazing]]="Average building",Carbon_Savings_By_Profile[[#This Row],[Ventilation]]="Average building"), SUMIFS(Backend!$BG$10:$BG$365,Backend!$H$10:$H$365,Carbon_Savings_By_Profile[[#This Row],[Year]]),IF(AND(Carbon_Savings_By_Profile[[#This Row],[Year]]="Average building",Carbon_Savings_By_Profile[[#This Row],[Ventilation]]="Average building"),SUMIFS(Backend!$BG$10:$BG$365,Backend!$K$10:$K$365,Carbon_Savings_By_Profile[[#This Row],[Window glazing]]), IF(AND(Carbon_Savings_By_Profile[[#This Row],[Year]]="Average building",Carbon_Savings_By_Profile[[#This Row],[Window glazing]]="Average building"), SUMIFS(Backend!$BG$10:$BG$365,Backend!$J$10:$J$365,Carbon_Savings_By_Profile[[#This Row],[Ventilation]]), IF(AND(Carbon_Savings_By_Profile[[#This Row],[Year]]="Average building",Carbon_Savings_By_Profile[[#This Row],[Window glazing]]<>"Average building",Carbon_Savings_By_Profile[[#This Row],[Ventilation]]<>"Average building"), SUMIFS(Backend!$BG$10:$BG$365,Backend!$K$10:$K$365,Carbon_Savings_By_Profile[[#This Row],[Window glazing]],Backend!$J$10:$J$365,Carbon_Savings_By_Profile[[#This Row],[Ventilation]]),SUMIFS(Backend!$BG$10:$BG$365,Backend!$H$10:$H$365,Carbon_Savings_By_Profile[[#This Row],[Year]],Backend!$K$10:$K$365,Carbon_Savings_By_Profile[[#This Row],[Window glazing]],Backend!$J$10:$J$365,Carbon_Savings_By_Profile[[#This Row],[Ventilation]]))))) -> 32332.37224 | AJ14: =IF(AND(Carbon_Savings_By_Profile[[#This Row],[Window glazing]]="Average building",Carbon_Savings_By_Profile[[#This Row],[Ventilation]]="Average building"), SUMIFS(Backend!$BH$10:$BH$365,Backend!$H$10:$H$365,Carbon_Savings_By_Profile[[#This Row],[Year]]),IF(AND(Carbon_Savings_By_Profile[[#This Row],[Year]]="Average building",Carbon_Savings_By_Profile[[#This Row],[Ventilation]]="Average building"),SUMIFS(Backend!$BH$10:$BH$365,Backend!$K$10:$K$365,Carbon_Savings_By_Profile[[#This Row],[Window glazing]]), IF(AND(Carbon_Savings_By_Profile[[#This Row],[Year]]="Average building",Carbon_Savings_By_Profile[[#This Row],[Window glazing]]="Average building"), SUMIFS(Backend!$BH$10:$BH$365,Backend!$J$10:$J$365,Carbon_Savings_By_Profile[[#This Row],[Ventilation]]), IF(AND(Carbon_Savings_By_Profile[[#This Row],[Year]]="Average building",Carbon_Savings_By_Profile[[#This Row],[Window glazing]]<>"Average building",Carbon_Savings_By_Profile[[#This Row],[Ventilation]]<>"Average building"), SUMIFS(Backend!$BH$10:$BH$365,Backend!$K$10:$K$365,Carbon_Savings_By_Profile[[#This Row],[Window glazing]],Backend!$J$10:$J$365,Carbon_Savings_By_Profile[[#This Row],[Ventilation]]),SUMIFS(Backend!$BH$10:$BH$365,Backend!$H$10:$H$365,Carbon_Savings_By_Profile[[#This Row],[Year]],Backend!$K$10:$K$365,Carbon_Savings_By_Profile[[#This Row],[Window glazing]],Backend!$J$10:$J$365,Carbon_Savings_By_Profile[[#This Row],[Ventilation]]))))) -> 13046.37931 | AK14: =Carbon_Savings_By_Profile[[#This Row],[Net avoided emissions location-based (kgCO2e/year)]]/Carbon_Savings_By_Profile[[#This Row],[Buildings]] -> 4618.91032 | AL14: =Carbon_Savings_By_Profile[[#This Row],[Net avoided emissions market-based (kgCO2e/year)]]/Carbon_Savings_By_Profile[[#This Row],[Buildings]] -> 1863.768473 | AM14: =IF(Results!$L$15="market-based",Carbon_Savings_By_Profile[[#This Row],[Average net avoided emissions market-based (kgCO2e/m2/year)]],Carbon_Savings_By_Profile[[#This Row],[Average net avoided emissions location-based (kgCO2e/m2/year)]]) -> 0.8405387326 | AN14: =IF(AND(Carbon_Savings_By_Profile[[#This Row],[Window glazing]]="Average building",Carbon_Savings_By_Profile[[#This Row],[Ventilation]]="Average building"), SUMIFS(Table7[Emissions uncertainty per m2 location-based (kgCO2e)],Backend!$H$10:$H$365,Carbon_Savings_By_Profile[[#This Row],[Year]]),IF(AND(Carbon_Savings_By_Profile[[#This Row],[Year]]="Average building",Carbon_Savings_By_Profile[[#This Row],[Ventilation]]="Average building"),SUMIFS(Table7[Emissions uncertainty per m2 location-based (kgCO2e)],Backend!$K$10:$K$365,Carbon_Savings_By_Profile[[#This Row],[Window glazing]]), IF(AND(Carbon_Savings_By_Profile[[#This Row],[Year]]="Average building",Carbon_Savings_By_Profile[[#This Row],[Window glazing]]="Average building"), SUMIFS(Table7[Emissions uncertainty per m2 location-based (kgCO2e)],Backend!$J$10:$J$365,Carbon_Savings_By_Profile[[#This Row],[Ventilation]]), IF(AND(Carbon_Savings_By_Profile[[#This Row],[Year]]="Average building",Carbon_Savings_By_Profile[[#This Row],[Window glazing]]<>"Average building",Carbon_Savings_By_Profile[[#This Row],[Ventilation]]<>"Average building"), SUMIFS(Table7[Emissions uncertainty per m2 location-based (kgCO2e)],Backend!$K$10:$K$365,Carbon_Savings_By_Profile[[#This Row],[Window glazing]],Backend!$J$10:$J$365,Carbon_Savings_By_Profile[[#This Row],[Ventilation]]),SUMIFS(Table7[Emissions uncertainty per m2 location-based (kgCO2e)],Backend!$H$10:$H$365,Carbon_Savings_By_Profile[[#This Row],[Year]],Backend!$K$10:$K$365,Carbon_Savings_By_Profile[[#This Row],[Window glazing]],Backend!$J$10:$J$365,Carbon_Savings_By_Profile[[#This Row],[Ventilation]]))))) -> 0.3915632321 | AO14: =IF(AND(Carbon_Savings_By_Profile[[#This Row],[Window glazing]]="Average building",Carbon_Savings_By_Profile[[#This Row],[Ventilation]]="Average building"), SUMIFS(Table7[Emissions uncertainty per m2 market-based* (kgCO2e)],Backend!$H$10:$H$365,Carbon_Savings_By_Profile[[#This Row],[Year]]),IF(AND(Carbon_Savings_By_Profile[[#This Row],[Year]]="Average building",Carbon_Savings_By_Profile[[#This Row],[Ventilation]]="Average building"),SUMIFS(Table7[Emissions uncertainty per m2 market-based* (kgCO2e)],Backend!$K$10:$K$365,Carbon_Savings_By_Profile[[#This Row],[Window glazing]]), IF(AND(Carbon_Savings_By_Profile[[#This Row],[Year]]="Average building",Carbon_Savings_By_Profile[[#This Row],[Window glazing]]="Average building"), SUMIFS(Table7[Emissions uncertainty per m2 market-based* (kgCO2e)],Backend!$J$10:$J$365,Carbon_Savings_By_Profile[[#This Row],[Ventilation]]), IF(AND(Carbon_Savings_By_Profile[[#This Row],[Year]]="Average building",Carbon_Savings_By_Profile[[#This Row],[Window glazing]]<>"Average building",Carbon_Savings_By_Profile[[#This Row],[Ventilation]]<>"Average building"), SUMIFS(Table7[Emissions uncertainty per m2 market-based* (kgCO2e)],Backend!$K$10:$K$365,Carbon_Savings_By_Profile[[#This Row],[Window glazing]],Backend!$J$10:$J$365,Carbon_Savings_By_Profile[[#This Row],[Ventilation]]),SUMIFS(Table7[Emissions uncertainty per m2 market-based* (kgCO2e)],Backend!$H$10:$H$365,Carbon_Savings_By_Profile[[#This Row],[Year]],Backend!$K$10:$K$365,Carbon_Savings_By_Profile[[#This Row],[Window glazing]],Backend!$J$10:$J$365,Carbon_Savings_By_Profile[[#This Row],[Ventilation]]))))) -> 0.1987434723 | AP14: =Carbon_Savings_By_Profile[[#This Row],[Uncertainty location-based (kgCO2e/m2/year)]]/Carbon_Savings_By_Profile[[#This Row],[Buildings]] -> 0.05593760458 | AQ14: =Carbon_Savings_By_Profile[[#This Row],[Uncertainty market-based (kgCO2e/m2/year)]]/Carbon_Savings_By_Profile[[#This Row],[Buildings]] -> 0.02839192461 | AR14: -0.1012681403 | AS14: -0.1021308376
B15: 1945-1969 | C15: Double glazed | D15: ESX | E15: 1945-1969 - Double glazed - ESX | F15: =IF(AND(Carbon_Savings_By_Profile[[#This Row],[Window glazing]]="Average building",Carbon_Savings_By_Profile[[#This Row],[Ventilation]]="Average building"), COUNTIFS(Backend!$H$10:$H$365,Carbon_Savings_By_Profile[[#This Row],[Year]]),IF(AND(Carbon_Savings_By_Profile[[#This Row],[Year]]="Average building",Carbon_Savings_By_Profile[[#This Row],[Ventilation]]="Average building"),COUNTIFS(Backend!$K$10:$K$365,Carbon_Savings_By_Profile[[#This Row],[Window glazing]]), IF(AND(Carbon_Savings_By_Profile[[#This Row],[Year]]="Average building",Carbon_Savings_By_Profile[[#This Row],[Window glazing]]="Average building"), COUNTIFS(Backend!$J$10:$J$365,Carbon_Savings_By_Profile[[#This Row],[Ventilation]]), IF(AND(Carbon_Savings_By_Profile[[#This Row],[Year]]="Average building",Carbon_Savings_By_Profile[[#This Row],[Window glazing]]<>"Average building",Carbon_Savings_By_Profile[[#This Row],[Ventilation]]<>"Average building"), COUNTIFS(Backend!$K$10:$K$365,Carbon_Savings_By_Profile[[#This Row],[Window glazing]],Backend!$J$10:$J$365,Carbon_Savings_By_Profile[[#This Row],[Ventilation]]),COUNTIFS(Backend!$H$10:$H$365,Carbon_Savings_By_Profile[[#This Row],[Year]],Backend!$K$10:$K$365,Carbon_Savings_By_Profile[[#This Row],[Window glazing]],Backend!$J$10:$J$365,Carbon_Savings_By_Profile[[#This Row],[Ventilation]]))))) -> 20 | G15: =IF(AND(Carbon_Savings_By_Profile[[#This Row],[Window glazing]]="Average building",Carbon_Savings_By_Profile[[#This Row],[Ventilation]]="Average building"), SUMIFS(Table7[Emissions w/o AI location-based (kgCO2e/building)],Backend!$H$10:$H$365,Carbon_Savings_By_Profile[[#This Row],[Year]]),IF(AND(Carbon_Savings_By_Profile[[#This Row],[Year]]="Average building",Carbon_Savings_By_Profile[[#This Row],[Ventilation]]="Average building"),SUMIFS(Table7[Emissions w/o AI location-based (kgCO2e/building)],Backend!$K$10:$K$365,Carbon_Savings_By_Profile[[#This Row],[Window glazing]]), IF(AND(Carbon_Savings_By_Profile[[#This Row],[Year]]="Average building",Carbon_Savings_By_Profile[[#This Row],[Window glazing]]="Average building"), SUMIFS(Table7[Emissions w/o AI location-based (kgCO2e/building)],Backend!$J$10:$J$365,Carbon_Savings_By_Profile[[#This Row],[Ventilation]]), IF(AND(Carbon_Savings_By_Profile[[#This Row],[Year]]="Average building",Carbon_Savings_By_Profile[[#This Row],[Window glazing]]<>"Average building",Carbon_Savings_By_Profile[[#This Row],[Ventilation]]<>"Average building"), SUMIFS(Table7[Emissions w/o AI location-based (kgCO2e/building)],Backend!$K$10:$K$365,Carbon_Savings_By_Profile[[#This Row],[Window glazing]],Backend!$J$10:$J$365,Carbon_Savings_By_Profile[[#This Row],[Ventilation]]),SUMIFS(Table7[Emissions w/o AI location-based (kgCO2e/building)],Backend!$H$10:$H$365,Carbon_Savings_By_Profile[[#This Row],[Year]],Backend!$K$10:$K$365,Carbon_Savings_By_Profile[[#This Row],[Window glazing]],Backend!$J$10:$J$365,Carbon_Savings_By_Profile[[#This Row],[Ventilation]]))))) -> 888390.2691 | H15: =IF(AND(Carbon_Savings_By_Profile[[#This Row],[Window glazing]]="Average building",Carbon_Savings_By_Profile[[#This Row],[Ventilation]]="Average building"), SUMIFS(Table7[Emissions w/o AI market-based* (kgCO2e/building)],Backend!$H$10:$H$365,Carbon_Savings_By_Profile[[#This Row],[Year]]),IF(AND(Carbon_Savings_By_Profile[[#This Row],[Year]]="Average building",Carbon_Savings_By_Profile[[#This Row],[Ventilation]]="Average building"),SUMIFS(Table7[Emissions w/o AI market-based* (kgCO2e/building)],Backend!$K$10:$K$365,Carbon_Savings_By_Profile[[#This Row],[Window glazing]]), IF(AND(Carbon_Savings_By_Profile[[#This Row],[Year]]="Average building",Carbon_Savings_By_Profile[[#This Row],[Window glazing]]="Average building"), SUMIFS(Table7[Emissions w/o AI market-based* (kgCO2e/building)],Backend!$J$10:$J$365,Carbon_Savings_By_Profile[[#This Row],[Ventilation]]), IF(AND(Carbon_Savings_By_Profile[[#This Row],[Year]]="Average building",Carbon_Savings_By_Profile[[#This Row],[Window glazing]]<>"Average building",Carbon_Savings_By_Profile[[#This Row],[Ventilation]]<>"Average building"), SUMIFS(Table7[Emissions w/o AI market-based* (kgCO2e/building)],Backend!$K$10:$K$365,Carbon_Savings_By_Profile[[#This Row],[Window glazing]],Backend!$J$10:$J$365,Carbon_Savings_By_Profile[[#This Row],[Ventilation]]),SUMIFS(Table7[Emissions w/o AI market-based* (kgCO2e/building)],Backend!$H$10:$H$365,Carbon_Savings_By_Profile[[#This Row],[Year]],Backend!$K$10:$K$365,Carbon_Savings_By_Profile[[#This Row],[Window glazing]],Backend!$J$10:$J$365,Carbon_Savings_By_Profile[[#This Row],[Ventilation]]))))) -> 888390.2691 | I15: =Carbon_Savings_By_Profile[[#This Row],[Emissions w/o AI location-based (kgCO2e/year)]]/Carbon_Savings_By_Profile[[#This Row],[Buildings]] -> 44419.51346 | J15: =Carbon_Savings_By_Profile[[#This Row],[Emissions w/o AI market-based (kgCO2e/year)]]/Carbon_Savings_By_Profile[[#This Row],[Buildings]] -> 44419.51346 | K15: =IF(AND(Carbon_Savings_By_Profile[[#This Row],[Window glazing]]="Average building",Carbon_Savings_By_Profile[[#This Row],[Ventilation]]="Average building"), SUMIFS(Table7[Emissions w/o AI location-based (kgCO2e/m2)],Backend!$H$10:$H$365,Carbon_Savings_By_Profile[[#This Row],[Year]]),IF(AND(Carbon_Savings_By_Profile[[#This Row],[Year]]="Average building",Carbon_Savings_By_Profile[[#This Row],[Ventilation]]="Average building"),SUMIFS(Table7[Emissions w/o AI location-based (kgCO2e/m2)],Backend!$K$10:$K$365,Carbon_Savings_By_Profile[[#This Row],[Window glazing]]), IF(AND(Carbon_Savings_By_Profile[[#This Row],[Year]]="Average building",Carbon_Savings_By_Profile[[#This Row],[Window glazing]]="Average building"), SUMIFS(Table7[Emissions w/o AI location-based (kgCO2e/m2)],Backend!$J$10:$J$365,Carbon_Savings_By_Profile[[#This Row],[Ventilation]]), IF(AND(Carbon_Savings_By_Profile[[#This Row],[Year]]="Average building",Carbon_Savings_By_Profile[[#This Row],[Window glazing]]<>"Average building",Carbon_Savings_By_Profile[[#This Row],[Ventilation]]<>"Average building"), SUMIFS(Table7[Emissions w/o AI location-based (kgCO2e/m2)],Backend!$K$10:$K$365,Carbon_Savings_By_Profile[[#This Row],[Window glazing]],Backend!$J$10:$J$365,Carbon_Savings_By_Profile[[#This Row],[Ventilation]]),SUMIFS(Table7[Emissions w/o AI location-based (kgCO2e/m2)],Backend!$H$10:$H$365,Carbon_Savings_By_Profile[[#This Row],[Year]],Backend!$K$10:$K$365,Carbon_Savings_By_Profile[[#This Row],[Window glazing]],Backend!$J$10:$J$365,Carbon_Savings_By_Profile[[#This Row],[Ventilation]]))))) -> 148.5652388 | L15: =IF(AND(Carbon_Savings_By_Profile[[#This Row],[Window glazing]]="Average building",Carbon_Savings_By_Profile[[#This Row],[Ventilation]]="Average building"), SUMIFS(Table7[Emissions w/o AI market-based* (kgCO2e/m2)],Backend!$H$10:$H$365,Carbon_Savings_By_Profile[[#This Row],[Year]]),IF(AND(Carbon_Savings_By_Profile[[#This Row],[Year]]="Average building",Carbon_Savings_By_Profile[[#This Row],[Ventilation]]="Average building"),SUMIFS(Table7[Emissions w/o AI market-based* (kgCO2e/m2)],Backend!$K$10:$K$365,Carbon_Savings_By_Profile[[#This Row],[Window glazing]]), IF(AND(Carbon_Savings_By_Profile[[#This Row],[Year]]="Average building",Carbon_Savings_By_Profile[[#This Row],[Window glazing]]="Average building"), SUMIFS(Table7[Emissions w/o AI market-based* (kgCO2e/m2)],Backend!$J$10:$J$365,Carbon_Savings_By_Profile[[#This Row],[Ventilation]]), IF(AND(Carbon_Savings_By_Profile[[#This Row],[Year]]="Average building",Carbon_Savings_By_Profile[[#This Row],[Window glazing]]<>"Average building",Carbon_Savings_By_Profile[[#This Row],[Ventilation]]<>"Average building"), SUMIFS(Table7[Emissions w/o AI market-based* (kgCO2e/m2)],Backend!$K$10:$K$365,Carbon_Savings_By_Profile[[#This Row],[Window glazing]],Backend!$J$10:$J$365,Carbon_Savings_By_Profile[[#This Row],[Ventilation]]),SUMIFS(Table7[Emissions w/o AI market-based* (kgCO2e/m2)],Backend!$H$10:$H$365,Carbon_Savings_By_Profile[[#This Row],[Year]],Backend!$K$10:$K$365,Carbon_Savings_By_Profile[[#This Row],[Window glazing]],Backend!$J$10:$J$365,Carbon_Savings_By_Profile[[#This Row],[Ventilation]]))))) -> 148.5652388 | M15: =Carbon_Savings_By_Profile[[#This Row],[Emissions w/o AI location-based (kgCO2e/m2/year)]]/Carbon_Savings_By_Profile[[#This Row],[Buildings]] -> 7.428261939 | N15: =Carbon_Savings_By_Profile[[#This Row],[Emissions w/o AI market-based (kgCO2e/m2/year)]]/Carbon_Savings_By_Profile[[#This Row],[Buildings]] -> 7.428261939 | O15: =IF(AND(Carbon_Savings_By_Profile[[#This Row],[Window glazing]]="Average building",Carbon_Savings_By_Profile[[#This Row],[Ventilation]]="Average building"), SUMIFS(Backend!$AG$10:$AG$365,Backend!$H$10:$H$365,Carbon_Savings_By_Profile[[#This Row],[Year]]),IF(AND(Carbon_Savings_By_Profile[[#This Row],[Year]]="Average building",Carbon_Savings_By_Profile[[#This Row],[Ventilation]]="Average building"),SUMIFS(Backend!$AG$10:$AG$365,Backend!$K$10:$K$365,Carbon_Savings_By_Profile[[#This Row],[Window glazing]]), IF(AND(Carbon_Savings_By_Profile[[#This Row],[Year]]="Average building",Carbon_Savings_By_Profile[[#This Row],[Window glazing]]="Average building"), SUMIFS(Backend!$AG$10:$AG$365,Backend!$J$10:$J$365,Carbon_Savings_By_Profile[[#This Row],[Ventilation]]), IF(AND(Carbon_Savings_By_Profile[[#This Row],[Year]]="Average building",Carbon_Savings_By_Profile[[#This Row],[Window glazing]]<>"Average building",Carbon_Savings_By_Profile[[#This Row],[Ventilation]]<>"Average building"), SUMIFS(Backend!$AG$10:$AG$365,Backend!$K$10:$K$365,Carbon_Savings_By_Profile[[#This Row],[Window glazing]],Backend!$J$10:$J$365,Carbon_Savings_By_Profile[[#This Row],[Ventilation]]),SUMIFS(Backend!$AG$10:$AG$365,Backend!$H$10:$H$365,Carbon_Savings_By_Profile[[#This Row],[Year]],Backend!$K$10:$K$365,Carbon_Savings_By_Profile[[#This Row],[Window glazing]],Backend!$J$10:$J$365,Carbon_Savings_By_Profile[[#This Row],[Ventilation]]))))) -> 11.22924 | P15: =IF(AND(Carbon_Savings_By_Profile[[#This Row],[Window glazing]]="Average building",Carbon_Savings_By_Profile[[#This Row],[Ventilation]]="Average building"), SUMIFS(Backend!$AH$10:$AH$365,Backend!$H$10:$H$365,Carbon_Savings_By_Profile[[#This Row],[Year]]),IF(AND(Carbon_Savings_By_Profile[[#This Row],[Year]]="Average building",Carbon_Savings_By_Profile[[#This Row],[Ventilation]]="Average building"),SUMIFS(Backend!$AH$10:$AH$365,Backend!$K$10:$K$365,Carbon_Savings_By_Profile[[#This Row],[Window glazing]]), IF(AND(Carbon_Savings_By_Profile[[#This Row],[Year]]="Average building",Carbon_Savings_By_Profile[[#This Row],[Window glazing]]="Average building"), SUMIFS(Backend!$AH$10:$AH$365,Backend!$J$10:$J$365,Carbon_Savings_By_Profile[[#This Row],[Ventilation]]), IF(AND(Carbon_Savings_By_Profile[[#This Row],[Year]]="Average building",Carbon_Savings_By_Profile[[#This Row],[Window glazing]]<>"Average building",Carbon_Savings_By_Profile[[#This Row],[Ventilation]]<>"Average building"), SUMIFS(Backend!$AH$10:$AH$365,Backend!$K$10:$K$365,Carbon_Savings_By_Profile[[#This Row],[Window glazing]],Backend!$J$10:$J$365,Carbon_Savings_By_Profile[[#This Row],[Ventilation]]),SUMIFS(Backend!$AH$10:$AH$365,Backend!$H$10:$H$365,Carbon_Savings_By_Profile[[#This Row],[Year]],Backend!$K$10:$K$365,Carbon_Savings_By_Profile[[#This Row],[Window glazing]],Backend!$J$10:$J$365,Carbon_Savings_By_Profile[[#This Row],[Ventilation]]))))) -> 8.863505667 | Q15: =IF(AND(Carbon_Savings_By_Profile[[#This Row],[Window glazing]]="Average building",Carbon_Savings_By_Profile[[#This Row],[Ventilation]]="Average building"), SUMIFS(Backend!$AI$10:$AI$365,Backend!$H$10:$H$365,Carbon_Savings_By_Profile[[#This Row],[Year]]),IF(AND(Carbon_Savings_By_Profile[[#This Row],[Year]]="Average building",Carbon_Savings_By_Profile[[#This Row],[Ventilation]]="Average building"),SUMIFS(Backend!$AI$10:$AI$365,Backend!$K$10:$K$365,Carbon_Savings_By_Profile[[#This Row],[Window glazing]]), IF(AND(Carbon_Savings_By_Profile[[#This Row],[Year]]="Average building",Carbon_Savings_By_Profile[[#This Row],[Window glazing]]="Average building"), SUMIFS(Backend!$AI$10:$AI$365,Backend!$J$10:$J$365,Carbon_Savings_By_Profile[[#This Row],[Ventilation]]), IF(AND(Carbon_Savings_By_Profile[[#This Row],[Year]]="Average building",Carbon_Savings_By_Profile[[#This Row],[Window glazing]]<>"Average building",Carbon_Savings_By_Profile[[#This Row],[Ventilation]]<>"Average building"), SUMIFS(Backend!$AI$10:$AI$365,Backend!$K$10:$K$365,Carbon_Savings_By_Profile[[#This Row],[Window glazing]],Backend!$J$10:$J$365,Carbon_Savings_By_Profile[[#This Row],[Ventilation]]),SUMIFS(Backend!$AI$10:$AI$365,Backend!$H$10:$H$365,Carbon_Savings_By_Profile[[#This Row],[Year]],Backend!$K$10:$K$365,Carbon_Savings_By_Profile[[#This Row],[Window glazing]],Backend!$J$10:$J$365,Carbon_Savings_By_Profile[[#This Row],[Ventilation]]))))) -> 67700.31246 | R15: =IF(AND(Carbon_Savings_By_Profile[[#This Row],[Window glazing]]="Average building",Carbon_Savings_By_Profile[[#This Row],[Ventilation]]="Average building"), SUMIFS(Backend!$AJ$10:$AJ$365,Backend!$H$10:$H$365,Carbon_Savings_By_Profile[[#This Row],[Year]]),IF(AND(Carbon_Savings_By_Profile[[#This Row],[Year]]="Average building",Carbon_Savings_By_Profile[[#This Row],[Ventilation]]="Average building"),SUMIFS(Backend!$AJ$10:$AJ$365,Backend!$K$10:$K$365,Carbon_Savings_By_Profile[[#This Row],[Window glazing]]), IF(AND(Carbon_Savings_By_Profile[[#This Row],[Year]]="Average building",Carbon_Savings_By_Profile[[#This Row],[Window glazing]]="Average building"), SUMIFS(Backend!$AJ$10:$AJ$365,Backend!$J$10:$J$365,Carbon_Savings_By_Profile[[#This Row],[Ventilation]]), IF(AND(Carbon_Savings_By_Profile[[#This Row],[Year]]="Average building",Carbon_Savings_By_Profile[[#This Row],[Window glazing]]<>"Average building",Carbon_Savings_By_Profile[[#This Row],[Ventilation]]<>"Average building"), SUMIFS(Backend!$AJ$10:$AJ$365,Backend!$K$10:$K$365,Carbon_Savings_By_Profile[[#This Row],[Window glazing]],Backend!$J$10:$J$365,Carbon_Savings_By_Profile[[#This Row],[Ventilation]]),SUMIFS(Backend!$AJ$10:$AJ$365,Backend!$H$10:$H$365,Carbon_Savings_By_Profile[[#This Row],[Year]],Backend!$K$10:$K$365,Carbon_Savings_By_Profile[[#This Row],[Window glazing]],Backend!$J$10:$J$365,Carbon_Savings_By_Profile[[#This Row],[Ventilation]]))))) -> 55452.80767 | S15: =Carbon_Savings_By_Profile[[#This Row],[Avoided emissions location-based (kgCO2e/m2/year) ]]/Carbon_Savings_By_Profile[[#This Row],[Buildings]] -> 0.561462 | T15: =Carbon_Savings_By_Profile[[#This Row],[Avoided emissions market-based (kgCO2e/m2/year)]]/Carbon_Savings_By_Profile[[#This Row],[Buildings]] -> 0.4431752833 | U15: =Carbon_Savings_By_Profile[[#This Row],[Avoided emissions location-based (kgCO2e/building/year)]]/Carbon_Savings_By_Profile[[#This Row],[Buildings]] -> 3385.015623 | V15: =Carbon_Savings_By_Profile[[#This Row],[Avoided emissions market-based (kgCO2e/building/year)]]/Carbon_Savings_By_Profile[[#This Row],[Buildings]] -> 2772.640383 | W15: =IF(AND(Carbon_Savings_By_Profile[[#This Row],[Window glazing]]="Average building",Carbon_Savings_By_Profile[[#This Row],[Ventilation]]="Average building"), SUMIFS(Backend!$AY$10:$AY$365,Backend!$H$10:$H$365,Carbon_Savings_By_Profile[[#This Row],[Year]]),IF(AND(Carbon_Savings_By_Profile[[#This Row],[Year]]="Average building",Carbon_Savings_By_Profile[[#This Row],[Ventilation]]="Average building"),SUMIFS(Backend!$AY$10:$AY$365,Backend!$K$10:$K$365,Carbon_Savings_By_Profile[[#This Row],[Window glazing]]), IF(AND(Carbon_Savings_By_Profile[[#This Row],[Year]]="Average building",Carbon_Savings_By_Profile[[#This Row],[Window glazing]]="Average building"), SUMIFS(Backend!$AY$10:$AY$365,Backend!$J$10:$J$365,Carbon_Savings_By_Profile[[#This Row],[Ventilation]]), IF(AND(Carbon_Savings_By_Profile[[#This Row],[Year]]="Average building",Carbon_Savings_By_Profile[[#This Row],[Window glazing]]<>"Average building",Carbon_Savings_By_Profile[[#This Row],[Ventilation]]<>"Average building"), SUMIFS(Backend!$AY$10:$AY$365,Backend!$K$10:$K$365,Carbon_Savings_By_Profile[[#This Row],[Window glazing]],Backend!$J$10:$J$365,Carbon_Savings_By_Profile[[#This Row],[Ventilation]]),SUMIFS(Backend!$AY$10:$AY$365,Backend!$H$10:$H$365,Carbon_Savings_By_Profile[[#This Row],[Year]],Backend!$K$10:$K$365,Carbon_Savings_By_Profile[[#This Row],[Window glazing]],Backend!$J$10:$J$365,Carbon_Savings_By_Profile[[#This Row],[Ventilation]]))))) -> 0.05406668923 | X15: =IF(AND(Carbon_Savings_By_Profile[[#This Row],[Window glazing]]="Average building",Carbon_Savings_By_Profile[[#This Row],[Ventilation]]="Average building"), SUMIFS(Backend!$AZ$10:$AZ$365,Backend!$H$10:$H$365,Carbon_Savings_By_Profile[[#This Row],[Year]]),IF(AND(Carbon_Savings_By_Profile[[#This Row],[Year]]="Average building",Carbon_Savings_By_Profile[[#This Row],[Ventilation]]="Average building"),SUMIFS(Backend!$AZ$10:$AZ$365,Backend!$K$10:$K$365,Carbon_Savings_By_Profile[[#This Row],[Window glazing]]), IF(AND(Carbon_Savings_By_Profile[[#This Row],[Year]]="Average building",Carbon_Savings_By_Profile[[#This Row],[Window glazing]]="Average building"), SUMIFS(Backend!$AZ$10:$AZ$365,Backend!$J$10:$J$365,Carbon_Savings_By_Profile[[#This Row],[Ventilation]]), IF(AND(Carbon_Savings_By_Profile[[#This Row],[Year]]="Average building",Carbon_Savings_By_Profile[[#This Row],[Window glazing]]<>"Average building",Carbon_Savings_By_Profile[[#This Row],[Ventilation]]<>"Average building"), SUMIFS(Backend!$AZ$10:$AZ$365,Backend!$K$10:$K$365,Carbon_Savings_By_Profile[[#This Row],[Window glazing]],Backend!$J$10:$J$365,Carbon_Savings_By_Profile[[#This Row],[Ventilation]]),SUMIFS(Backend!$AZ$10:$AZ$365,Backend!$H$10:$H$365,Carbon_Savings_By_Profile[[#This Row],[Year]],Backend!$K$10:$K$365,Carbon_Savings_By_Profile[[#This Row],[Window glazing]],Backend!$J$10:$J$365,Carbon_Savings_By_Profile[[#This Row],[Ventilation]]))))) -> 0.04870058816 | Y15: =IF(AND(Carbon_Savings_By_Profile[[#This Row],[Window glazing]]="Average building",Carbon_Savings_By_Profile[[#This Row],[Ventilation]]="Average building"), SUMIFS(Backend!$BA$10:$BA$365,Backend!$H$10:$H$365,Carbon_Savings_By_Profile[[#This Row],[Year]]),IF(AND(Carbon_Savings_By_Profile[[#This Row],[Year]]="Average building",Carbon_Savings_By_Profile[[#This Row],[Ventilation]]="Average building"),SUMIFS(Backend!$BA$10:$BA$365,Backend!$K$10:$K$365,Carbon_Savings_By_Profile[[#This Row],[Window glazing]]), IF(AND(Carbon_Savings_By_Profile[[#This Row],[Year]]="Average building",Carbon_Savings_By_Profile[[#This Row],[Window glazing]]="Average building"), SUMIFS(Backend!$BA$10:$BA$365,Backend!$J$10:$J$365,Carbon_Savings_By_Profile[[#This Row],[Ventilation]]), IF(AND(Carbon_Savings_By_Profile[[#This Row],[Year]]="Average building",Carbon_Savings_By_Profile[[#This Row],[Window glazing]]<>"Average building",Carbon_Savings_By_Profile[[#This Row],[Ventilation]]<>"Average building"), SUMIFS(Backend!$BA$10:$BA$365,Backend!$K$10:$K$365,Carbon_Savings_By_Profile[[#This Row],[Window glazing]],Backend!$J$10:$J$365,Carbon_Savings_By_Profile[[#This Row],[Ventilation]]),SUMIFS(Backend!$BA$10:$BA$365,Backend!$H$10:$H$365,Carbon_Savings_By_Profile[[#This Row],[Year]],Backend!$K$10:$K$365,Carbon_Savings_By_Profile[[#This Row],[Window glazing]],Backend!$J$10:$J$365,Carbon_Savings_By_Profile[[#This Row],[Ventilation]]))))) -> 205.055267 | Z15: =IF(AND(Carbon_Savings_By_Profile[[#This Row],[Window glazing]]="Average building",Carbon_Savings_By_Profile[[#This Row],[Ventilation]]="Average building"), SUMIFS(Backend!$BB$10:$BB$365,Backend!$H$10:$H$365,Carbon_Savings_By_Profile[[#This Row],[Year]]),IF(AND(Carbon_Savings_By_Profile[[#This Row],[Year]]="Average building",Carbon_Savings_By_Profile[[#This Row],[Ventilation]]="Average building"),SUMIFS(Backend!$BB$10:$BB$365,Backend!$K$10:$K$365,Carbon_Savings_By_Profile[[#This Row],[Window glazing]]), IF(AND(Carbon_Savings_By_Profile[[#This Row],[Year]]="Average building",Carbon_Savings_By_Profile[[#This Row],[Window glazing]]="Average building"), SUMIFS(Backend!$BB$10:$BB$365,Backend!$J$10:$J$365,Carbon_Savings_By_Profile[[#This Row],[Ventilation]]), IF(AND(Carbon_Savings_By_Profile[[#This Row],[Year]]="Average building",Carbon_Savings_By_Profile[[#This Row],[Window glazing]]<>"Average building",Carbon_Savings_By_Profile[[#This Row],[Ventilation]]<>"Average building"), SUMIFS(Backend!$BB$10:$BB$365,Backend!$K$10:$K$365,Carbon_Savings_By_Profile[[#This Row],[Window glazing]],Backend!$J$10:$J$365,Carbon_Savings_By_Profile[[#This Row],[Ventilation]]),SUMIFS(Backend!$BB$10:$BB$365,Backend!$H$10:$H$365,Carbon_Savings_By_Profile[[#This Row],[Year]],Backend!$K$10:$K$365,Carbon_Savings_By_Profile[[#This Row],[Window glazing]],Backend!$J$10:$J$365,Carbon_Savings_By_Profile[[#This Row],[Ventilation]]))))) -> 187.1188518 | AA15: =Carbon_Savings_By_Profile[[#This Row],[Aggregated first order effects location-based (kgCO2e/m2/year)]]/Carbon_Savings_By_Profile[[#This Row],[Buildings]] -> 0.002703334461 | AB15: =Carbon_Savings_By_Profile[[#This Row],[Aggregated first order effects market-based (kgCO2e/m2/year)]]/Carbon_Savings_By_Profile[[#This Row],[Buildings]] -> 0.002435029408 | AC15: =Carbon_Savings_By_Profile[[#This Row],[Aggregated first order effects location-based (kgCO2e/year)]]/Carbon_Savings_By_Profile[[#This Row],[Buildings]] -> 10.25276335 | AD15: =Carbon_Savings_By_Profile[[#This Row],[Aggregated first order effects market-based (kgCO2e/building/year)]]/Carbon_Savings_By_Profile[[#This Row],[Buildings]] -> 9.355942588 | AE15: =IF(AND(Carbon_Savings_By_Profile[[#This Row],[Window glazing]]="Average building",Carbon_Savings_By_Profile[[#This Row],[Ventilation]]="Average building"), SUMIFS(Backend!$BE$10:$BE$365,Backend!$H$10:$H$365,Carbon_Savings_By_Profile[[#This Row],[Year]]),IF(AND(Carbon_Savings_By_Profile[[#This Row],[Year]]="Average building",Carbon_Savings_By_Profile[[#This Row],[Ventilation]]="Average building"),SUMIFS(Backend!$BE$10:$BE$365,Backend!$K$10:$K$365,Carbon_Savings_By_Profile[[#This Row],[Window glazing]]), IF(AND(Carbon_Savings_By_Profile[[#This Row],[Year]]="Average building",Carbon_Savings_By_Profile[[#This Row],[Window glazing]]="Average building"), SUMIFS(Backend!$BE$10:$BE$365,Backend!$J$10:$J$365,Carbon_Savings_By_Profile[[#This Row],[Ventilation]]), IF(AND(Carbon_Savings_By_Profile[[#This Row],[Year]]="Average building",Carbon_Savings_By_Profile[[#This Row],[Window glazing]]<>"Average building",Carbon_Savings_By_Profile[[#This Row],[Ventilation]]<>"Average building"), SUMIFS(Backend!$BE$10:$BE$365,Backend!$K$10:$K$365,Carbon_Savings_By_Profile[[#This Row],[Window glazing]],Backend!$J$10:$J$365,Carbon_Savings_By_Profile[[#This Row],[Ventilation]]),SUMIFS(Backend!$BE$10:$BE$365,Backend!$H$10:$H$365,Carbon_Savings_By_Profile[[#This Row],[Year]],Backend!$K$10:$K$365,Carbon_Savings_By_Profile[[#This Row],[Window glazing]],Backend!$J$10:$J$365,Carbon_Savings_By_Profile[[#This Row],[Ventilation]]))))) -> 11.17517331 | AF15: =IF(AND(Carbon_Savings_By_Profile[[#This Row],[Window glazing]]="Average building",Carbon_Savings_By_Profile[[#This Row],[Ventilation]]="Average building"), SUMIFS(Backend!$BF$10:$BF$365,Backend!$H$10:$H$365,Carbon_Savings_By_Profile[[#This Row],[Year]]),IF(AND(Carbon_Savings_By_Profile[[#This Row],[Year]]="Average building",Carbon_Savings_By_Profile[[#This Row],[Ventilation]]="Average building"),SUMIFS(Backend!$BF$10:$BF$365,Backend!$K$10:$K$365,Carbon_Savings_By_Profile[[#This Row],[Window glazing]]), IF(AND(Carbon_Savings_By_Profile[[#This Row],[Year]]="Average building",Carbon_Savings_By_Profile[[#This Row],[Window glazing]]="Average building"), SUMIFS(Backend!$BF$10:$BF$365,Backend!$J$10:$J$365,Carbon_Savings_By_Profile[[#This Row],[Ventilation]]), IF(AND(Carbon_Savings_By_Profile[[#This Row],[Year]]="Average building",Carbon_Savings_By_Profile[[#This Row],[Window glazing]]<>"Average building",Carbon_Savings_By_Profile[[#This Row],[Ventilation]]<>"Average building"), SUMIFS(Backend!$BF$10:$BF$365,Backend!$K$10:$K$365,Carbon_Savings_By_Profile[[#This Row],[Window glazing]],Backend!$J$10:$J$365,Carbon_Savings_By_Profile[[#This Row],[Ventilation]]),SUMIFS(Backend!$BF$10:$BF$365,Backend!$H$10:$H$365,Carbon_Savings_By_Profile[[#This Row],[Year]],Backend!$K$10:$K$365,Carbon_Savings_By_Profile[[#This Row],[Window glazing]],Backend!$J$10:$J$365,Carbon_Savings_By_Profile[[#This Row],[Ventilation]]))))) -> 8.814805079 | AG15: 0.5587586655 | AH15: =Carbon_Savings_By_Profile[[#This Row],[Net avoided emissions market-based (kgCO2e/m2/year)]]/Carbon_Savings_By_Profile[[#This Row],[Buildings]] -> 0.4407402539 | AI15: =IF(AND(Carbon_Savings_By_Profile[[#This Row],[Window glazing]]="Average building",Carbon_Savings_By_Profile[[#This Row],[Ventilation]]="Average building"), SUMIFS(Backend!$BG$10:$BG$365,Backend!$H$10:$H$365,Carbon_Savings_By_Profile[[#This Row],[Year]]),IF(AND(Carbon_Savings_By_Profile[[#This Row],[Year]]="Average building",Carbon_Savings_By_Profile[[#This Row],[Ventilation]]="Average building"),SUMIFS(Backend!$BG$10:$BG$365,Backend!$K$10:$K$365,Carbon_Savings_By_Profile[[#This Row],[Window glazing]]), IF(AND(Carbon_Savings_By_Profile[[#This Row],[Year]]="Average building",Carbon_Savings_By_Profile[[#This Row],[Window glazing]]="Average building"), SUMIFS(Backend!$BG$10:$BG$365,Backend!$J$10:$J$365,Carbon_Savings_By_Profile[[#This Row],[Ventilation]]), IF(AND(Carbon_Savings_By_Profile[[#This Row],[Year]]="Average building",Carbon_Savings_By_Profile[[#This Row],[Window glazing]]<>"Average building",Carbon_Savings_By_Profile[[#This Row],[Ventilation]]<>"Average building"), SUMIFS(Backend!$BG$10:$BG$365,Backend!$K$10:$K$365,Carbon_Savings_By_Profile[[#This Row],[Window glazing]],Backend!$J$10:$J$365,Carbon_Savings_By_Profile[[#This Row],[Ventilation]]),SUMIFS(Backend!$BG$10:$BG$365,Backend!$H$10:$H$365,Carbon_Savings_By_Profile[[#This Row],[Year]],Backend!$K$10:$K$365,Carbon_Savings_By_Profile[[#This Row],[Window glazing]],Backend!$J$10:$J$365,Carbon_Savings_By_Profile[[#This Row],[Ventilation]]))))) -> 67495.25719 | AJ15: =IF(AND(Carbon_Savings_By_Profile[[#This Row],[Window glazing]]="Average building",Carbon_Savings_By_Profile[[#This Row],[Ventilation]]="Average building"), SUMIFS(Backend!$BH$10:$BH$365,Backend!$H$10:$H$365,Carbon_Savings_By_Profile[[#This Row],[Year]]),IF(AND(Carbon_Savings_By_Profile[[#This Row],[Year]]="Average building",Carbon_Savings_By_Profile[[#This Row],[Ventilation]]="Average building"),SUMIFS(Backend!$BH$10:$BH$365,Backend!$K$10:$K$365,Carbon_Savings_By_Profile[[#This Row],[Window glazing]]), IF(AND(Carbon_Savings_By_Profile[[#This Row],[Year]]="Average building",Carbon_Savings_By_Profile[[#This Row],[Window glazing]]="Average building"), SUMIFS(Backend!$BH$10:$BH$365,Backend!$J$10:$J$365,Carbon_Savings_By_Profile[[#This Row],[Ventilation]]), IF(AND(Carbon_Savings_By_Profile[[#This Row],[Year]]="Average building",Carbon_Savings_By_Profile[[#This Row],[Window glazing]]<>"Average building",Carbon_Savings_By_Profile[[#This Row],[Ventilation]]<>"Average building"), SUMIFS(Backend!$BH$10:$BH$365,Backend!$K$10:$K$365,Carbon_Savings_By_Profile[[#This Row],[Window glazing]],Backend!$J$10:$J$365,Carbon_Savings_By_Profile[[#This Row],[Ventilation]]),SUMIFS(Backend!$BH$10:$BH$365,Backend!$H$10:$H$365,Carbon_Savings_By_Profile[[#This Row],[Year]],Backend!$K$10:$K$365,Carbon_Savings_By_Profile[[#This Row],[Window glazing]],Backend!$J$10:$J$365,Carbon_Savings_By_Profile[[#This Row],[Ventilation]]))))) -> 55265.68881 | AK15: =Carbon_Savings_By_Profile[[#This Row],[Net avoided emissions location-based (kgCO2e/year)]]/Carbon_Savings_By_Profile[[#This Row],[Buildings]] -> 3374.76286 | AL15: =Carbon_Savings_By_Profile[[#This Row],[Net avoided emissions market-based (kgCO2e/year)]]/Carbon_Savings_By_Profile[[#This Row],[Buildings]] -> 2763.284441 | AM15: =IF(Results!$L$15="market-based",Carbon_Savings_By_Profile[[#This Row],[Average net avoided emissions market-based (kgCO2e/m2/year)]],Carbon_Savings_By_Profile[[#This Row],[Average net avoided emissions location-based (kgCO2e/m2/year)]]) -> 0.5587586655 | AN15: =IF(AND(Carbon_Savings_By_Profile[[#This Row],[Window glazing]]="Average building",Carbon_Savings_By_Profile[[#This Row],[Ventilation]]="Average building"), SUMIFS(Table7[Emissions uncertainty per m2 location-based (kgCO2e)],Backend!$H$10:$H$365,Carbon_Savings_By_Profile[[#This Row],[Year]]),IF(AND(Carbon_Savings_By_Profile[[#This Row],[Year]]="Average building",Carbon_Savings_By_Profile[[#This Row],[Ventilation]]="Average building"),SUMIFS(Table7[Emissions uncertainty per m2 location-based (kgCO2e)],Backend!$K$10:$K$365,Carbon_Savings_By_Profile[[#This Row],[Window glazing]]), IF(AND(Carbon_Savings_By_Profile[[#This Row],[Year]]="Average building",Carbon_Savings_By_Profile[[#This Row],[Window glazing]]="Average building"), SUMIFS(Table7[Emissions uncertainty per m2 location-based (kgCO2e)],Backend!$J$10:$J$365,Carbon_Savings_By_Profile[[#This Row],[Ventilation]]), IF(AND(Carbon_Savings_By_Profile[[#This Row],[Year]]="Average building",Carbon_Savings_By_Profile[[#This Row],[Window glazing]]<>"Average building",Carbon_Savings_By_Profile[[#This Row],[Ventilation]]<>"Average building"), SUMIFS(Table7[Emissions uncertainty per m2 location-based (kgCO2e)],Backend!$K$10:$K$365,Carbon_Savings_By_Profile[[#This Row],[Window glazing]],Backend!$J$10:$J$365,Carbon_Savings_By_Profile[[#This Row],[Ventilation]]),SUMIFS(Table7[Emissions uncertainty per m2 location-based (kgCO2e)],Backend!$H$10:$H$365,Carbon_Savings_By_Profile[[#This Row],[Year]],Backend!$K$10:$K$365,Carbon_Savings_By_Profile[[#This Row],[Window glazing]],Backend!$J$10:$J$365,Carbon_Savings_By_Profile[[#This Row],[Ventilation]]))))) -> 0.7447244659 | AO15: =IF(AND(Carbon_Savings_By_Profile[[#This Row],[Window glazing]]="Average building",Carbon_Savings_By_Profile[[#This Row],[Ventilation]]="Average building"), SUMIFS(Table7[Emissions uncertainty per m2 market-based* (kgCO2e)],Backend!$H$10:$H$365,Carbon_Savings_By_Profile[[#This Row],[Year]]),IF(AND(Carbon_Savings_By_Profile[[#This Row],[Year]]="Average building",Carbon_Savings_By_Profile[[#This Row],[Ventilation]]="Average building"),SUMIFS(Table7[Emissions uncertainty per m2 market-based* (kgCO2e)],Backend!$K$10:$K$365,Carbon_Savings_By_Profile[[#This Row],[Window glazing]]), IF(AND(Carbon_Savings_By_Profile[[#This Row],[Year]]="Average building",Carbon_Savings_By_Profile[[#This Row],[Window glazing]]="Average building"), SUMIFS(Table7[Emissions uncertainty per m2 market-based* (kgCO2e)],Backend!$J$10:$J$365,Carbon_Savings_By_Profile[[#This Row],[Ventilation]]), IF(AND(Carbon_Savings_By_Profile[[#This Row],[Year]]="Average building",Carbon_Savings_By_Profile[[#This Row],[Window glazing]]<>"Average building",Carbon_Savings_By_Profile[[#This Row],[Ventilation]]<>"Average building"), SUMIFS(Table7[Emissions uncertainty per m2 market-based* (kgCO2e)],Backend!$K$10:$K$365,Carbon_Savings_By_Profile[[#This Row],[Window glazing]],Backend!$J$10:$J$365,Carbon_Savings_By_Profile[[#This Row],[Ventilation]]),SUMIFS(Table7[Emissions uncertainty per m2 market-based* (kgCO2e)],Backend!$H$10:$H$365,Carbon_Savings_By_Profile[[#This Row],[Year]],Backend!$K$10:$K$365,Carbon_Savings_By_Profile[[#This Row],[Window glazing]],Backend!$J$10:$J$365,Carbon_Savings_By_Profile[[#This Row],[Ventilation]]))))) -> 0.5878286975 | AP15: =Carbon_Savings_By_Profile[[#This Row],[Uncertainty location-based (kgCO2e/m2/year)]]/Carbon_Savings_By_Profile[[#This Row],[Buildings]] -> 0.0372362233 | AQ15: =Carbon_Savings_By_Profile[[#This Row],[Uncertainty market-based (kgCO2e/m2/year)]]/Carbon_Savings_By_Profile[[#This Row],[Buildings]] -> 0.02939143488 | AR15: -0.07522064652 | AS15: -0.07597478218
B16: 1945-1969 | C16: Double glazed | D16: Exhaust | E16: 1945-1969 - Double glazed - Exhaust | F16: =IF(AND(Carbon_Savings_By_Profile[[#This Row],[Window glazing]]="Average building",Carbon_Savings_By_Profile[[#This Row],[Ventilation]]="Average building"), COUNTIFS(Backend!$H$10:$H$365,Carbon_Savings_By_Profile[[#This Row],[Year]]),IF(AND(Carbon_Savings_By_Profile[[#This Row],[Year]]="Average building",Carbon_Savings_By_Profile[[#This Row],[Ventilation]]="Average building"),COUNTIFS(Backend!$K$10:$K$365,Carbon_Savings_By_Profile[[#This Row],[Window glazing]]), IF(AND(Carbon_Savings_By_Profile[[#This Row],[Year]]="Average building",Carbon_Savings_By_Profile[[#This Row],[Window glazing]]="Average building"), COUNTIFS(Backend!$J$10:$J$365,Carbon_Savings_By_Profile[[#This Row],[Ventilation]]), IF(AND(Carbon_Savings_By_Profile[[#This Row],[Year]]="Average building",Carbon_Savings_By_Profile[[#This Row],[Window glazing]]<>"Average building",Carbon_Savings_By_Profile[[#This Row],[Ventilation]]<>"Average building"), COUNTIFS(Backend!$K$10:$K$365,Carbon_Savings_By_Profile[[#This Row],[Window glazing]],Backend!$J$10:$J$365,Carbon_Savings_By_Profile[[#This Row],[Ventilation]]),COUNTIFS(Backend!$H$10:$H$365,Carbon_Savings_By_Profile[[#This Row],[Year]],Backend!$K$10:$K$365,Carbon_Savings_By_Profile[[#This Row],[Window glazing]],Backend!$J$10:$J$365,Carbon_Savings_By_Profile[[#This Row],[Ventilation]]))))) -> 73 | G16: =IF(AND(Carbon_Savings_By_Profile[[#This Row],[Window glazing]]="Average building",Carbon_Savings_By_Profile[[#This Row],[Ventilation]]="Average building"), SUMIFS(Table7[Emissions w/o AI location-based (kgCO2e/building)],Backend!$H$10:$H$365,Carbon_Savings_By_Profile[[#This Row],[Year]]),IF(AND(Carbon_Savings_By_Profile[[#This Row],[Year]]="Average building",Carbon_Savings_By_Profile[[#This Row],[Ventilation]]="Average building"),SUMIFS(Table7[Emissions w/o AI location-based (kgCO2e/building)],Backend!$K$10:$K$365,Carbon_Savings_By_Profile[[#This Row],[Window glazing]]), IF(AND(Carbon_Savings_By_Profile[[#This Row],[Year]]="Average building",Carbon_Savings_By_Profile[[#This Row],[Window glazing]]="Average building"), SUMIFS(Table7[Emissions w/o AI location-based (kgCO2e/building)],Backend!$J$10:$J$365,Carbon_Savings_By_Profile[[#This Row],[Ventilation]]), IF(AND(Carbon_Savings_By_Profile[[#This Row],[Year]]="Average building",Carbon_Savings_By_Profile[[#This Row],[Window glazing]]<>"Average building",Carbon_Savings_By_Profile[[#This Row],[Ventilation]]<>"Average building"), SUMIFS(Table7[Emissions w/o AI location-based (kgCO2e/building)],Backend!$K$10:$K$365,Carbon_Savings_By_Profile[[#This Row],[Window glazing]],Backend!$J$10:$J$365,Carbon_Savings_By_Profile[[#This Row],[Ventilation]]),SUMIFS(Table7[Emissions w/o AI location-based (kgCO2e/building)],Backend!$H$10:$H$365,Carbon_Savings_By_Profile[[#This Row],[Year]],Backend!$K$10:$K$365,Carbon_Savings_By_Profile[[#This Row],[Window glazing]],Backend!$J$10:$J$365,Carbon_Savings_By_Profile[[#This Row],[Ventilation]]))))) -> 2428051.885 | H16: =IF(AND(Carbon_Savings_By_Profile[[#This Row],[Window glazing]]="Average building",Carbon_Savings_By_Profile[[#This Row],[Ventilation]]="Average building"), SUMIFS(Table7[Emissions w/o AI market-based* (kgCO2e/building)],Backend!$H$10:$H$365,Carbon_Savings_By_Profile[[#This Row],[Year]]),IF(AND(Carbon_Savings_By_Profile[[#This Row],[Year]]="Average building",Carbon_Savings_By_Profile[[#This Row],[Ventilation]]="Average building"),SUMIFS(Table7[Emissions w/o AI market-based* (kgCO2e/building)],Backend!$K$10:$K$365,Carbon_Savings_By_Profile[[#This Row],[Window glazing]]), IF(AND(Carbon_Savings_By_Profile[[#This Row],[Year]]="Average building",Carbon_Savings_By_Profile[[#This Row],[Window glazing]]="Average building"), SUMIFS(Table7[Emissions w/o AI market-based* (kgCO2e/building)],Backend!$J$10:$J$365,Carbon_Savings_By_Profile[[#This Row],[Ventilation]]), IF(AND(Carbon_Savings_By_Profile[[#This Row],[Year]]="Average building",Carbon_Savings_By_Profile[[#This Row],[Window glazing]]<>"Average building",Carbon_Savings_By_Profile[[#This Row],[Ventilation]]<>"Average building"), SUMIFS(Table7[Emissions w/o AI market-based* (kgCO2e/building)],Backend!$K$10:$K$365,Carbon_Savings_By_Profile[[#This Row],[Window glazing]],Backend!$J$10:$J$365,Carbon_Savings_By_Profile[[#This Row],[Ventilation]]),SUMIFS(Table7[Emissions w/o AI market-based* (kgCO2e/building)],Backend!$H$10:$H$365,Carbon_Savings_By_Profile[[#This Row],[Year]],Backend!$K$10:$K$365,Carbon_Savings_By_Profile[[#This Row],[Window glazing]],Backend!$J$10:$J$365,Carbon_Savings_By_Profile[[#This Row],[Ventilation]]))))) -> 2428051.885 | I16: =Carbon_Savings_By_Profile[[#This Row],[Emissions w/o AI location-based (kgCO2e/year)]]/Carbon_Savings_By_Profile[[#This Row],[Buildings]] -> 33260.98473 | J16: =Carbon_Savings_By_Profile[[#This Row],[Emissions w/o AI market-based (kgCO2e/year)]]/Carbon_Savings_By_Profile[[#This Row],[Buildings]] -> 33260.98473 | K16: =IF(AND(Carbon_Savings_By_Profile[[#This Row],[Window glazing]]="Average building",Carbon_Savings_By_Profile[[#This Row],[Ventilation]]="Average building"), SUMIFS(Table7[Emissions w/o AI location-based (kgCO2e/m2)],Backend!$H$10:$H$365,Carbon_Savings_By_Profile[[#This Row],[Year]]),IF(AND(Carbon_Savings_By_Profile[[#This Row],[Year]]="Average building",Carbon_Savings_By_Profile[[#This Row],[Ventilation]]="Average building"),SUMIFS(Table7[Emissions w/o AI location-based (kgCO2e/m2)],Backend!$K$10:$K$365,Carbon_Savings_By_Profile[[#This Row],[Window glazing]]), IF(AND(Carbon_Savings_By_Profile[[#This Row],[Year]]="Average building",Carbon_Savings_By_Profile[[#This Row],[Window glazing]]="Average building"), SUMIFS(Table7[Emissions w/o AI location-based (kgCO2e/m2)],Backend!$J$10:$J$365,Carbon_Savings_By_Profile[[#This Row],[Ventilation]]), IF(AND(Carbon_Savings_By_Profile[[#This Row],[Year]]="Average building",Carbon_Savings_By_Profile[[#This Row],[Window glazing]]<>"Average building",Carbon_Savings_By_Profile[[#This Row],[Ventilation]]<>"Average building"), SUMIFS(Table7[Emissions w/o AI location-based (kgCO2e/m2)],Backend!$K$10:$K$365,Carbon_Savings_By_Profile[[#This Row],[Window glazing]],Backend!$J$10:$J$365,Carbon_Savings_By_Profile[[#This Row],[Ventilation]]),SUMIFS(Table7[Emissions w/o AI location-based (kgCO2e/m2)],Backend!$H$10:$H$365,Carbon_Savings_By_Profile[[#This Row],[Year]],Backend!$K$10:$K$365,Carbon_Savings_By_Profile[[#This Row],[Window glazing]],Backend!$J$10:$J$365,Carbon_Savings_By_Profile[[#This Row],[Ventilation]]))))) -> 515.0434297 | L16: =IF(AND(Carbon_Savings_By_Profile[[#This Row],[Window glazing]]="Average building",Carbon_Savings_By_Profile[[#This Row],[Ventilation]]="Average building"), SUMIFS(Table7[Emissions w/o AI market-based* (kgCO2e/m2)],Backend!$H$10:$H$365,Carbon_Savings_By_Profile[[#This Row],[Year]]),IF(AND(Carbon_Savings_By_Profile[[#This Row],[Year]]="Average building",Carbon_Savings_By_Profile[[#This Row],[Ventilation]]="Average building"),SUMIFS(Table7[Emissions w/o AI market-based* (kgCO2e/m2)],Backend!$K$10:$K$365,Carbon_Savings_By_Profile[[#This Row],[Window glazing]]), IF(AND(Carbon_Savings_By_Profile[[#This Row],[Year]]="Average building",Carbon_Savings_By_Profile[[#This Row],[Window glazing]]="Average building"), SUMIFS(Table7[Emissions w/o AI market-based* (kgCO2e/m2)],Backend!$J$10:$J$365,Carbon_Savings_By_Profile[[#This Row],[Ventilation]]), IF(AND(Carbon_Savings_By_Profile[[#This Row],[Year]]="Average building",Carbon_Savings_By_Profile[[#This Row],[Window glazing]]<>"Average building",Carbon_Savings_By_Profile[[#This Row],[Ventilation]]<>"Average building"), SUMIFS(Table7[Emissions w/o AI market-based* (kgCO2e/m2)],Backend!$K$10:$K$365,Carbon_Savings_By_Profile[[#This Row],[Window glazing]],Backend!$J$10:$J$365,Carbon_Savings_By_Profile[[#This Row],[Ventilation]]),SUMIFS(Table7[Emissions w/o AI market-based* (kgCO2e/m2)],Backend!$H$10:$H$365,Carbon_Savings_By_Profile[[#This Row],[Year]],Backend!$K$10:$K$365,Carbon_Savings_By_Profile[[#This Row],[Window glazing]],Backend!$J$10:$J$365,Carbon_Savings_By_Profile[[#This Row],[Ventilation]]))))) -> 515.0434297 | M16: =Carbon_Savings_By_Profile[[#This Row],[Emissions w/o AI location-based (kgCO2e/m2/year)]]/Carbon_Savings_By_Profile[[#This Row],[Buildings]] -> 7.055389448 | N16: =Carbon_Savings_By_Profile[[#This Row],[Emissions w/o AI market-based (kgCO2e/m2/year)]]/Carbon_Savings_By_Profile[[#This Row],[Buildings]] -> 7.055389448 | O16: =IF(AND(Carbon_Savings_By_Profile[[#This Row],[Window glazing]]="Average building",Carbon_Savings_By_Profile[[#This Row],[Ventilation]]="Average building"), SUMIFS(Backend!$AG$10:$AG$365,Backend!$H$10:$H$365,Carbon_Savings_By_Profile[[#This Row],[Year]]),IF(AND(Carbon_Savings_By_Profile[[#This Row],[Year]]="Average building",Carbon_Savings_By_Profile[[#This Row],[Ventilation]]="Average building"),SUMIFS(Backend!$AG$10:$AG$365,Backend!$K$10:$K$365,Carbon_Savings_By_Profile[[#This Row],[Window glazing]]), IF(AND(Carbon_Savings_By_Profile[[#This Row],[Year]]="Average building",Carbon_Savings_By_Profile[[#This Row],[Window glazing]]="Average building"), SUMIFS(Backend!$AG$10:$AG$365,Backend!$J$10:$J$365,Carbon_Savings_By_Profile[[#This Row],[Ventilation]]), IF(AND(Carbon_Savings_By_Profile[[#This Row],[Year]]="Average building",Carbon_Savings_By_Profile[[#This Row],[Window glazing]]<>"Average building",Carbon_Savings_By_Profile[[#This Row],[Ventilation]]<>"Average building"), SUMIFS(Backend!$AG$10:$AG$365,Backend!$K$10:$K$365,Carbon_Savings_By_Profile[[#This Row],[Window glazing]],Backend!$J$10:$J$365,Carbon_Savings_By_Profile[[#This Row],[Ventilation]]),SUMIFS(Backend!$AG$10:$AG$365,Backend!$H$10:$H$365,Carbon_Savings_By_Profile[[#This Row],[Year]],Backend!$K$10:$K$365,Carbon_Savings_By_Profile[[#This Row],[Window glazing]],Backend!$J$10:$J$365,Carbon_Savings_By_Profile[[#This Row],[Ventilation]]))))) -> 48.00345 | P16: =IF(AND(Carbon_Savings_By_Profile[[#This Row],[Window glazing]]="Average building",Carbon_Savings_By_Profile[[#This Row],[Ventilation]]="Average building"), SUMIFS(Backend!$AH$10:$AH$365,Backend!$H$10:$H$365,Carbon_Savings_By_Profile[[#This Row],[Year]]),IF(AND(Carbon_Savings_By_Profile[[#This Row],[Year]]="Average building",Carbon_Savings_By_Profile[[#This Row],[Ventilation]]="Average building"),SUMIFS(Backend!$AH$10:$AH$365,Backend!$K$10:$K$365,Carbon_Savings_By_Profile[[#This Row],[Window glazing]]), IF(AND(Carbon_Savings_By_Profile[[#This Row],[Year]]="Average building",Carbon_Savings_By_Profile[[#This Row],[Window glazing]]="Average building"), SUMIFS(Backend!$AH$10:$AH$365,Backend!$J$10:$J$365,Carbon_Savings_By_Profile[[#This Row],[Ventilation]]), IF(AND(Carbon_Savings_By_Profile[[#This Row],[Year]]="Average building",Carbon_Savings_By_Profile[[#This Row],[Window glazing]]<>"Average building",Carbon_Savings_By_Profile[[#This Row],[Ventilation]]<>"Average building"), SUMIFS(Backend!$AH$10:$AH$365,Backend!$K$10:$K$365,Carbon_Savings_By_Profile[[#This Row],[Window glazing]],Backend!$J$10:$J$365,Carbon_Savings_By_Profile[[#This Row],[Ventilation]]),SUMIFS(Backend!$AH$10:$AH$365,Backend!$H$10:$H$365,Carbon_Savings_By_Profile[[#This Row],[Year]],Backend!$K$10:$K$365,Carbon_Savings_By_Profile[[#This Row],[Window glazing]],Backend!$J$10:$J$365,Carbon_Savings_By_Profile[[#This Row],[Ventilation]]))))) -> 35.88445043 | Q16: =IF(AND(Carbon_Savings_By_Profile[[#This Row],[Window glazing]]="Average building",Carbon_Savings_By_Profile[[#This Row],[Ventilation]]="Average building"), SUMIFS(Backend!$AI$10:$AI$365,Backend!$H$10:$H$365,Carbon_Savings_By_Profile[[#This Row],[Year]]),IF(AND(Carbon_Savings_By_Profile[[#This Row],[Year]]="Average building",Carbon_Savings_By_Profile[[#This Row],[Ventilation]]="Average building"),SUMIFS(Backend!$AI$10:$AI$365,Backend!$K$10:$K$365,Carbon_Savings_By_Profile[[#This Row],[Window glazing]]), IF(AND(Carbon_Savings_By_Profile[[#This Row],[Year]]="Average building",Carbon_Savings_By_Profile[[#This Row],[Window glazing]]="Average building"), SUMIFS(Backend!$AI$10:$AI$365,Backend!$J$10:$J$365,Carbon_Savings_By_Profile[[#This Row],[Ventilation]]), IF(AND(Carbon_Savings_By_Profile[[#This Row],[Year]]="Average building",Carbon_Savings_By_Profile[[#This Row],[Window glazing]]<>"Average building",Carbon_Savings_By_Profile[[#This Row],[Ventilation]]<>"Average building"), SUMIFS(Backend!$AI$10:$AI$365,Backend!$K$10:$K$365,Carbon_Savings_By_Profile[[#This Row],[Window glazing]],Backend!$J$10:$J$365,Carbon_Savings_By_Profile[[#This Row],[Ventilation]]),SUMIFS(Backend!$AI$10:$AI$365,Backend!$H$10:$H$365,Carbon_Savings_By_Profile[[#This Row],[Year]],Backend!$K$10:$K$365,Carbon_Savings_By_Profile[[#This Row],[Window glazing]],Backend!$J$10:$J$365,Carbon_Savings_By_Profile[[#This Row],[Ventilation]]))))) -> 226321.6822 | R16: =IF(AND(Carbon_Savings_By_Profile[[#This Row],[Window glazing]]="Average building",Carbon_Savings_By_Profile[[#This Row],[Ventilation]]="Average building"), SUMIFS(Backend!$AJ$10:$AJ$365,Backend!$H$10:$H$365,Carbon_Savings_By_Profile[[#This Row],[Year]]),IF(AND(Carbon_Savings_By_Profile[[#This Row],[Year]]="Average building",Carbon_Savings_By_Profile[[#This Row],[Ventilation]]="Average building"),SUMIFS(Backend!$AJ$10:$AJ$365,Backend!$K$10:$K$365,Carbon_Savings_By_Profile[[#This Row],[Window glazing]]), IF(AND(Carbon_Savings_By_Profile[[#This Row],[Year]]="Average building",Carbon_Savings_By_Profile[[#This Row],[Window glazing]]="Average building"), SUMIFS(Backend!$AJ$10:$AJ$365,Backend!$J$10:$J$365,Carbon_Savings_By_Profile[[#This Row],[Ventilation]]), IF(AND(Carbon_Savings_By_Profile[[#This Row],[Year]]="Average building",Carbon_Savings_By_Profile[[#This Row],[Window glazing]]<>"Average building",Carbon_Savings_By_Profile[[#This Row],[Ventilation]]<>"Average building"), SUMIFS(Backend!$AJ$10:$AJ$365,Backend!$K$10:$K$365,Carbon_Savings_By_Profile[[#This Row],[Window glazing]],Backend!$J$10:$J$365,Carbon_Savings_By_Profile[[#This Row],[Ventilation]]),SUMIFS(Backend!$AJ$10:$AJ$365,Backend!$H$10:$H$365,Carbon_Savings_By_Profile[[#This Row],[Year]],Backend!$K$10:$K$365,Carbon_Savings_By_Profile[[#This Row],[Window glazing]],Backend!$J$10:$J$365,Carbon_Savings_By_Profile[[#This Row],[Ventilation]]))))) -> 182080.8668 | S16: =Carbon_Savings_By_Profile[[#This Row],[Avoided emissions location-based (kgCO2e/m2/year) ]]/Carbon_Savings_By_Profile[[#This Row],[Buildings]] -> 0.6575815068 | T16: =Carbon_Savings_By_Profile[[#This Row],[Avoided emissions market-based (kgCO2e/m2/year)]]/Carbon_Savings_By_Profile[[#This Row],[Buildings]] -> 0.4915678142 | U16: =Carbon_Savings_By_Profile[[#This Row],[Avoided emissions location-based (kgCO2e/building/year)]]/Carbon_Savings_By_Profile[[#This Row],[Buildings]] -> 3100.297016 | V16: =Carbon_Savings_By_Profile[[#This Row],[Avoided emissions market-based (kgCO2e/building/year)]]/Carbon_Savings_By_Profile[[#This Row],[Buildings]] -> 2494.258449 | W16: =IF(AND(Carbon_Savings_By_Profile[[#This Row],[Window glazing]]="Average building",Carbon_Savings_By_Profile[[#This Row],[Ventilation]]="Average building"), SUMIFS(Backend!$AY$10:$AY$365,Backend!$H$10:$H$365,Carbon_Savings_By_Profile[[#This Row],[Year]]),IF(AND(Carbon_Savings_By_Profile[[#This Row],[Year]]="Average building",Carbon_Savings_By_Profile[[#This Row],[Ventilation]]="Average building"),SUMIFS(Backend!$AY$10:$AY$365,Backend!$K$10:$K$365,Carbon_Savings_By_Profile[[#This Row],[Window glazing]]), IF(AND(Carbon_Savings_By_Profile[[#This Row],[Year]]="Average building",Carbon_Savings_By_Profile[[#This Row],[Window glazing]]="Average building"), SUMIFS(Backend!$AY$10:$AY$365,Backend!$J$10:$J$365,Carbon_Savings_By_Profile[[#This Row],[Ventilation]]), IF(AND(Carbon_Savings_By_Profile[[#This Row],[Year]]="Average building",Carbon_Savings_By_Profile[[#This Row],[Window glazing]]<>"Average building",Carbon_Savings_By_Profile[[#This Row],[Ventilation]]<>"Average building"), SUMIFS(Backend!$AY$10:$AY$365,Backend!$K$10:$K$365,Carbon_Savings_By_Profile[[#This Row],[Window glazing]],Backend!$J$10:$J$365,Carbon_Savings_By_Profile[[#This Row],[Ventilation]]),SUMIFS(Backend!$AY$10:$AY$365,Backend!$H$10:$H$365,Carbon_Savings_By_Profile[[#This Row],[Year]],Backend!$K$10:$K$365,Carbon_Savings_By_Profile[[#This Row],[Window glazing]],Backend!$J$10:$J$365,Carbon_Savings_By_Profile[[#This Row],[Ventilation]]))))) -> 0.2395923617 | X16: =IF(AND(Carbon_Savings_By_Profile[[#This Row],[Window glazing]]="Average building",Carbon_Savings_By_Profile[[#This Row],[Ventilation]]="Average building"), SUMIFS(Backend!$AZ$10:$AZ$365,Backend!$H$10:$H$365,Carbon_Savings_By_Profile[[#This Row],[Year]]),IF(AND(Carbon_Savings_By_Profile[[#This Row],[Year]]="Average building",Carbon_Savings_By_Profile[[#This Row],[Ventilation]]="Average building"),SUMIFS(Backend!$AZ$10:$AZ$365,Backend!$K$10:$K$365,Carbon_Savings_By_Profile[[#This Row],[Window glazing]]), IF(AND(Carbon_Savings_By_Profile[[#This Row],[Year]]="Average building",Carbon_Savings_By_Profile[[#This Row],[Window glazing]]="Average building"), SUMIFS(Backend!$AZ$10:$AZ$365,Backend!$J$10:$J$365,Carbon_Savings_By_Profile[[#This Row],[Ventilation]]), IF(AND(Carbon_Savings_By_Profile[[#This Row],[Year]]="Average building",Carbon_Savings_By_Profile[[#This Row],[Window glazing]]<>"Average building",Carbon_Savings_By_Profile[[#This Row],[Ventilation]]<>"Average building"), SUMIFS(Backend!$AZ$10:$AZ$365,Backend!$K$10:$K$365,Carbon_Savings_By_Profile[[#This Row],[Window glazing]],Backend!$J$10:$J$365,Carbon_Savings_By_Profile[[#This Row],[Ventilation]]),SUMIFS(Backend!$AZ$10:$AZ$365,Backend!$H$10:$H$365,Carbon_Savings_By_Profile[[#This Row],[Year]],Backend!$K$10:$K$365,Carbon_Savings_By_Profile[[#This Row],[Window glazing]],Backend!$J$10:$J$365,Carbon_Savings_By_Profile[[#This Row],[Ventilation]]))))) -> 0.216908733 | Y16: =IF(AND(Carbon_Savings_By_Profile[[#This Row],[Window glazing]]="Average building",Carbon_Savings_By_Profile[[#This Row],[Ventilation]]="Average building"), SUMIFS(Backend!$BA$10:$BA$365,Backend!$H$10:$H$365,Carbon_Savings_By_Profile[[#This Row],[Year]]),IF(AND(Carbon_Savings_By_Profile[[#This Row],[Year]]="Average building",Carbon_Savings_By_Profile[[#This Row],[Ventilation]]="Average building"),SUMIFS(Backend!$BA$10:$BA$365,Backend!$K$10:$K$365,Carbon_Savings_By_Profile[[#This Row],[Window glazing]]), IF(AND(Carbon_Savings_By_Profile[[#This Row],[Year]]="Average building",Carbon_Savings_By_Profile[[#This Row],[Window glazing]]="Average building"), SUMIFS(Backend!$BA$10:$BA$365,Backend!$J$10:$J$365,Carbon_Savings_By_Profile[[#This Row],[Ventilation]]), IF(AND(Carbon_Savings_By_Profile[[#This Row],[Year]]="Average building",Carbon_Savings_By_Profile[[#This Row],[Window glazing]]<>"Average building",Carbon_Savings_By_Profile[[#This Row],[Ventilation]]<>"Average building"), SUMIFS(Backend!$BA$10:$BA$365,Backend!$K$10:$K$365,Carbon_Savings_By_Profile[[#This Row],[Window glazing]],Backend!$J$10:$J$365,Carbon_Savings_By_Profile[[#This Row],[Ventilation]]),SUMIFS(Backend!$BA$10:$BA$365,Backend!$H$10:$H$365,Carbon_Savings_By_Profile[[#This Row],[Year]],Backend!$K$10:$K$365,Carbon_Savings_By_Profile[[#This Row],[Window glazing]],Backend!$J$10:$J$365,Carbon_Savings_By_Profile[[#This Row],[Ventilation]]))))) -> 772.6331344 | Z16: =IF(AND(Carbon_Savings_By_Profile[[#This Row],[Window glazing]]="Average building",Carbon_Savings_By_Profile[[#This Row],[Ventilation]]="Average building"), SUMIFS(Backend!$BB$10:$BB$365,Backend!$H$10:$H$365,Carbon_Savings_By_Profile[[#This Row],[Year]]),IF(AND(Carbon_Savings_By_Profile[[#This Row],[Year]]="Average building",Carbon_Savings_By_Profile[[#This Row],[Ventilation]]="Average building"),SUMIFS(Backend!$BB$10:$BB$365,Backend!$K$10:$K$365,Carbon_Savings_By_Profile[[#This Row],[Window glazing]]), IF(AND(Carbon_Savings_By_Profile[[#This Row],[Year]]="Average building",Carbon_Savings_By_Profile[[#This Row],[Window glazing]]="Average building"), SUMIFS(Backend!$BB$10:$BB$365,Backend!$J$10:$J$365,Carbon_Savings_By_Profile[[#This Row],[Ventilation]]), IF(AND(Carbon_Savings_By_Profile[[#This Row],[Year]]="Average building",Carbon_Savings_By_Profile[[#This Row],[Window glazing]]<>"Average building",Carbon_Savings_By_Profile[[#This Row],[Ventilation]]<>"Average building"), SUMIFS(Backend!$BB$10:$BB$365,Backend!$K$10:$K$365,Carbon_Savings_By_Profile[[#This Row],[Window glazing]],Backend!$J$10:$J$365,Carbon_Savings_By_Profile[[#This Row],[Ventilation]]),SUMIFS(Backend!$BB$10:$BB$365,Backend!$H$10:$H$365,Carbon_Savings_By_Profile[[#This Row],[Year]],Backend!$K$10:$K$365,Carbon_Savings_By_Profile[[#This Row],[Window glazing]],Backend!$J$10:$J$365,Carbon_Savings_By_Profile[[#This Row],[Ventilation]]))))) -> 707.1652186 | AA16: =Carbon_Savings_By_Profile[[#This Row],[Aggregated first order effects location-based (kgCO2e/m2/year)]]/Carbon_Savings_By_Profile[[#This Row],[Buildings]] -> 0.003282087147 | AB16: =Carbon_Savings_By_Profile[[#This Row],[Aggregated first order effects market-based (kgCO2e/m2/year)]]/Carbon_Savings_By_Profile[[#This Row],[Buildings]] -> 0.002971352507 | AC16: =Carbon_Savings_By_Profile[[#This Row],[Aggregated first order effects location-based (kgCO2e/year)]]/Carbon_Savings_By_Profile[[#This Row],[Buildings]] -> 10.58401554 | AD16: =Carbon_Savings_By_Profile[[#This Row],[Aggregated first order effects market-based (kgCO2e/building/year)]]/Carbon_Savings_By_Profile[[#This Row],[Buildings]] -> 9.687194776 | AE16: =IF(AND(Carbon_Savings_By_Profile[[#This Row],[Window glazing]]="Average building",Carbon_Savings_By_Profile[[#This Row],[Ventilation]]="Average building"), SUMIFS(Backend!$BE$10:$BE$365,Backend!$H$10:$H$365,Carbon_Savings_By_Profile[[#This Row],[Year]]),IF(AND(Carbon_Savings_By_Profile[[#This Row],[Year]]="Average building",Carbon_Savings_By_Profile[[#This Row],[Ventilation]]="Average building"),SUMIFS(Backend!$BE$10:$BE$365,Backend!$K$10:$K$365,Carbon_Savings_By_Profile[[#This Row],[Window glazing]]), IF(AND(Carbon_Savings_By_Profile[[#This Row],[Year]]="Average building",Carbon_Savings_By_Profile[[#This Row],[Window glazing]]="Average building"), SUMIFS(Backend!$BE$10:$BE$365,Backend!$J$10:$J$365,Carbon_Savings_By_Profile[[#This Row],[Ventilation]]), IF(AND(Carbon_Savings_By_Profile[[#This Row],[Year]]="Average building",Carbon_Savings_By_Profile[[#This Row],[Window glazing]]<>"Average building",Carbon_Savings_By_Profile[[#This Row],[Ventilation]]<>"Average building"), SUMIFS(Backend!$BE$10:$BE$365,Backend!$K$10:$K$365,Carbon_Savings_By_Profile[[#This Row],[Window glazing]],Backend!$J$10:$J$365,Carbon_Savings_By_Profile[[#This Row],[Ventilation]]),SUMIFS(Backend!$BE$10:$BE$365,Backend!$H$10:$H$365,Carbon_Savings_By_Profile[[#This Row],[Year]],Backend!$K$10:$K$365,Carbon_Savings_By_Profile[[#This Row],[Window glazing]],Backend!$J$10:$J$365,Carbon_Savings_By_Profile[[#This Row],[Ventilation]]))))) -> 47.76385764 | AF16: =IF(AND(Carbon_Savings_By_Profile[[#This Row],[Window glazing]]="Average building",Carbon_Savings_By_Profile[[#This Row],[Ventilation]]="Average building"), SUMIFS(Backend!$BF$10:$BF$365,Backend!$H$10:$H$365,Carbon_Savings_By_Profile[[#This Row],[Year]]),IF(AND(Carbon_Savings_By_Profile[[#This Row],[Year]]="Average building",Carbon_Savings_By_Profile[[#This Row],[Ventilation]]="Average building"),SUMIFS(Backend!$BF$10:$BF$365,Backend!$K$10:$K$365,Carbon_Savings_By_Profile[[#This Row],[Window glazing]]), IF(AND(Carbon_Savings_By_Profile[[#This Row],[Year]]="Average building",Carbon_Savings_By_Profile[[#This Row],[Window glazing]]="Average building"), SUMIFS(Backend!$BF$10:$BF$365,Backend!$J$10:$J$365,Carbon_Savings_By_Profile[[#This Row],[Ventilation]]), IF(AND(Carbon_Savings_By_Profile[[#This Row],[Year]]="Average building",Carbon_Savings_By_Profile[[#This Row],[Window glazing]]<>"Average building",Carbon_Savings_By_Profile[[#This Row],[Ventilation]]<>"Average building"), SUMIFS(Backend!$BF$10:$BF$365,Backend!$K$10:$K$365,Carbon_Savings_By_Profile[[#This Row],[Window glazing]],Backend!$J$10:$J$365,Carbon_Savings_By_Profile[[#This Row],[Ventilation]]),SUMIFS(Backend!$BF$10:$BF$365,Backend!$H$10:$H$365,Carbon_Savings_By_Profile[[#This Row],[Year]],Backend!$K$10:$K$365,Carbon_Savings_By_Profile[[#This Row],[Window glazing]],Backend!$J$10:$J$365,Carbon_Savings_By_Profile[[#This Row],[Ventilation]]))))) -> 35.6675417 | AG16: 0.6542994197 | AH16: =Carbon_Savings_By_Profile[[#This Row],[Net avoided emissions market-based (kgCO2e/m2/year)]]/Carbon_Savings_By_Profile[[#This Row],[Buildings]] -> 0.4885964617 | AI16: =IF(AND(Carbon_Savings_By_Profile[[#This Row],[Window glazing]]="Average building",Carbon_Savings_By_Profile[[#This Row],[Ventilation]]="Average building"), SUMIFS(Backend!$BG$10:$BG$365,Backend!$H$10:$H$365,Carbon_Savings_By_Profile[[#This Row],[Year]]),IF(AND(Carbon_Savings_By_Profile[[#This Row],[Year]]="Average building",Carbon_Savings_By_Profile[[#This Row],[Ventilation]]="Average building"),SUMIFS(Backend!$BG$10:$BG$365,Backend!$K$10:$K$365,Carbon_Savings_By_Profile[[#This Row],[Window glazing]]), IF(AND(Carbon_Savings_By_Profile[[#This Row],[Year]]="Average building",Carbon_Savings_By_Profile[[#This Row],[Window glazing]]="Average building"), SUMIFS(Backend!$BG$10:$BG$365,Backend!$J$10:$J$365,Carbon_Savings_By_Profile[[#This Row],[Ventilation]]), IF(AND(Carbon_Savings_By_Profile[[#This Row],[Year]]="Average building",Carbon_Savings_By_Profile[[#This Row],[Window glazing]]<>"Average building",Carbon_Savings_By_Profile[[#This Row],[Ventilation]]<>"Average building"), SUMIFS(Backend!$BG$10:$BG$365,Backend!$K$10:$K$365,Carbon_Savings_By_Profile[[#This Row],[Window glazing]],Backend!$J$10:$J$365,Carbon_Savings_By_Profile[[#This Row],[Ventilation]]),SUMIFS(Backend!$BG$10:$BG$365,Backend!$H$10:$H$365,Carbon_Savings_By_Profile[[#This Row],[Year]],Backend!$K$10:$K$365,Carbon_Savings_By_Profile[[#This Row],[Window glazing]],Backend!$J$10:$J$365,Carbon_Savings_By_Profile[[#This Row],[Ventilation]]))))) -> 225549.049 | AJ16: =IF(AND(Carbon_Savings_By_Profile[[#This Row],[Window glazing]]="Average building",Carbon_Savings_By_Profile[[#This Row],[Ventilation]]="Average building"), SUMIFS(Backend!$BH$10:$BH$365,Backend!$H$10:$H$365,Carbon_Savings_By_Profile[[#This Row],[Year]]),IF(AND(Carbon_Savings_By_Profile[[#This Row],[Year]]="Average building",Carbon_Savings_By_Profile[[#This Row],[Ventilation]]="Average building"),SUMIFS(Backend!$BH$10:$BH$365,Backend!$K$10:$K$365,Carbon_Savings_By_Profile[[#This Row],[Window glazing]]), IF(AND(Carbon_Savings_By_Profile[[#This Row],[Year]]="Average building",Carbon_Savings_By_Profile[[#This Row],[Window glazing]]="Average building"), SUMIFS(Backend!$BH$10:$BH$365,Backend!$J$10:$J$365,Carbon_Savings_By_Profile[[#This Row],[Ventilation]]), IF(AND(Carbon_Savings_By_Profile[[#This Row],[Year]]="Average building",Carbon_Savings_By_Profile[[#This Row],[Window glazing]]<>"Average building",Carbon_Savings_By_Profile[[#This Row],[Ventilation]]<>"Average building"), SUMIFS(Backend!$BH$10:$BH$365,Backend!$K$10:$K$365,Carbon_Savings_By_Profile[[#This Row],[Window glazing]],Backend!$J$10:$J$365,Carbon_Savings_By_Profile[[#This Row],[Ventilation]]),SUMIFS(Backend!$BH$10:$BH$365,Backend!$H$10:$H$365,Carbon_Savings_By_Profile[[#This Row],[Year]],Backend!$K$10:$K$365,Carbon_Savings_By_Profile[[#This Row],[Window glazing]],Backend!$J$10:$J$365,Carbon_Savings_By_Profile[[#This Row],[Ventilation]]))))) -> 181373.7016 | AK16: =Carbon_Savings_By_Profile[[#This Row],[Net avoided emissions location-based (kgCO2e/year)]]/Carbon_Savings_By_Profile[[#This Row],[Buildings]] -> 3089.713001 | AL16: =Carbon_Savings_By_Profile[[#This Row],[Net avoided emissions market-based (kgCO2e/year)]]/Carbon_Savings_By_Profile[[#This Row],[Buildings]] -> 2484.571254 | AM16: =IF(Results!$L$15="market-based",Carbon_Savings_By_Profile[[#This Row],[Average net avoided emissions market-based (kgCO2e/m2/year)]],Carbon_Savings_By_Profile[[#This Row],[Average net avoided emissions location-based (kgCO2e/m2/year)]]) -> 0.6542994197 | AN16: =IF(AND(Carbon_Savings_By_Profile[[#This Row],[Window glazing]]="Average building",Carbon_Savings_By_Profile[[#This Row],[Ventilation]]="Average building"), SUMIFS(Table7[Emissions uncertainty per m2 location-based (kgCO2e)],Backend!$H$10:$H$365,Carbon_Savings_By_Profile[[#This Row],[Year]]),IF(AND(Carbon_Savings_By_Profile[[#This Row],[Year]]="Average building",Carbon_Savings_By_Profile[[#This Row],[Ventilation]]="Average building"),SUMIFS(Table7[Emissions uncertainty per m2 location-based (kgCO2e)],Backend!$K$10:$K$365,Carbon_Savings_By_Profile[[#This Row],[Window glazing]]), IF(AND(Carbon_Savings_By_Profile[[#This Row],[Year]]="Average building",Carbon_Savings_By_Profile[[#This Row],[Window glazing]]="Average building"), SUMIFS(Table7[Emissions uncertainty per m2 location-based (kgCO2e)],Backend!$J$10:$J$365,Carbon_Savings_By_Profile[[#This Row],[Ventilation]]), IF(AND(Carbon_Savings_By_Profile[[#This Row],[Year]]="Average building",Carbon_Savings_By_Profile[[#This Row],[Window glazing]]<>"Average building",Carbon_Savings_By_Profile[[#This Row],[Ventilation]]<>"Average building"), SUMIFS(Table7[Emissions uncertainty per m2 location-based (kgCO2e)],Backend!$K$10:$K$365,Carbon_Savings_By_Profile[[#This Row],[Window glazing]],Backend!$J$10:$J$365,Carbon_Savings_By_Profile[[#This Row],[Ventilation]]),SUMIFS(Table7[Emissions uncertainty per m2 location-based (kgCO2e)],Backend!$H$10:$H$365,Carbon_Savings_By_Profile[[#This Row],[Year]],Backend!$K$10:$K$365,Carbon_Savings_By_Profile[[#This Row],[Window glazing]],Backend!$J$10:$J$365,Carbon_Savings_By_Profile[[#This Row],[Ventilation]]))))) -> 3.183594229 | AO16: =IF(AND(Carbon_Savings_By_Profile[[#This Row],[Window glazing]]="Average building",Carbon_Savings_By_Profile[[#This Row],[Ventilation]]="Average building"), SUMIFS(Table7[Emissions uncertainty per m2 market-based* (kgCO2e)],Backend!$H$10:$H$365,Carbon_Savings_By_Profile[[#This Row],[Year]]),IF(AND(Carbon_Savings_By_Profile[[#This Row],[Year]]="Average building",Carbon_Savings_By_Profile[[#This Row],[Ventilation]]="Average building"),SUMIFS(Table7[Emissions uncertainty per m2 market-based* (kgCO2e)],Backend!$K$10:$K$365,Carbon_Savings_By_Profile[[#This Row],[Window glazing]]), IF(AND(Carbon_Savings_By_Profile[[#This Row],[Year]]="Average building",Carbon_Savings_By_Profile[[#This Row],[Window glazing]]="Average building"), SUMIFS(Table7[Emissions uncertainty per m2 market-based* (kgCO2e)],Backend!$J$10:$J$365,Carbon_Savings_By_Profile[[#This Row],[Ventilation]]), IF(AND(Carbon_Savings_By_Profile[[#This Row],[Year]]="Average building",Carbon_Savings_By_Profile[[#This Row],[Window glazing]]<>"Average building",Carbon_Savings_By_Profile[[#This Row],[Ventilation]]<>"Average building"), SUMIFS(Table7[Emissions uncertainty per m2 market-based* (kgCO2e)],Backend!$K$10:$K$365,Carbon_Savings_By_Profile[[#This Row],[Window glazing]],Backend!$J$10:$J$365,Carbon_Savings_By_Profile[[#This Row],[Ventilation]]),SUMIFS(Table7[Emissions uncertainty per m2 market-based* (kgCO2e)],Backend!$H$10:$H$365,Carbon_Savings_By_Profile[[#This Row],[Year]],Backend!$K$10:$K$365,Carbon_Savings_By_Profile[[#This Row],[Window glazing]],Backend!$J$10:$J$365,Carbon_Savings_By_Profile[[#This Row],[Ventilation]]))))) -> 2.379860808 | AP16: =Carbon_Savings_By_Profile[[#This Row],[Uncertainty location-based (kgCO2e/m2/year)]]/Carbon_Savings_By_Profile[[#This Row],[Buildings]] -> 0.04361087985 | AQ16: =Carbon_Savings_By_Profile[[#This Row],[Uncertainty market-based (kgCO2e/m2/year)]]/Carbon_Savings_By_Profile[[#This Row],[Buildings]] -> 0.03260083299 | AR16: -0.09273753413 | AS16: -0.09289301041
B17: 1945-1969 | C17: Triple glazed | D17: ESX | E17: 1945-1969 - Triple glazed - ESX | F17: =IF(AND(Carbon_Savings_By_Profile[[#This Row],[Window glazing]]="Average building",Carbon_Savings_By_Profile[[#This Row],[Ventilation]]="Average building"), COUNTIFS(Backend!$H$10:$H$365,Carbon_Savings_By_Profile[[#This Row],[Year]]),IF(AND(Carbon_Savings_By_Profile[[#This Row],[Year]]="Average building",Carbon_Savings_By_Profile[[#This Row],[Ventilation]]="Average building"),COUNTIFS(Backend!$K$10:$K$365,Carbon_Savings_By_Profile[[#This Row],[Window glazing]]), IF(AND(Carbon_Savings_By_Profile[[#This Row],[Year]]="Average building",Carbon_Savings_By_Profile[[#This Row],[Window glazing]]="Average building"), COUNTIFS(Backend!$J$10:$J$365,Carbon_Savings_By_Profile[[#This Row],[Ventilation]]), IF(AND(Carbon_Savings_By_Profile[[#This Row],[Year]]="Average building",Carbon_Savings_By_Profile[[#This Row],[Window glazing]]<>"Average building",Carbon_Savings_By_Profile[[#This Row],[Ventilation]]<>"Average building"), COUNTIFS(Backend!$K$10:$K$365,Carbon_Savings_By_Profile[[#This Row],[Window glazing]],Backend!$J$10:$J$365,Carbon_Savings_By_Profile[[#This Row],[Ventilation]]),COUNTIFS(Backend!$H$10:$H$365,Carbon_Savings_By_Profile[[#This Row],[Year]],Backend!$K$10:$K$365,Carbon_Savings_By_Profile[[#This Row],[Window glazing]],Backend!$J$10:$J$365,Carbon_Savings_By_Profile[[#This Row],[Ventilation]]))))) -> 2 | G17: =IF(AND(Carbon_Savings_By_Profile[[#This Row],[Window glazing]]="Average building",Carbon_Savings_By_Profile[[#This Row],[Ventilation]]="Average building"), SUMIFS(Table7[Emissions w/o AI location-based (kgCO2e/building)],Backend!$H$10:$H$365,Carbon_Savings_By_Profile[[#This Row],[Year]]),IF(AND(Carbon_Savings_By_Profile[[#This Row],[Year]]="Average building",Carbon_Savings_By_Profile[[#This Row],[Ventilation]]="Average building"),SUMIFS(Table7[Emissions w/o AI location-based (kgCO2e/building)],Backend!$K$10:$K$365,Carbon_Savings_By_Profile[[#This Row],[Window glazing]]), IF(AND(Carbon_Savings_By_Profile[[#This Row],[Year]]="Average building",Carbon_Savings_By_Profile[[#This Row],[Window glazing]]="Average building"), SUMIFS(Table7[Emissions w/o AI location-based (kgCO2e/building)],Backend!$J$10:$J$365,Carbon_Savings_By_Profile[[#This Row],[Ventilation]]), IF(AND(Carbon_Savings_By_Profile[[#This Row],[Year]]="Average building",Carbon_Savings_By_Profile[[#This Row],[Window glazing]]<>"Average building",Carbon_Savings_By_Profile[[#This Row],[Ventilation]]<>"Average building"), SUMIFS(Table7[Emissions w/o AI location-based (kgCO2e/building)],Backend!$K$10:$K$365,Carbon_Savings_By_Profile[[#This Row],[Window glazing]],Backend!$J$10:$J$365,Carbon_Savings_By_Profile[[#This Row],[Ventilation]]),SUMIFS(Table7[Emissions w/o AI location-based (kgCO2e/building)],Backend!$H$10:$H$365,Carbon_Savings_By_Profile[[#This Row],[Year]],Backend!$K$10:$K$365,Carbon_Savings_By_Profile[[#This Row],[Window glazing]],Backend!$J$10:$J$365,Carbon_Savings_By_Profile[[#This Row],[Ventilation]]))))) -> 101114.5912 | H17: =IF(AND(Carbon_Savings_By_Profile[[#This Row],[Window glazing]]="Average building",Carbon_Savings_By_Profile[[#This Row],[Ventilation]]="Average building"), SUMIFS(Table7[Emissions w/o AI market-based* (kgCO2e/building)],Backend!$H$10:$H$365,Carbon_Savings_By_Profile[[#This Row],[Year]]),IF(AND(Carbon_Savings_By_Profile[[#This Row],[Year]]="Average building",Carbon_Savings_By_Profile[[#This Row],[Ventilation]]="Average building"),SUMIFS(Table7[Emissions w/o AI market-based* (kgCO2e/building)],Backend!$K$10:$K$365,Carbon_Savings_By_Profile[[#This Row],[Window glazing]]), IF(AND(Carbon_Savings_By_Profile[[#This Row],[Year]]="Average building",Carbon_Savings_By_Profile[[#This Row],[Window glazing]]="Average building"), SUMIFS(Table7[Emissions w/o AI market-based* (kgCO2e/building)],Backend!$J$10:$J$365,Carbon_Savings_By_Profile[[#This Row],[Ventilation]]), IF(AND(Carbon_Savings_By_Profile[[#This Row],[Year]]="Average building",Carbon_Savings_By_Profile[[#This Row],[Window glazing]]<>"Average building",Carbon_Savings_By_Profile[[#This Row],[Ventilation]]<>"Average building"), SUMIFS(Table7[Emissions w/o AI market-based* (kgCO2e/building)],Backend!$K$10:$K$365,Carbon_Savings_By_Profile[[#This Row],[Window glazing]],Backend!$J$10:$J$365,Carbon_Savings_By_Profile[[#This Row],[Ventilation]]),SUMIFS(Table7[Emissions w/o AI market-based* (kgCO2e/building)],Backend!$H$10:$H$365,Carbon_Savings_By_Profile[[#This Row],[Year]],Backend!$K$10:$K$365,Carbon_Savings_By_Profile[[#This Row],[Window glazing]],Backend!$J$10:$J$365,Carbon_Savings_By_Profile[[#This Row],[Ventilation]]))))) -> 101114.5912 | I17: =Carbon_Savings_By_Profile[[#This Row],[Emissions w/o AI location-based (kgCO2e/year)]]/Carbon_Savings_By_Profile[[#This Row],[Buildings]] -> 50557.29558 | J17: =Carbon_Savings_By_Profile[[#This Row],[Emissions w/o AI market-based (kgCO2e/year)]]/Carbon_Savings_By_Profile[[#This Row],[Buildings]] -> 50557.29558 | K17: =IF(AND(Carbon_Savings_By_Profile[[#This Row],[Window glazing]]="Average building",Carbon_Savings_By_Profile[[#This Row],[Ventilation]]="Average building"), SUMIFS(Table7[Emissions w/o AI location-based (kgCO2e/m2)],Backend!$H$10:$H$365,Carbon_Savings_By_Profile[[#This Row],[Year]]),IF(AND(Carbon_Savings_By_Profile[[#This Row],[Year]]="Average building",Carbon_Savings_By_Profile[[#This Row],[Ventilation]]="Average building"),SUMIFS(Table7[Emissions w/o AI location-based (kgCO2e/m2)],Backend!$K$10:$K$365,Carbon_Savings_By_Profile[[#This Row],[Window glazing]]), IF(AND(Carbon_Savings_By_Profile[[#This Row],[Year]]="Average building",Carbon_Savings_By_Profile[[#This Row],[Window glazing]]="Average building"), SUMIFS(Table7[Emissions w/o AI location-based (kgCO2e/m2)],Backend!$J$10:$J$365,Carbon_Savings_By_Profile[[#This Row],[Ventilation]]), IF(AND(Carbon_Savings_By_Profile[[#This Row],[Year]]="Average building",Carbon_Savings_By_Profile[[#This Row],[Window glazing]]<>"Average building",Carbon_Savings_By_Profile[[#This Row],[Ventilation]]<>"Average building"), SUMIFS(Table7[Emissions w/o AI location-based (kgCO2e/m2)],Backend!$K$10:$K$365,Carbon_Savings_By_Profile[[#This Row],[Window glazing]],Backend!$J$10:$J$365,Carbon_Savings_By_Profile[[#This Row],[Ventilation]]),SUMIFS(Table7[Emissions w/o AI location-based (kgCO2e/m2)],Backend!$H$10:$H$365,Carbon_Savings_By_Profile[[#This Row],[Year]],Backend!$K$10:$K$365,Carbon_Savings_By_Profile[[#This Row],[Window glazing]],Backend!$J$10:$J$365,Carbon_Savings_By_Profile[[#This Row],[Ventilation]]))))) -> 16.8703636 | L17: =IF(AND(Carbon_Savings_By_Profile[[#This Row],[Window glazing]]="Average building",Carbon_Savings_By_Profile[[#This Row],[Ventilation]]="Average building"), SUMIFS(Table7[Emissions w/o AI market-based* (kgCO2e/m2)],Backend!$H$10:$H$365,Carbon_Savings_By_Profile[[#This Row],[Year]]),IF(AND(Carbon_Savings_By_Profile[[#This Row],[Year]]="Average building",Carbon_Savings_By_Profile[[#This Row],[Ventilation]]="Average building"),SUMIFS(Table7[Emissions w/o AI market-based* (kgCO2e/m2)],Backend!$K$10:$K$365,Carbon_Savings_By_Profile[[#This Row],[Window glazing]]), IF(AND(Carbon_Savings_By_Profile[[#This Row],[Year]]="Average building",Carbon_Savings_By_Profile[[#This Row],[Window glazing]]="Average building"), SUMIFS(Table7[Emissions w/o AI market-based* (kgCO2e/m2)],Backend!$J$10:$J$365,Carbon_Savings_By_Profile[[#This Row],[Ventilation]]), IF(AND(Carbon_Savings_By_Profile[[#This Row],[Year]]="Average building",Carbon_Savings_By_Profile[[#This Row],[Window glazing]]<>"Average building",Carbon_Savings_By_Profile[[#This Row],[Ventilation]]<>"Average building"), SUMIFS(Table7[Emissions w/o AI market-based* (kgCO2e/m2)],Backend!$K$10:$K$365,Carbon_Savings_By_Profile[[#This Row],[Window glazing]],Backend!$J$10:$J$365,Carbon_Savings_By_Profile[[#This Row],[Ventilation]]),SUMIFS(Table7[Emissions w/o AI market-based* (kgCO2e/m2)],Backend!$H$10:$H$365,Carbon_Savings_By_Profile[[#This Row],[Year]],Backend!$K$10:$K$365,Carbon_Savings_By_Profile[[#This Row],[Window glazing]],Backend!$J$10:$J$365,Carbon_Savings_By_Profile[[#This Row],[Ventilation]]))))) -> 16.8703636 | M17: =Carbon_Savings_By_Profile[[#This Row],[Emissions w/o AI location-based (kgCO2e/m2/year)]]/Carbon_Savings_By_Profile[[#This Row],[Buildings]] -> 8.4351818 | N17: =Carbon_Savings_By_Profile[[#This Row],[Emissions w/o AI market-based (kgCO2e/m2/year)]]/Carbon_Savings_By_Profile[[#This Row],[Buildings]] -> 8.4351818 | O17: =IF(AND(Carbon_Savings_By_Profile[[#This Row],[Window glazing]]="Average building",Carbon_Savings_By_Profile[[#This Row],[Ventilation]]="Average building"), SUMIFS(Backend!$AG$10:$AG$365,Backend!$H$10:$H$365,Carbon_Savings_By_Profile[[#This Row],[Year]]),IF(AND(Carbon_Savings_By_Profile[[#This Row],[Year]]="Average building",Carbon_Savings_By_Profile[[#This Row],[Ventilation]]="Average building"),SUMIFS(Backend!$AG$10:$AG$365,Backend!$K$10:$K$365,Carbon_Savings_By_Profile[[#This Row],[Window glazing]]), IF(AND(Carbon_Savings_By_Profile[[#This Row],[Year]]="Average building",Carbon_Savings_By_Profile[[#This Row],[Window glazing]]="Average building"), SUMIFS(Backend!$AG$10:$AG$365,Backend!$J$10:$J$365,Carbon_Savings_By_Profile[[#This Row],[Ventilation]]), IF(AND(Carbon_Savings_By_Profile[[#This Row],[Year]]="Average building",Carbon_Savings_By_Profile[[#This Row],[Window glazing]]<>"Average building",Carbon_Savings_By_Profile[[#This Row],[Ventilation]]<>"Average building"), SUMIFS(Backend!$AG$10:$AG$365,Backend!$K$10:$K$365,Carbon_Savings_By_Profile[[#This Row],[Window glazing]],Backend!$J$10:$J$365,Carbon_Savings_By_Profile[[#This Row],[Ventilation]]),SUMIFS(Backend!$AG$10:$AG$365,Backend!$H$10:$H$365,Carbon_Savings_By_Profile[[#This Row],[Year]],Backend!$K$10:$K$365,Carbon_Savings_By_Profile[[#This Row],[Window glazing]],Backend!$J$10:$J$365,Carbon_Savings_By_Profile[[#This Row],[Ventilation]]))))) -> 1.18393 | P17: =IF(AND(Carbon_Savings_By_Profile[[#This Row],[Window glazing]]="Average building",Carbon_Savings_By_Profile[[#This Row],[Ventilation]]="Average building"), SUMIFS(Backend!$AH$10:$AH$365,Backend!$H$10:$H$365,Carbon_Savings_By_Profile[[#This Row],[Year]]),IF(AND(Carbon_Savings_By_Profile[[#This Row],[Year]]="Average building",Carbon_Savings_By_Profile[[#This Row],[Ventilation]]="Average building"),SUMIFS(Backend!$AH$10:$AH$365,Backend!$K$10:$K$365,Carbon_Savings_By_Profile[[#This Row],[Window glazing]]), IF(AND(Carbon_Savings_By_Profile[[#This Row],[Year]]="Average building",Carbon_Savings_By_Profile[[#This Row],[Window glazing]]="Average building"), SUMIFS(Backend!$AH$10:$AH$365,Backend!$J$10:$J$365,Carbon_Savings_By_Profile[[#This Row],[Ventilation]]), IF(AND(Carbon_Savings_By_Profile[[#This Row],[Year]]="Average building",Carbon_Savings_By_Profile[[#This Row],[Window glazing]]<>"Average building",Carbon_Savings_By_Profile[[#This Row],[Ventilation]]<>"Average building"), SUMIFS(Backend!$AH$10:$AH$365,Backend!$K$10:$K$365,Carbon_Savings_By_Profile[[#This Row],[Window glazing]],Backend!$J$10:$J$365,Carbon_Savings_By_Profile[[#This Row],[Ventilation]]),SUMIFS(Backend!$AH$10:$AH$365,Backend!$H$10:$H$365,Carbon_Savings_By_Profile[[#This Row],[Year]],Backend!$K$10:$K$365,Carbon_Savings_By_Profile[[#This Row],[Window glazing]],Backend!$J$10:$J$365,Carbon_Savings_By_Profile[[#This Row],[Ventilation]]))))) -> 0.69631 | Q17: =IF(AND(Carbon_Savings_By_Profile[[#This Row],[Window glazing]]="Average building",Carbon_Savings_By_Profile[[#This Row],[Ventilation]]="Average building"), SUMIFS(Backend!$AI$10:$AI$365,Backend!$H$10:$H$365,Carbon_Savings_By_Profile[[#This Row],[Year]]),IF(AND(Carbon_Savings_By_Profile[[#This Row],[Year]]="Average building",Carbon_Savings_By_Profile[[#This Row],[Ventilation]]="Average building"),SUMIFS(Backend!$AI$10:$AI$365,Backend!$K$10:$K$365,Carbon_Savings_By_Profile[[#This Row],[Window glazing]]), IF(AND(Carbon_Savings_By_Profile[[#This Row],[Year]]="Average building",Carbon_Savings_By_Profile[[#This Row],[Window glazing]]="Average building"), SUMIFS(Backend!$AI$10:$AI$365,Backend!$J$10:$J$365,Carbon_Savings_By_Profile[[#This Row],[Ventilation]]), IF(AND(Carbon_Savings_By_Profile[[#This Row],[Year]]="Average building",Carbon_Savings_By_Profile[[#This Row],[Window glazing]]<>"Average building",Carbon_Savings_By_Profile[[#This Row],[Ventilation]]<>"Average building"), SUMIFS(Backend!$AI$10:$AI$365,Backend!$K$10:$K$365,Carbon_Savings_By_Profile[[#This Row],[Window glazing]],Backend!$J$10:$J$365,Carbon_Savings_By_Profile[[#This Row],[Ventilation]]),SUMIFS(Backend!$AI$10:$AI$365,Backend!$H$10:$H$365,Carbon_Savings_By_Profile[[#This Row],[Year]],Backend!$K$10:$K$365,Carbon_Savings_By_Profile[[#This Row],[Window glazing]],Backend!$J$10:$J$365,Carbon_Savings_By_Profile[[#This Row],[Ventilation]]))))) -> 6887.94964 | R17: =IF(AND(Carbon_Savings_By_Profile[[#This Row],[Window glazing]]="Average building",Carbon_Savings_By_Profile[[#This Row],[Ventilation]]="Average building"), SUMIFS(Backend!$AJ$10:$AJ$365,Backend!$H$10:$H$365,Carbon_Savings_By_Profile[[#This Row],[Year]]),IF(AND(Carbon_Savings_By_Profile[[#This Row],[Year]]="Average building",Carbon_Savings_By_Profile[[#This Row],[Ventilation]]="Average building"),SUMIFS(Backend!$AJ$10:$AJ$365,Backend!$K$10:$K$365,Carbon_Savings_By_Profile[[#This Row],[Window glazing]]), IF(AND(Carbon_Savings_By_Profile[[#This Row],[Year]]="Average building",Carbon_Savings_By_Profile[[#This Row],[Window glazing]]="Average building"), SUMIFS(Backend!$AJ$10:$AJ$365,Backend!$J$10:$J$365,Carbon_Savings_By_Profile[[#This Row],[Ventilation]]), IF(AND(Carbon_Savings_By_Profile[[#This Row],[Year]]="Average building",Carbon_Savings_By_Profile[[#This Row],[Window glazing]]<>"Average building",Carbon_Savings_By_Profile[[#This Row],[Ventilation]]<>"Average building"), SUMIFS(Backend!$AJ$10:$AJ$365,Backend!$K$10:$K$365,Carbon_Savings_By_Profile[[#This Row],[Window glazing]],Backend!$J$10:$J$365,Carbon_Savings_By_Profile[[#This Row],[Ventilation]]),SUMIFS(Backend!$AJ$10:$AJ$365,Backend!$H$10:$H$365,Carbon_Savings_By_Profile[[#This Row],[Year]],Backend!$K$10:$K$365,Carbon_Savings_By_Profile[[#This Row],[Window glazing]],Backend!$J$10:$J$365,Carbon_Savings_By_Profile[[#This Row],[Ventilation]]))))) -> 5689.37968 | S17: =Carbon_Savings_By_Profile[[#This Row],[Avoided emissions location-based (kgCO2e/m2/year) ]]/Carbon_Savings_By_Profile[[#This Row],[Buildings]] -> 0.591965 | T17: =Carbon_Savings_By_Profile[[#This Row],[Avoided emissions market-based (kgCO2e/m2/year)]]/Carbon_Savings_By_Profile[[#This Row],[Buildings]] -> 0.348155 | U17: =Carbon_Savings_By_Profile[[#This Row],[Avoided emissions location-based (kgCO2e/building/year)]]/Carbon_Savings_By_Profile[[#This Row],[Buildings]] -> 3443.97482 | V17: =Carbon_Savings_By_Profile[[#This Row],[Avoided emissions market-based (kgCO2e/building/year)]]/Carbon_Savings_By_Profile[[#This Row],[Buildings]] -> 2844.68984 | W17: =IF(AND(Carbon_Savings_By_Profile[[#This Row],[Window glazing]]="Average building",Carbon_Savings_By_Profile[[#This Row],[Ventilation]]="Average building"), SUMIFS(Backend!$AY$10:$AY$365,Backend!$H$10:$H$365,Carbon_Savings_By_Profile[[#This Row],[Year]]),IF(AND(Carbon_Savings_By_Profile[[#This Row],[Year]]="Average building",Carbon_Savings_By_Profile[[#This Row],[Ventilation]]="Average building"),SUMIFS(Backend!$AY$10:$AY$365,Backend!$K$10:$K$365,Carbon_Savings_By_Profile[[#This Row],[Window glazing]]), IF(AND(Carbon_Savings_By_Profile[[#This Row],[Year]]="Average building",Carbon_Savings_By_Profile[[#This Row],[Window glazing]]="Average building"), SUMIFS(Backend!$AY$10:$AY$365,Backend!$J$10:$J$365,Carbon_Savings_By_Profile[[#This Row],[Ventilation]]), IF(AND(Carbon_Savings_By_Profile[[#This Row],[Year]]="Average building",Carbon_Savings_By_Profile[[#This Row],[Window glazing]]<>"Average building",Carbon_Savings_By_Profile[[#This Row],[Ventilation]]<>"Average building"), SUMIFS(Backend!$AY$10:$AY$365,Backend!$K$10:$K$365,Carbon_Savings_By_Profile[[#This Row],[Window glazing]],Backend!$J$10:$J$365,Carbon_Savings_By_Profile[[#This Row],[Ventilation]]),SUMIFS(Backend!$AY$10:$AY$365,Backend!$H$10:$H$365,Carbon_Savings_By_Profile[[#This Row],[Year]],Backend!$K$10:$K$365,Carbon_Savings_By_Profile[[#This Row],[Window glazing]],Backend!$J$10:$J$365,Carbon_Savings_By_Profile[[#This Row],[Ventilation]]))))) -> 0.005511625396 | X17: =IF(AND(Carbon_Savings_By_Profile[[#This Row],[Window glazing]]="Average building",Carbon_Savings_By_Profile[[#This Row],[Ventilation]]="Average building"), SUMIFS(Backend!$AZ$10:$AZ$365,Backend!$H$10:$H$365,Carbon_Savings_By_Profile[[#This Row],[Year]]),IF(AND(Carbon_Savings_By_Profile[[#This Row],[Year]]="Average building",Carbon_Savings_By_Profile[[#This Row],[Ventilation]]="Average building"),SUMIFS(Backend!$AZ$10:$AZ$365,Backend!$K$10:$K$365,Carbon_Savings_By_Profile[[#This Row],[Window glazing]]), IF(AND(Carbon_Savings_By_Profile[[#This Row],[Year]]="Average building",Carbon_Savings_By_Profile[[#This Row],[Window glazing]]="Average building"), SUMIFS(Backend!$AZ$10:$AZ$365,Backend!$J$10:$J$365,Carbon_Savings_By_Profile[[#This Row],[Ventilation]]), IF(AND(Carbon_Savings_By_Profile[[#This Row],[Year]]="Average building",Carbon_Savings_By_Profile[[#This Row],[Window glazing]]<>"Average building",Carbon_Savings_By_Profile[[#This Row],[Ventilation]]<>"Average building"), SUMIFS(Backend!$AZ$10:$AZ$365,Backend!$K$10:$K$365,Carbon_Savings_By_Profile[[#This Row],[Window glazing]],Backend!$J$10:$J$365,Carbon_Savings_By_Profile[[#This Row],[Ventilation]]),SUMIFS(Backend!$AZ$10:$AZ$365,Backend!$H$10:$H$365,Carbon_Savings_By_Profile[[#This Row],[Year]],Backend!$K$10:$K$365,Carbon_Savings_By_Profile[[#This Row],[Window glazing]],Backend!$J$10:$J$365,Carbon_Savings_By_Profile[[#This Row],[Ventilation]]))))) -> 0.005056435007 | Y17: =IF(AND(Carbon_Savings_By_Profile[[#This Row],[Window glazing]]="Average building",Carbon_Savings_By_Profile[[#This Row],[Ventilation]]="Average building"), SUMIFS(Backend!$BA$10:$BA$365,Backend!$H$10:$H$365,Carbon_Savings_By_Profile[[#This Row],[Year]]),IF(AND(Carbon_Savings_By_Profile[[#This Row],[Year]]="Average building",Carbon_Savings_By_Profile[[#This Row],[Ventilation]]="Average building"),SUMIFS(Backend!$BA$10:$BA$365,Backend!$K$10:$K$365,Carbon_Savings_By_Profile[[#This Row],[Window glazing]]), IF(AND(Carbon_Savings_By_Profile[[#This Row],[Year]]="Average building",Carbon_Savings_By_Profile[[#This Row],[Window glazing]]="Average building"), SUMIFS(Backend!$BA$10:$BA$365,Backend!$J$10:$J$365,Carbon_Savings_By_Profile[[#This Row],[Ventilation]]), IF(AND(Carbon_Savings_By_Profile[[#This Row],[Year]]="Average building",Carbon_Savings_By_Profile[[#This Row],[Window glazing]]<>"Average building",Carbon_Savings_By_Profile[[#This Row],[Ventilation]]<>"Average building"), SUMIFS(Backend!$BA$10:$BA$365,Backend!$K$10:$K$365,Carbon_Savings_By_Profile[[#This Row],[Window glazing]],Backend!$J$10:$J$365,Carbon_Savings_By_Profile[[#This Row],[Ventilation]]),SUMIFS(Backend!$BA$10:$BA$365,Backend!$H$10:$H$365,Carbon_Savings_By_Profile[[#This Row],[Year]],Backend!$K$10:$K$365,Carbon_Savings_By_Profile[[#This Row],[Window glazing]],Backend!$J$10:$J$365,Carbon_Savings_By_Profile[[#This Row],[Ventilation]]))))) -> 23.81368543 | Z17: =IF(AND(Carbon_Savings_By_Profile[[#This Row],[Window glazing]]="Average building",Carbon_Savings_By_Profile[[#This Row],[Ventilation]]="Average building"), SUMIFS(Backend!$BB$10:$BB$365,Backend!$H$10:$H$365,Carbon_Savings_By_Profile[[#This Row],[Year]]),IF(AND(Carbon_Savings_By_Profile[[#This Row],[Year]]="Average building",Carbon_Savings_By_Profile[[#This Row],[Ventilation]]="Average building"),SUMIFS(Backend!$BB$10:$BB$365,Backend!$K$10:$K$365,Carbon_Savings_By_Profile[[#This Row],[Window glazing]]), IF(AND(Carbon_Savings_By_Profile[[#This Row],[Year]]="Average building",Carbon_Savings_By_Profile[[#This Row],[Window glazing]]="Average building"), SUMIFS(Backend!$BB$10:$BB$365,Backend!$J$10:$J$365,Carbon_Savings_By_Profile[[#This Row],[Ventilation]]), IF(AND(Carbon_Savings_By_Profile[[#This Row],[Year]]="Average building",Carbon_Savings_By_Profile[[#This Row],[Window glazing]]<>"Average building",Carbon_Savings_By_Profile[[#This Row],[Ventilation]]<>"Average building"), SUMIFS(Backend!$BB$10:$BB$365,Backend!$K$10:$K$365,Carbon_Savings_By_Profile[[#This Row],[Window glazing]],Backend!$J$10:$J$365,Carbon_Savings_By_Profile[[#This Row],[Ventilation]]),SUMIFS(Backend!$BB$10:$BB$365,Backend!$H$10:$H$365,Carbon_Savings_By_Profile[[#This Row],[Year]],Backend!$K$10:$K$365,Carbon_Savings_By_Profile[[#This Row],[Window glazing]],Backend!$J$10:$J$365,Carbon_Savings_By_Profile[[#This Row],[Ventilation]]))))) -> 22.0200439 | AA17: =Carbon_Savings_By_Profile[[#This Row],[Aggregated first order effects location-based (kgCO2e/m2/year)]]/Carbon_Savings_By_Profile[[#This Row],[Buildings]] -> 0.002755812698 | AB17: =Carbon_Savings_By_Profile[[#This Row],[Aggregated first order effects market-based (kgCO2e/m2/year)]]/Carbon_Savings_By_Profile[[#This Row],[Buildings]] -> 0.002528217504 | AC17: =Carbon_Savings_By_Profile[[#This Row],[Aggregated first order effects location-based (kgCO2e/year)]]/Carbon_Savings_By_Profile[[#This Row],[Buildings]] -> 11.90684272 | AD17: =Carbon_Savings_By_Profile[[#This Row],[Aggregated first order effects market-based (kgCO2e/building/year)]]/Carbon_Savings_By_Profile[[#This Row],[Buildings]] -> 11.01002195 | AE17: =IF(AND(Carbon_Savings_By_Profile[[#This Row],[Window glazing]]="Average building",Carbon_Savings_By_Profile[[#This Row],[Ventilation]]="Average building"), SUMIFS(Backend!$BE$10:$BE$365,Backend!$H$10:$H$365,Carbon_Savings_By_Profile[[#This Row],[Year]]),IF(AND(Carbon_Savings_By_Profile[[#This Row],[Year]]="Average building",Carbon_Savings_By_Profile[[#This Row],[Ventilation]]="Average building"),SUMIFS(Backend!$BE$10:$BE$365,Backend!$K$10:$K$365,Carbon_Savings_By_Profile[[#This Row],[Window glazing]]), IF(AND(Carbon_Savings_By_Profile[[#This Row],[Year]]="Average building",Carbon_Savings_By_Profile[[#This Row],[Window glazing]]="Average building"), SUMIFS(Backend!$BE$10:$BE$365,Backend!$J$10:$J$365,Carbon_Savings_By_Profile[[#This Row],[Ventilation]]), IF(AND(Carbon_Savings_By_Profile[[#This Row],[Year]]="Average building",Carbon_Savings_By_Profile[[#This Row],[Window glazing]]<>"Average building",Carbon_Savings_By_Profile[[#This Row],[Ventilation]]<>"Average building"), SUMIFS(Backend!$BE$10:$BE$365,Backend!$K$10:$K$365,Carbon_Savings_By_Profile[[#This Row],[Window glazing]],Backend!$J$10:$J$365,Carbon_Savings_By_Profile[[#This Row],[Ventilation]]),SUMIFS(Backend!$BE$10:$BE$365,Backend!$H$10:$H$365,Carbon_Savings_By_Profile[[#This Row],[Year]],Backend!$K$10:$K$365,Carbon_Savings_By_Profile[[#This Row],[Window glazing]],Backend!$J$10:$J$365,Carbon_Savings_By_Profile[[#This Row],[Ventilation]]))))) -> 1.178418375 | AF17: =IF(AND(Carbon_Savings_By_Profile[[#This Row],[Window glazing]]="Average building",Carbon_Savings_By_Profile[[#This Row],[Ventilation]]="Average building"), SUMIFS(Backend!$BF$10:$BF$365,Backend!$H$10:$H$365,Carbon_Savings_By_Profile[[#This Row],[Year]]),IF(AND(Carbon_Savings_By_Profile[[#This Row],[Year]]="Average building",Carbon_Savings_By_Profile[[#This Row],[Ventilation]]="Average building"),SUMIFS(Backend!$BF$10:$BF$365,Backend!$K$10:$K$365,Carbon_Savings_By_Profile[[#This Row],[Window glazing]]), IF(AND(Carbon_Savings_By_Profile[[#This Row],[Year]]="Average building",Carbon_Savings_By_Profile[[#This Row],[Window glazing]]="Average building"), SUMIFS(Backend!$BF$10:$BF$365,Backend!$J$10:$J$365,Carbon_Savings_By_Profile[[#This Row],[Ventilation]]), IF(AND(Carbon_Savings_By_Profile[[#This Row],[Year]]="Average building",Carbon_Savings_By_Profile[[#This Row],[Window glazing]]<>"Average building",Carbon_Savings_By_Profile[[#This Row],[Ventilation]]<>"Average building"), SUMIFS(Backend!$BF$10:$BF$365,Backend!$K$10:$K$365,Carbon_Savings_By_Profile[[#This Row],[Window glazing]],Backend!$J$10:$J$365,Carbon_Savings_By_Profile[[#This Row],[Ventilation]]),SUMIFS(Backend!$BF$10:$BF$365,Backend!$H$10:$H$365,Carbon_Savings_By_Profile[[#This Row],[Year]],Backend!$K$10:$K$365,Carbon_Savings_By_Profile[[#This Row],[Window glazing]],Backend!$J$10:$J$365,Carbon_Savings_By_Profile[[#This Row],[Ventilation]]))))) -> 0.691253565 | AG17: 0.5892091873 | AH17: =Carbon_Savings_By_Profile[[#This Row],[Net avoided emissions market-based (kgCO2e/m2/year)]]/Carbon_Savings_By_Profile[[#This Row],[Buildings]] -> 0.3456267825 | AI17: =IF(AND(Carbon_Savings_By_Profile[[#This Row],[Window glazing]]="Average building",Carbon_Savings_By_Profile[[#This Row],[Ventilation]]="Average building"), SUMIFS(Backend!$BG$10:$BG$365,Backend!$H$10:$H$365,Carbon_Savings_By_Profile[[#This Row],[Year]]),IF(AND(Carbon_Savings_By_Profile[[#This Row],[Year]]="Average building",Carbon_Savings_By_Profile[[#This Row],[Ventilation]]="Average building"),SUMIFS(Backend!$BG$10:$BG$365,Backend!$K$10:$K$365,Carbon_Savings_By_Profile[[#This Row],[Window glazing]]), IF(AND(Carbon_Savings_By_Profile[[#This Row],[Year]]="Average building",Carbon_Savings_By_Profile[[#This Row],[Window glazing]]="Average building"), SUMIFS(Backend!$BG$10:$BG$365,Backend!$J$10:$J$365,Carbon_Savings_By_Profile[[#This Row],[Ventilation]]), IF(AND(Carbon_Savings_By_Profile[[#This Row],[Year]]="Average building",Carbon_Savings_By_Profile[[#This Row],[Window glazing]]<>"Average building",Carbon_Savings_By_Profile[[#This Row],[Ventilation]]<>"Average building"), SUMIFS(Backend!$BG$10:$BG$365,Backend!$K$10:$K$365,Carbon_Savings_By_Profile[[#This Row],[Window glazing]],Backend!$J$10:$J$365,Carbon_Savings_By_Profile[[#This Row],[Ventilation]]),SUMIFS(Backend!$BG$10:$BG$365,Backend!$H$10:$H$365,Carbon_Savings_By_Profile[[#This Row],[Year]],Backend!$K$10:$K$365,Carbon_Savings_By_Profile[[#This Row],[Window glazing]],Backend!$J$10:$J$365,Carbon_Savings_By_Profile[[#This Row],[Ventilation]]))))) -> 6864.135955 | AJ17: =IF(AND(Carbon_Savings_By_Profile[[#This Row],[Window glazing]]="Average building",Carbon_Savings_By_Profile[[#This Row],[Ventilation]]="Average building"), SUMIFS(Backend!$BH$10:$BH$365,Backend!$H$10:$H$365,Carbon_Savings_By_Profile[[#This Row],[Year]]),IF(AND(Carbon_Savings_By_Profile[[#This Row],[Year]]="Average building",Carbon_Savings_By_Profile[[#This Row],[Ventilation]]="Average building"),SUMIFS(Backend!$BH$10:$BH$365,Backend!$K$10:$K$365,Carbon_Savings_By_Profile[[#This Row],[Window glazing]]), IF(AND(Carbon_Savings_By_Profile[[#This Row],[Year]]="Average building",Carbon_Savings_By_Profile[[#This Row],[Window glazing]]="Average building"), SUMIFS(Backend!$BH$10:$BH$365,Backend!$J$10:$J$365,Carbon_Savings_By_Profile[[#This Row],[Ventilation]]), IF(AND(Carbon_Savings_By_Profile[[#This Row],[Year]]="Average building",Carbon_Savings_By_Profile[[#This Row],[Window glazing]]<>"Average building",Carbon_Savings_By_Profile[[#This Row],[Ventilation]]<>"Average building"), SUMIFS(Backend!$BH$10:$BH$365,Backend!$K$10:$K$365,Carbon_Savings_By_Profile[[#This Row],[Window glazing]],Backend!$J$10:$J$365,Carbon_Savings_By_Profile[[#This Row],[Ventilation]]),SUMIFS(Backend!$BH$10:$BH$365,Backend!$H$10:$H$365,Carbon_Savings_By_Profile[[#This Row],[Year]],Backend!$K$10:$K$365,Carbon_Savings_By_Profile[[#This Row],[Window glazing]],Backend!$J$10:$J$365,Carbon_Savings_By_Profile[[#This Row],[Ventilation]]))))) -> 5667.359636 | AK17: =Carbon_Savings_By_Profile[[#This Row],[Net avoided emissions location-based (kgCO2e/year)]]/Carbon_Savings_By_Profile[[#This Row],[Buildings]] -> 3432.067977 | AL17: =Carbon_Savings_By_Profile[[#This Row],[Net avoided emissions market-based (kgCO2e/year)]]/Carbon_Savings_By_Profile[[#This Row],[Buildings]] -> 2833.679818 | AM17: =IF(Results!$L$15="market-based",Carbon_Savings_By_Profile[[#This Row],[Average net avoided emissions market-based (kgCO2e/m2/year)]],Carbon_Savings_By_Profile[[#This Row],[Average net avoided emissions location-based (kgCO2e/m2/year)]]) -> 0.5892091873 | AN17: =IF(AND(Carbon_Savings_By_Profile[[#This Row],[Window glazing]]="Average building",Carbon_Savings_By_Profile[[#This Row],[Ventilation]]="Average building"), SUMIFS(Table7[Emissions uncertainty per m2 location-based (kgCO2e)],Backend!$H$10:$H$365,Carbon_Savings_By_Profile[[#This Row],[Year]]),IF(AND(Carbon_Savings_By_Profile[[#This Row],[Year]]="Average building",Carbon_Savings_By_Profile[[#This Row],[Ventilation]]="Average building"),SUMIFS(Table7[Emissions uncertainty per m2 location-based (kgCO2e)],Backend!$K$10:$K$365,Carbon_Savings_By_Profile[[#This Row],[Window glazing]]), IF(AND(Carbon_Savings_By_Profile[[#This Row],[Year]]="Average building",Carbon_Savings_By_Profile[[#This Row],[Window glazing]]="Average building"), SUMIFS(Table7[Emissions uncertainty per m2 location-based (kgCO2e)],Backend!$J$10:$J$365,Carbon_Savings_By_Profile[[#This Row],[Ventilation]]), IF(AND(Carbon_Savings_By_Profile[[#This Row],[Year]]="Average building",Carbon_Savings_By_Profile[[#This Row],[Window glazing]]<>"Average building",Carbon_Savings_By_Profile[[#This Row],[Ventilation]]<>"Average building"), SUMIFS(Table7[Emissions uncertainty per m2 location-based (kgCO2e)],Backend!$K$10:$K$365,Carbon_Savings_By_Profile[[#This Row],[Window glazing]],Backend!$J$10:$J$365,Carbon_Savings_By_Profile[[#This Row],[Ventilation]]),SUMIFS(Table7[Emissions uncertainty per m2 location-based (kgCO2e)],Backend!$H$10:$H$365,Carbon_Savings_By_Profile[[#This Row],[Year]],Backend!$K$10:$K$365,Carbon_Savings_By_Profile[[#This Row],[Window glazing]],Backend!$J$10:$J$365,Carbon_Savings_By_Profile[[#This Row],[Ventilation]]))))) -> 0.07851837141 | AO17: =IF(AND(Carbon_Savings_By_Profile[[#This Row],[Window glazing]]="Average building",Carbon_Savings_By_Profile[[#This Row],[Ventilation]]="Average building"), SUMIFS(Table7[Emissions uncertainty per m2 market-based* (kgCO2e)],Backend!$H$10:$H$365,Carbon_Savings_By_Profile[[#This Row],[Year]]),IF(AND(Carbon_Savings_By_Profile[[#This Row],[Year]]="Average building",Carbon_Savings_By_Profile[[#This Row],[Ventilation]]="Average building"),SUMIFS(Table7[Emissions uncertainty per m2 market-based* (kgCO2e)],Backend!$K$10:$K$365,Carbon_Savings_By_Profile[[#This Row],[Window glazing]]), IF(AND(Carbon_Savings_By_Profile[[#This Row],[Year]]="Average building",Carbon_Savings_By_Profile[[#This Row],[Window glazing]]="Average building"), SUMIFS(Table7[Emissions uncertainty per m2 market-based* (kgCO2e)],Backend!$J$10:$J$365,Carbon_Savings_By_Profile[[#This Row],[Ventilation]]), IF(AND(Carbon_Savings_By_Profile[[#This Row],[Year]]="Average building",Carbon_Savings_By_Profile[[#This Row],[Window glazing]]<>"Average building",Carbon_Savings_By_Profile[[#This Row],[Ventilation]]<>"Average building"), SUMIFS(Table7[Emissions uncertainty per m2 market-based* (kgCO2e)],Backend!$K$10:$K$365,Carbon_Savings_By_Profile[[#This Row],[Window glazing]],Backend!$J$10:$J$365,Carbon_Savings_By_Profile[[#This Row],[Ventilation]]),SUMIFS(Table7[Emissions uncertainty per m2 market-based* (kgCO2e)],Backend!$H$10:$H$365,Carbon_Savings_By_Profile[[#This Row],[Year]],Backend!$K$10:$K$365,Carbon_Savings_By_Profile[[#This Row],[Window glazing]],Backend!$J$10:$J$365,Carbon_Savings_By_Profile[[#This Row],[Ventilation]]))))) -> 0.0461793579 | AP17: =Carbon_Savings_By_Profile[[#This Row],[Uncertainty location-based (kgCO2e/m2/year)]]/Carbon_Savings_By_Profile[[#This Row],[Buildings]] -> 0.0392591857 | AQ17: =Carbon_Savings_By_Profile[[#This Row],[Uncertainty market-based (kgCO2e/m2/year)]]/Carbon_Savings_By_Profile[[#This Row],[Buildings]] -> 0.02308967895 | AR17: -0.06985139162 | AS17: -0.06788472243
